{"text_format":"1","workbook":"xlsx","n_sheets":20,"sheets":["дата","1","2","3","4","5","6","7","8","9","10","11","12","13","14","15","16","плрег16","свод16","Лист1"],"not_rendered":{"charts":0,"images":0,"macros":1,"external_links":0,"defined_names":37,"comments":3,"pivot_tables":0},"unopened":[],"bounds":{"document_bytes":16777216,"sheet_cells":100000,"rows_first":2000,"rows_last":500,"rows_between":2000,"halvings":0,"cell_chars":16384,"cell_head_chars":4096},"cells_cut":0,"cells_raw":0,"read":"whole","date_system":"1900"}

{"sheet":"дата","index":0,"n_rows":18,"n_cols":4,"rows_kept":18,"cut":false,"hidden":false,"merged":[]}
[null,null,"от 28 марта 2016 г. № ","от 18 декабря 2015 г. № 19"]
["Приложение №"]
[1,{"$f":"'1'!A6","v":"Источники финансирования  дефицита"},1,1]
[2,{"$f":"'2'!$A$6","v":"Прогнозируемые объемы доходов в бюджет "},2,2]
[3,{"$f":"'3'!A6","v":"Нормативы распределения доходов между бюджетами бюджетной системы   "},null,3]
[4,{"$f":"'4'!A6","v":"Перечень  главных администраторов  доходов бюджета"},null,4]
[5,{"$f":"'5'!A6","v":"Перечень главных администраторов и администраторов  "},null,5]
[6,{"$f":"'6'!A6","v":"Распределение бюджетных ассигнований по разделам и подразделам,"},3,6]
[7,{"$f":"'7'!A6","v":"Ведомственная структура расходов"},4,7]
[8,{"$f":"'8'!A7","v":"публичных нормативных обязательств на 2016 год"},null,8]
[9,{"$f":"'9'!A7","v":"с заключенными соглашениями на финансовый контроль на 2016 год"},null,9]
[10,{"$f":"'10'!A6","v":"по осуществлению дорожной деятельности на 2016 год"},null,10]
[11,{"$f":"'11'!A9","v":"Наименование  поселений"},null,11]
[12,{"$f":"'11'!A6","v":"полномочий исполнительных комитетов поселений,  входящих в  состав Кукморского муниципального района Республики Татарстан, по распоряжению земельными участками, государственная собственность на которые не разграничена и которые расположены на территориях поселений, при наличии утвержденных правил землепользования и застройки поселений на 2016 год"},null,12]
[13,{"$f":"'13'!A6","v":"Дотации на сбалансированность поселений в 2016 году"},null,13]
[14,{"$f":"'14'!A8","v":"актов гражданского состояния на 2016 год"},null,14]
[15,{"$f":"'15'!A8","v":"где отсутствуют военные комиссариаты на 2016 год"},null,15]
[16,{"$f":"'16'!A6","v":"Межбюджетные трансферты, получаемые \n"},5,16]

{"sheet":"1","index":1,"n_rows":24,"n_cols":3,"rows_kept":24,"cut":false,"hidden":false,"merged":[[5,0,5,2],[6,0,6,2],[7,0,7,2]]}
[null,{"$f":"дата!$A$2&дата!$C$3","v":"Приложение №1"}]
[null,"к решению Совета Кукморского"]
[null,"муниципального района"]
[null,{"$f":"дата!C1","v":"от 28 марта 2016 г. № "}]
[]
["Источники финансирования  дефицита"]
["бюджета Кукморского муниципального района на 2016 год"]
["(рублей)"]
["Наименование показателя","код показателя","Сумма"]
["Источники внутреннего финансирования дефицита бюджета","01 00 00 00 00 0000 000",{"$f":"SUM(C12+C15)","v":1351677.7599998713}]
[]
["Кредитные соглашения и договоры, заключенные от имени Российской Федерации, субъектов Рос-сийской Федерации, муниципальных образований, государственных внебюджетных фондов","01 02 00 00 05 0000 000",{"$f":"SUM(C13+C14)","v":0}]
["Получение кредитов по кредитным соглашениям и договорам, заключенным от имени Российской Федерации, субъектов Российской Федерации, муниципальных образований, государственных внебюджетных фондов","01 02 00 00 05 0000 710"]
["Погашение кредитов по кредитным соглашениям и договорам, заключенным от имени Российской Федерации, субъектов Российской Федерации, муниципальных образований, государственных внебюджетных фондов","01 02 00 00 05 0000 810"]
["Изменение остатков средств на счетах по учету средств бюджета","01 05 00 00 00 0000 000",{"$f":"SUM(C16+C19)","v":1351677.7599998713}]
["Увеличение остатков средств бюджетов","01 05 00 00 00 0000 500",{"$f":"SUM(C17)","v":-1060194966.6700001}]
["Увеличение прочих остатков средств бюджетов","01 05 02 01 05 0000 510",{"$f":"-'2'!D48","v":-1060194966.6700001}]
["Уменьшение остатков средств бюджетов","01 05 00 00 00 0000 600",{"$f":"SUM(C19)","v":1061546644.4299999}]
["Уменьшение прочих остатков средств бюджетов","01 05 02 01 05 0000 610",{"$f":"'6'!F290","v":1061546644.4299999}]
["Итого по группе \"Источники внутреннего финансирования дефицита бюджета\"",null,{"$f":"SUM(C15+C12)","v":1351677.7599998713}]
["ВСЕГО  источников финансирования",null,{"$f":"SUM(C20)","v":1351677.7599998713}]
[]
[]
["         Глава Района                                   С.Д.Димитриев"]

{"sheet":"2","index":2,"n_rows":51,"n_cols":6,"rows_kept":51,"cut":false,"hidden":false,"merged":[[5,0,5,3],[6,0,6,3],[8,0,10,0],[8,1,9,2],[8,3,10,3]]}
[null,null,{"$f":"дата!$A$2&дата!$C$4","v":"Приложение №2"}]
[null,null,"к решению Совета Кукморского"]
[null,null,"муниципального района"]
[null,null,{"$f":"дата!C1","v":"от 28 марта 2016 г. № "}]
[]
["Прогнозируемые объемы доходов в бюджет "]
[" Кукморского муниципального района на 2016 год"]
[null,null,null,"(рублей)"]
["Наименование","код дохода",null,"сумма"]
[]
[null,"квд","косгу"]
[]
["НАЛОГОВЫЕ И НЕНАЛОГОВЫЕ ДОХОДЫ","1.00.00.000.00.0.000","0.0.0",{"$f":"D14+D18+D25+D27+D29+D31+D33+D16+D23","v":308169600}]
["НАЛОГИ НА ПРИБЫЛЬ, ДОХОДЫ","1.01.00.000.00.0.000","0.0.0",{"$f":"D15","v":252767000}]
["Налог на доходы физических лиц","1.01.02.000.01.0.000","1.1.0",252767000]
["Налоги на товары (работы, услуги), реализуемые на территории Российской Федерации","1.03.00.000.00.0.000","0.0.0",{"$f":"D17","v":16690600}]
["Акцизы по подакцизным товарам (продукции), производимым на территории Российской Федерации","1.03.02.000.01.0.000","1.1.0",16690600]
["НАЛОГИ НА СОВОКУПНЫЙ ДОХОД","1.05.00.000.00.0.000","0.0.0",{"$f":"SUM(D19:D22)","v":28818000}]
["Налог, взимаемый в связи с применением упрощенной системы налогообложения","1.05.01.000.01.0.000","1.1.0",6674000]
["Единый налог на вмененный доход для отдельных видов деятельности","1.05.02.000.02.0.000","1.1.0",20115000]
["Единый сельскохозяйственный налог","1.05.03.000.01.0.000","1.1.0",{"$f":"1800000","v":1800000}]
["Налог, взимаемый в связи с применением патентной системы налогообложения, зачисляемый в бюджеты муниципальных районов","1.05.04.020.02.0.000","1.1.0",229000]
["Налоги, сборы и регулярные платежи за пользо-вание природными ресурсами","1.07.00.000.00.0.000","0.0.0",{"$f":"D24","v":74000}]
["Налог на добычу полезных ископаемых","1.07.01.000.01.0.000","1.1.0",74000]
["ГОСУДАРСТВЕННАЯ ПОШЛИНА","1.08.00.000.00.0.000","0.0.0",{"$f":"D26","v":3625000}]
["Государственная пошлина по делам, рассматриваемым в судах общей юрисдикции, мировыми судьями","1.08.03.000.01.0.000","1.1.0",3625000]
["ДОХОДЫ ОТ ИСПОЛЬЗОВАНИЯ ИМУЩЕСТВА, НАХОДЯЩЕГОСЯ В ГОСУДАРСТВЕННОЙ И МУНИЦИПАЛЬНОЙ СОБСТВЕННОСТИ","1.11.00.000.00.0.000","0.0.0",{"$f":"SUM(D28:D28)","v":3273000}]
["Доходы, получаемые в виде арендной либо иной платы за передачу в возмездное пользование государственного и муниципального имущества (за исключением имущества бюджетных и автономных учреждений, а также имущества государственных и муниципальных унитарных предприятий, в том числе казенных)","1.11.05.000.00.0.000","1.2.0",{"$f":"2786000+487000","v":3273000}]
["ПЛАТЕЖИ ПРИ ПОЛЬЗОВАНИИ ПРИРОДНЫМИ РЕСУРСАМИ","1.12.00.000.00.0.000","0.0.0",{"$f":"D30","v":500000}]
["Плата за негативное воздействие на окружающую среду","1.12.01.000.01.0.000","1.2.0",500000]
["ДОХОДЫ ОТ ПРОДАЖИ МАТЕРИАЛЬНЫХ И НЕМАТЕРИАЛЬНЫХ АКТИВОВ","1.14.00.000.00.0.000","0.0.0",{"$f":"D32","v":0}]
["Доходы от продажи земельных участков,государственная собственность на которые не разграничена и которые расположены в границах поселений","1.14.06.013.10.0.000","4.3.0",0]
["ШТРАФЫ, САНКЦИИ, ВОЗМЕЩЕНИЕ УЩЕРБА","1.16.00.000.00.0.000","0.0.0",{"$f":"SUM(D34:D41)","v":2422000}]
["Денежные взыскания (штрафы) за административные правонарушения в области налогов и сборов, предусмотренные Кодексом Российской Федерации об административных правонарушениях","1.16.03.000.00.0.000","1.4.0",1000]
["Денежные взыскания (штрафы) за нарушение законодательства о применении контрольно-кассовой техники при осуществлении наличных денежных расчетов и (или) расчетов с использованием платежных карт","1.16.06.000.01.0.000","1.4.0",5000]
["Денежные взыскания (штрафы) за административные правонарушения в области государственного регулирования производства и оборота этилового спирта, алкогольной, спиртосодержащей и табачной продукции","1.16.08.000.01.0.000","1.4.0",80000]
["Денежные взыскания (штрафы) и иные суммы, взыскиваемые с лиц, виновных в совершении преступлений, и в возмещение ущерба имуществу, зачисляемые в бюджеты муниципальных районов","1.16.21.050.05.0.000","1.4.0",12000]
["Денежные взыскания (штрафы) за нарушение законодательства Российской Федерации о недрах, об особо охраняемых природных территориях, об охране и использовании животного мира, об экологической экспертизе, в области охраны окружающей среды, земельного законодательства, лесного законодательства, водного законодательства","1.16.25.000.00.0.000","1.4.0",70000]
["Денежные взыскания (штрафы) за нарушение законодательства в области обеспечения санитарно-эпидемиологического благополучия человека и законодательства в сфере защиты прав потребителей","1.16.28.000.01.0.000","1.4.0",350000]
["Денежные взыскания (штрафы), установленные законами субъектов Российской Федерации за несоблюдение муниципальных правовых актов, зачисляемые в бюжеты муниципальных районов","1.16.51.030.02.0.000","1.4.0",80000]
["Прочие поступления от денежных взысканий (штрафов) и иных сумм в возмещение ущерба, зачисляемые в бюджеты муниципальных районов","1.16.90.050.05.0.000","1.4.0",1824000]
["БЕЗВОЗМЕЗДНЫЕ ПОСТУПЛЕНИЯ","2.00.00.000.00.0.000","0.0.0",{"$f":"D43","v":752025366.67000008},{"$f":"D42-4388000-375000-100000","v":747162366.67000008},"рт"]
["БЕЗВОЗМЕЗДНЫЕ ПОСТУПЛЕНИЯ ОТ ДРУГИХ БЮДЖЕТОВ БЮДЖЕТНОЙ СИСТЕМЫ РОССИЙСКОЙ ФЕДЕРАЦИИ","2.02.00.000.00.0.000","0.0.0",{"$f":"SUM(D44:D47)","v":752025366.67000008}]
["Дотации бюджетам субъектов Российской Федерации и муниципальных образований","2.02.01.000.05.0.000","1.5.1",{"$f":"SUMIF('16'!$D$13:$D$1399,E44,'16'!$C$13:$C$1399)","v":69862100},"2.02.01"]
["Субсидии бюджетам субъектов Российской Федерации и муниципальных образований (межбюджетные субсидии)","2.02.02.000.05.0.000","1.5.1",{"$f":"SUMIF('16'!$D$13:$D$1399,E45,'16'!$C$13:$C$1399)","v":308549117.67000002},"2.02.02"]
["Субвенции бюджетам субъектов Российской Федерации и муниципальных образований","2.02.03.000.05.0.000","1.5.1",{"$f":"SUMIF('16'!$D$13:$D$1399,E46,'16'!$C$13:$C$1399)","v":352014349},"2.02.03"]
["Иные межбюджетные трансферты","2.02.04.000.05.0.000","1.5.1",{"$f":"SUMIF('16'!$D$13:$D$1399,E47,'16'!$C$13:$C$1399)","v":21599800},"2.02.04"]
["ИТОГО","",null,{"$f":"D42+D13","v":1060194966.6700001}]
[]
[]
["         Глава Района                                   С.Д.Димитриев"]

{"sheet":"3","index":3,"n_rows":52,"n_cols":5,"rows_kept":52,"cut":false,"hidden":true,"merged":[[5,0,5,2],[6,0,6,2],[7,0,7,2],[9,0,10,0],[9,1,10,1],[9,2,9,4]]}
[null,null,{"$f":"дата!$A$2&дата!$C$5","v":"Приложение №"}]
[null,null,"к решению Кукморского"]
[null,null,"районного Совета"]
[null,null,{"$f":"дата!$C$1","v":"от 28 марта 2016 г. № "}]
[]
["Нормативы распределения доходов между бюджетами бюджетной системы   "]
["       Кукморского муниципального района "]
[" на 2016 год "]
[null,null,"(в процентах)"]
["Код","Наименование групп, подгрупп, статей и подстатей доходов","Местные бюджеты"]
[null,null,"муници-пальных районов","сельских поселений","городских поселений"]
["1 09 00000 00 0000 000","Задолженность и перерасчеты по отмененным налогам,  сборам и иным обязательным платежам "]
["1 09 07013 05 0000 110","Налог на рекламу, мобилизуемый на территориях муниципальных районов",100]
["1 09 07053 05 0000 110","Прочие местные налоги и сборы, мобилизуемые на территориях муниципальных районов",100]
["1 13 00000 00 0000 000","Доходы от оказания платных услуг (работ) и компенсации затрат государства                           "]
["1 13 01995 05 0000 130","Прочие доходы от оказания платных услуг (работ) получателями средств бюджетов муниципальных районов",100]
["1 13 01995 10 0000 130","Прочие доходы от оказания платных услуг (работ) получателями средств бюджетов сельских поселений",null,100]
["1 13 01995 13 0000 130","Прочие доходы от оказания платных услуг (работ) получателями средств бюджетов городских поселений",null,null,100]
["1 13 02065 05 0000 130","Доходы, поступающие в порядке возмещения расходов, понесенных в связи с эксплуатацией имущества муниципальных районов",100]
["1 13 02065 10 0000 130","Доходы, поступающие в порядке возмещения расходов, понесенных в связи с эксплуатацией имущества сельских поселений",null,100]
["1 13 02065 13 0000 130","Доходы, поступающие в порядке возмещения расходов, понесенных в связи с эксплуатацией имущества городских поселений",null,null,100]
["1 13 02995 05 0000 130","Прочие доходы от компенсации затрат бюджетов муниципальных районов",100]
["1 13 02995 10 0000 130","Прочие доходы от компенсации затрат бюджетов сельских поселений",null,100]
["1 13 02995 13 0000 130","Прочие доходы от компенсации затрат бюджетов городских поселений",null,null,100]
["1 16 00000 00 0000 000","Штрафы, санкции, возмещение ущерба"]
["1 16 21050 05 0000 140","Денежные взыскания (штрафы) и иные суммы, взыскиваемые с лиц, виновных в совершении преступлений, и в возмещение ущерба имуществу, зачисляемые в бюджеты муниципальных районов",100]
["1 16 21050 10 0000 140","Денежные взыскания (штрафы) и иные суммы, взыскиваемые с лиц, виновных в совершении преступлений, и в возмещение ущерба имуществу, зачисляемые в бюджеты сельских поселений",null,100]
["1 16 21050 13 0000 140","Денежные взыскания (штрафы) и иные суммы, взыскиваемые с лиц, виновных в совершении преступлений, и в возмещение ущерба имуществу, зачисляемые в бюджеты городских поселений",null,null,100]
["1 16 23051 05 0000 140","Доходы от возмещения ущерба при возникновении страховых случаев по обязательному страхованию гражданской ответственности, когда выгодоприобретателями выступают получатели средств бюджетов муниципальных районов",100]
["1 16 23052 05 0000 140","Доходы от возмещения ущерба при возникновении иных страховых случаев, когда выгодоприобретателями выступают получатели средств бюджетов муниципальных районов",100]
["1 16 23051 10 0000 140","Доходы от возмещения ущерба при возникновении страховых случаев по обязательному страхованию гражданской ответственности, когда выгодоприобретателями выступают получатели средств бюджетов сельских поселений",null,100]
["1 16 23052 10 0000 140","Доходы от возмещения ущерба при возникновении иных страховых случаев, когда выгодоприобретателями выступают получатели средств бюджетов сельских поселений",null,100]
["1 16 23051 13 0000 140","Доходы от возмещения ущерба при возникновении страховых случаев по обязательному страхованию гражданской ответственности, когда выгодоприобретателями выступают получатели средств бюджетов городских поселений",null,null,100]
["1 16 23052 13 0000 140","Доходы от возмещения ущерба при возникновении иных страховых случаев, когда выгодоприобретателями выступают получатели средств бюджетов городских поселений",null,null,100]
["1 16 32000 05 0000 140","Денежные взыскания, налагаемые в возмещение ущерба, причиненного в результате незаконного или нецелевого использования бюджетных средств (в части бюджетов муниципальных районов)",100]
["1 16 32000 10 0000 140","Денежные взыскания, налагаемые в возмещение ущерба, причиненного в результате незаконного или нецелевого использования бюджетных средств (в части бюджетов сельских поселений)",null,100]
["1 16 32000 13 0000 140","Денежные взыскания, налагаемые в возмещение ущерба, причиненного в результате незаконного или нецелевого использования бюджетных средств (в части бюджетов городских поселений)",null,null,100]
["1 16 90050 05 0000 140","Прочие поступления от денежных взысканий (штрафов) и иных сумм в возмещение ущерба, зачисляемые в бюджеты муниципальных районов",100]
["1 16 90050 10 0000 140","Прочие поступления от денежных взысканий (штрафов) и иных сумм в возмещение ущерба, зачисляемые в бюджеты сельских поселений",null,100]
["1 16 90050 13 0000 140","Прочие поступления от денежных взысканий (штрафов) и иных сумм в возмещение ущерба, зачисляемые в бюджеты городских поселений",null,null,100]
["1 17 00000 00 0000 000","Прочие неналоговые доходы"]
["1 17 01050 05 0000 180","Невыясненные поступления, зачисляемые в бюджеты муниципальных районов",100]
["1 17 01050 10 0000 180","Невыясненные поступления, зачисляемые в бюджеты сельских поселений",null,100]
["1 17 01050 13 0000 180","Невыясненные поступления, зачисляемые в бюджеты городских поселений",null,null,100]
["1 17 05050 05 0000 180","Прочие неналоговые доходы бюджетов муниципальных районов",100]
["1 17 05050 10 0000 180","Прочие неналоговые доходы бюджетов сельских поселений",null,100]
["1 17 05050 13 0000 180","Прочие неналоговые доходы бюджетов городских поселений",null,null,100]
["1 17 14030 10 0000 180","Средства самообложения граждан, зачисляемые в бюджеты сельских поселений",null,100]
["1 17 14030 13 0000 180","Средства самообложения граждан, зачисляемые в бюджеты городских поселений",null,null,100]
[]
[]
["         Глава Района                                   С.Д.Димитриев"]

{"sheet":"4","index":4,"n_rows":142,"n_cols":3,"rows_kept":142,"cut":false,"hidden":true,"merged":[[100,0,100,2],[5,0,5,2],[6,0,6,2],[11,0,11,2],[7,0,7,2],[9,2,10,2],[9,0,9,1]]}
[null,null,{"$f":"дата!$A$2&дата!$C$6","v":"Приложение №"}]
[null,null,"к решению Кукморского"]
["                                                                                                                                                                                                            Совета народных депутатов",null,"районного Совета"]
["                                                                                                                                                                                                             от",null,{"$f":"дата!C1","v":"от 28 марта 2016 г. № "}]
[]
["Перечень  главных администраторов  доходов бюджета"]
["Кукморского муниципального района  на 2016 год - органов  местного самоуправления"]
["Кукморского муниципального района"]
[]
["коды бюджетной классификации",null,"Наименование "]
["код администратора доходов","доходов бюджета"]
["Финансово-бюджетная палата Кукморского муниципального района"]
[605,"1 08 07174 01 4000 110","Государственная пошлина за выдачу органом местного самоуправления муниципального района специального разрешения на движение по автомобильным дорогам транспортных средств, осуществляющих перевозки опасных, тяжеловесных и (или) крупногабаритных грузов, зачисляемая в бюджеты муниципальных районов."]
["605","1 08 07150 01 0000 110","Государственная пошлина за выдачу разрешения на установку рекламной конструкции "]
["605","1 09 07013 05 0000 110","Налог на рекламу, мобилизуемый на территориях муниципальных районов"]
["605","1 09 07053 05 0000 110","Прочие местные налоги и сборы, мобилизуемые на территориях муниципальных районов"]
["605","1 11 02033 05 0000120","Доходы от размещения временно свободных средств бюджетов муниципальных районов"]
["605","1 11 03050 05 0000 120","Проценты, полученные от предоставления бюджетных кредитов внутри страны за счет средств бюджетов муниципальных районов"]
["605"," 1 13 02065 05 0000 130","Доходы, поступающие в порядке возмещения расходов, понесенных в связи с эксплуатацией  имущества муниципальных районов"]
[605,"1 13 01995 05 0000 130","Прочие доходы от оказания платных услуг (работ) получателями средств бюджетов муниципальных районов"]
["605","1 13 02995 05 0000 130","Прочие доходы от компенсации затрат  бюджетов муниципальных районов"]
[605,"1 16 18050 05 0000 140  ","Денежные взыскания (штрафы)за нарушение бюджетного законодательства (в части бюджетов муниципальных районов)."]
["605","1 16 21050 05 0000 140","Денежные взыскания (штрафы) и иные суммы, взыскиваемые с лиц, виновных в совершении преступлений, и в возмещение ущерба имуществу, зачисляемые в бюджеты муниципальных районов"]
[605,"1 16 23051 05 0000 140","Доходы от возмещения ущерба при возникновении страховых случаев по обязательному страхованию гражданской ответственности, когда выгодоприобретателями выступают получатели средств бюджетов муниципальных районов"]
[605,"1 16 23052 05 0000 140","Доходы от возмещения ущерба при возникновении иных страховых случаев, когда выгодоприобретателями выступают получатели средств бюджетов муниципальных районов"]
["605","1 16 32000 05 0000 140","Денежные взыскания, налагаемые в возмещение ущерба, причиненного в результате незаконного или нецелевого использования бюджетных средств (в части бюджетов муниципальных районов)"]
["605","1 16 33050 05 0000 140","Денежные взыскания (штрафы) за нарушение законодательства Российской Федерации о размещении заказов на поставки товаров, выполнение работ, оказание услуг для нужд муниципальных районов"]
["605","1 16 51030 02 0000 140","Денежные взыскания (штрафы), установленные законами субъектов Российской Федерации за несоблюдение муниципальных правовых актов, зачисляемые в бюжеты муниципальных районов"]
[605," 1 16 90050 05 0000 140  ","Прочие поступления от денежных взысканий(штрафов)и иных сумм в возмещение ущерба, зачисляемые в бюджеты муниципальных районов."]
[605,"1 17 01050 05 0000 180","Невыясненные поступления, зачисляемые в бюджеты муниципальных  районов "]
[605,"1 17 05050 05 0000 180","Прочие неналоговые доходы бюджетов муниципальных районов"]
[605,"1 17 08000 01 0000 180","Доходы от привлечения осужденных к оплачиваемому труду (в части прочих поступлений) "]
[605,"2 02 01001 05 0000 151","Дотации бюджетам муниципальных районов на выравнивание  бюджетной обеспеченности."]
[605,"2 02 01003 05 0000 151","Дотации бюджетам муниципальных районов на поддержку мер по обеспечению сбалансированности бюджетов."]
[605,"2 02 01009 05 0000 151","Дотации бюджетам муниципальных районов на поощрение достижения наилучших показателей деятельности органов местного самоуправления"]
[605,"2 02 01999 05 0000 151","Прочие дотации бюджетам муниципальных районов."]
[605,"2 02 02003 05 0000 151","Субсидии бюджетам муниципальных районов на реформирование муниципальных финансов."]
[605,"2 02 02008 05 0000 151","Субсидии бюджетам муниципальных районов на обеспечение жильем молодых семей."]
["605","2 02 02009 05 0000 151","Субсидии бюджетам муниципальных районов   на государственную поддержку малого и среднего предпринимательства, включая крестьянские                              (фермерские) хозяйства"]
[605,"2 02 02021 05 0000 151","Субсидии бюджетам муниципальных районов на осуществление капитального ремонта гидротехнических сооружений, находящихся в муниципальной собственности, и бесхозяйных гидротехнических сооружений."]
[605,"2 02 02041 05 0000 151","Субсидии  бюджетам   муниципальных   районов   на строительство и модернизацию автомобильных  дорог общего  пользования,  в том числе дорог в поселениях (за исключением  автомобильных дорог федерального значения)\n"]
[605,"2 02 02044 05 0000 151","Субсидии  бюджетам   муниципальных   районов   на  обеспечение   автомобильными дорогами новых микрорайонов\n"]
["605","2 02 02046 05 0000 151","Субсидии бюджетам муниципальных районов на реализацию мероприятий, предусмотренных региональной программой переселения, включенной в Государственную программу по оказанию содействия добровольному переселению в Российскую Федерацию соотечественников, проживающих за рубежом"]
[605,"2 02 02051 05 0000 151","Субсидии  бюджетам   муниципальных   районов   на реализацию федеральных целевых программ.\n\n\n"]
[605,"2 02 02071 05 0000 151","Субсидии  бюджетам   муниципальных   районов   на предоставление грантов в области науки, культуры, искусства и средств массовой информации\n"]
["605","2 02 02074 05 0000 151","Субсидии бюджетам муниципальных районов на совершенствование организации питания учащихся в общеобразовательных учреждениях"]
[605,"2 02 02077 05 0000 151","Субсидии  бюджетам   муниципальных районов на бюджетные инвестиции в объекты капитального строительства собственности муниципальных образований "]
[605,"2 02 02078 05 0000 151","Субсидии  бюджетам   муниципальных районов на бюджетные инвестиции  для  модернизации  объектов коммунальной инфраструктуры\n "]
[605,"2 02 02079 05 0000 151","Субсидии  бюджетам   муниципальных   районов   на переселение   граждан   из    жилищного    фонда, признанного непригодным для проживания,  и  (или)                       жилищного фонда с высоким уровнем  износа  (более 70 процентов) "]
["605","2 02 02080 05 0000 151","Субсидии бюджетам муниципальных районов для обеспечения земельных участков коммунальной инфраструктурой в целях жилищного строительства"]
[605,"2 02 02081 05 0000 151","Субсидии  бюджетам   муниципальных районов на мероприятия по обеспечению жильем иных  категорий граждан  на основании   решений   Правительства  Российской Федерации\n"]
[605,"2 02 02085 05 0000 151","Субсидии  бюджетам   муниципальных   районов   на осуществление мероприятий по  обеспечению  жильем граждан  Российской  Федерации,   проживающих   в  сельской местности\n\n"]
[605,"2 02 02087 05 0000 151","Субсидии  бюджетам   муниципальных   районов   из бюджетов поселений на решение  вопросов  местного значения межмуниципального характера\n"]
[605,"2 02 02088 00 0000 151","Субсидии бюджетам  муниципальных  образований  на обеспечение мероприятий по  капитальному  ремонту многоквартирных домов и  переселению  граждан  из  варийного  жилищного  фонда  за  счет   средств, поступивших от  государственной  корпорации  Фонд содействия  реформированию  жилищно-коммунального хозяйства"]
[605,"2 02 02088 05 0000 151","Субсидии  бюджетам   муниципальных   районов   на обеспечение мероприятий по  капитальному  ремонту многоквартирных домов и по переселению граждан из  аварийного  жилищного  фонда  за  счет   средств, поступивших от  государственной  корпорации  Фонд содействия  реформированию  жилищно-коммунального хозяйства"]
[605,"2 02 02088 05 0001 151","Субсидии  бюджетам   муниципальных   районов   на обеспечение мероприятий по  капитальному  ремонту многоквартирных   домов    за    счет    средств,                       поступивших от  государственной  корпорации  Фонд содействия  реформированию  жилищно-коммунального хозяйства\n"]
[605,"2 02 02088 05 0002 151","Субсидии  бюджетам   муниципальных   районов   на обеспечение мероприятий по переселению граждан из аварийного  жилищного  фонда  за  счет   средств,                поступивших от  государственной  корпорации  Фонд содействия  реформированию  жилищно-коммунального хозяйства\n"]
[605,"2 02 02089 00 0000 151","Субсидии бюджетам  муниципальных  образований  на обеспечение мероприятий по  капитальному  ремонту многоквартирных домов и  переселению  граждан  из  аварийного  жилищного  фонда  за   счет   средств бюджетов\n\n"]
[605,"2 02 02089 05 0000 151","Субсидии  бюджетам   муниципальных   районов   на  обеспечение мероприятий по  капитальному  ремонту многоквартирных домов и  переселению  граждан  из  аварийного  жилищного  фонда  за   счет   средств бюджетов\n"]
[605,"2 02 02089 05 0001 151","Субсидии  бюджетам   муниципальных   районов   на обеспечение мероприятий по  капитальному  ремонту многоквартирных домов за счет средств бюджетов "]
[605,"2 02 02089 05 0002 151","Субсидии  бюджетам   муниципальных   районов   на обеспечение мероприятий по переселению граждан из аварийного  жилищного  фонда  за   счет   средств бюджетов\n"]
[605,"2 02 02999 05 0000 151","Прочие субсидии бюджетам муниципальных районов\n"]
["605","2 02 03001 05 0000 151","Субвенции бюджетам муниципальных районов на оплату жилищно-коммунальных услуг отдельным категориям граждан"]
["605","2 02 03002 05 0000 151","Субвенции бюджетам муниципальных районов на осуществление полномочий по подготовке проведения статистических переписей"]
[605,"2 02 03003 05 0000 151","Субвенции бюджетам муниципальных районов на государственную регистрацию актов гражданского состояния."]
["605","2 02 03004 05 0000 151","Субвенции бюджетам муниципальных районов на обеспечение мер социальной поддержки для лиц, награжденных знаком \"Почетный донор СССР\", \"Почетный донор России\""]
["605","2 02 03005 05 0000 151","Субвенции бюджетам муниципальных районов на организацию, регулирование и охрану водных биологических ресурсов"]
["605","2 02 03006 05 0000 151","Субвенции бюджетам муниципальных районов на охрану и использование охотничьих ресурсов"]
[605,"2 02 03007 05 0000 151","Субвенции бюджетам муниципальных районов на составление ( изменение и дополнение ) списков кондидатов в присяжные заседатели федеральных судов общей юрисдикции в Российской Федерации"]
["605","2 02 03012 05 0000 151","Субвенции бюджетам муниципальных районов на выплаты инвалидам компенсаций страховых премий по договорам обязательного страхования гражданской ответственности владельцев транспортных средств"]
["605","2 02 03013 05 0000 151","Субвенции бюджетам муниципальных районов на обеспечение мер социальной поддержки реабилитированных лиц и лиц, признанных пострадавшими от политических репрессий"]
[605,"2 02 03014 05 0000 151","Субвенции бюджетам муниципальных районов на поощрение лучших учителей"]
[605,"2 02 03015 05 0000 151","Субвенции бюджетам муниципальных районов на осуществление полномочий по первичному воинскому учету на территориях, где отсутствуют военные комиссариаты"]
["605","2 02 03018 05 0000 151","Субвенции бюджетам муниципальных районов на осуществление отдельных полномочий в области лесных отношений "]
["605","2 02 03019 05 0000 151","Субвенции бюджетам муниципальных районов на осуществление отдельных полномочий в области водных отношений"]
["605","2 02 03020 05 0000 151","Субвенции бюджетам муниципальных районов на выплату единовременного пособия при всех формах устройства детей, лишенных родительского попечения, в семью"]
[605,"2 02 03121 05 0000 151","Субвенции бюджетам муниципальных районов на  проведение Всероссийской сельскохозяйственной переписи"]
[605,"2 02 03022 05 0000 151","Субвенции  бюджетам  муниципальных   районов   на предоставление  гражданам  субсидий   на   оплату жилого помещения и коммунальных услуг\n"]
[605,"2 02 03024 05 0000 151","Субвенции  бюджетам  муниципальных   районов   на выполнение  передаваемых   полномочий   субъектов Российской Федерации\n\n"]
["605","2 02 03025 05 0000 151 ","Субвенции бюджетам муниципальных районов на реализацию полномочий Российской Федерации по осуществлению социальных выплат безработным гражданам  "]
["605","2 02 03026 05 0000 151","Субвенции бюджетам муниципальных районов на обеспечение жилыми помещениями детей-сирот, детей, оставшихся без попечения родителей, а также детей, находящихся под опекой (попечительством), не имеющих закрепленного жилого помещения"]
["605","2 02 03027 05 0000 151","Субвенции бюджетам муниципальных районов на содержание ребенка в семье опекуна и приемной семье, а также вознаграждение, причитающееся приемному родителю"]
[605,"2 02 03029 05 0000 151","Субвенции  бюджетам  муниципальных   районов   на компенсацию   части   родительской    платы    за содержание      ребенка      в      муниципальных                           образовательных учреждениях, реализующих основную общеобразовательную     программу     дошкольного образования\n\n\n"]
[605,"2 02 03033 05 0000 151","Субвенции  бюджетам  муниципальных   районов   на оздоровление детей\n\n"]
[605,"2 02 03999 05 0000 151","Прочие субвенции бюджетам муниципальных районов\n\n\n"]
[605,"2 02 04011 05 0000 151","Межбюджетные  трансферты,  передаваемые  бюджетам муниципальных районов на премирование победителей Всероссийского   конкурса   на   звание \"Самый      благоустроенный город России\"\n\n\n"]
[605,"2 02 04012 05 0000 151","Межбюджетные  трансферты,  передаваемые  бюджетам муниципальных районов для компенсации дополнительных расходов, возникших  в  результате решений, принятых органами власти другого уровня\n\n\n\n"]
[605,"2 02 04014 05 0000 151","Межбюджетные  трансферты,  передаваемые  бюджетам муниципальных районов из  бюджетов  поселений  на осуществление части   полномочий по решению  вопросов  местного  значения в соответствии с заключенными соглашениями\n\n\n\n\n"]
["605"," 2 02 04052 05 0000 151","Межбюджетные трансферты, передаваемые бюджетам муниицпальных районов  на государственную поддержку муниципальных учреждений культуры, находящихся на территориях сельских поселений"]
["605","2 02 04053 05 0000 151","Межбюджетные трансферты, передаваемые бюджетам муницпальных районов  на государственную поддержку лучших работников муниципальных учреждений культуры, находящихся на территориях сельских поселений"]
[605,"2 02 04999 05 0000 151","Прочие  межбюджетные   трансферты,   передаваемые бюджетам муниципальных районов\n\n\n\n"]
["605","2 08 05000 05 0000 180","Перечисления из бюджетов муниципальных районов (в бюджеты муниципальных районов) для осуществления возврата (зачета) излишне уплаченных или излишне взысканных сумм налогов, сборов и иных платежей, а также сумм процентов за несвоевременное осуществление такого возврата и процентов, начисленных на излишне взысканные суммы"]
["605","2 18 05000 05 0000 151 ","Доходы бюджетов муниципальных районов от возврата бюджетами бюджетной системы Российской Федерации остатков субсидий, субвенций и иных межбюджетных трансфертов, имеющих целевое назначение, прошлых лет"]
["605","2 18 05010 05 0000 151 ","Доходы бюджетов муниципальных районов от возврата остатков субсидий, субвенций и иных межбюджетных трансфертов, имеющих целевое назначение, прошлых лет из бюджетов поселений "]
["605","2 18 05020 05 0000 151","Доходы бюджетов муниципальных районов от возврата остатков субсидий, субвенций и иных межбюджетных трансфертов, имеющих целевое назначение, прошлых лет из бюджетов государственных внебюджетных фондов"]
["605","2 18 05000 05 0000 180","Доходы бюджетов муниципальных районов от возврата  организациями остатков субсидий прошлых лет"]
["605","2 18 05010 05 0000 180","Доходы бюджетов муниципальных районов от возврата бюджетными учреждениями остатков субсидий прошлых лет"]
["605","2 18 05020 05 0000 180","Доходы бюджетов муниципальных районов от возврата автономными учреждениями остатков субсидий прошлых лет"]
["605","2 18 05030 05 0000 180","Доходы бюджетов муниципальных районов от возврата иными организациями остатков субсидий прошлых лет"]
[605,"2 19 05000 05 0000 151","Возврат остатков субсидий, субвенций и иных межбюджетных трансфертов, имеющих целевое назначение, прошлых лет из бюджетов муниципальных районов"]
["Палата имущественных и земельных отношений Кукморского муниципального района"]
[606,"1 08 07150 01 1000 110","Государственная пошлина за выдачу разрешения на установку рекламной конструкции"]
["606","1 11 02085 05 0000 120","Доходы от размещения сумм, аккумулируемых в ходе проведения аукционов по продаже акций находящихся в собственности муниципальных районов"]
[606,"1 11 05010 00 0000 120","Доходы, получаемые в виде арендной платы за земельные участки, государственная собственность на которые не разграничена, а также средства от продажи права на заключение договоров аренды указанных земельных участков"]
[606,"1 11 05013 05 0000 120","Доходы, получаемые в виде арендной платы за земельные участки, государственная собственность на которые не разграничена и которые расположены в границах межселенных территорий муниципальных районов, а также средства от продажи права на заключение договоров аренды указанных земельных участков"]
[606,"1 11 05013 10 0000 120","Доходы, получаемые в виде арендной платы за земельные участки, государственная собственность на которые не разграничена и которые расположены в границах сельских поселений, а также средства от продажи права на заключение договоров аренды указанных земельных участков"]
[606,"1 11 05013 13 0000 120","Доходы, получаемые в виде арендной платы за земельные участки, государственная собственность на которые не разграничена и которые расположены в границах городских поселений, а также средства от продажи права на заключение договоров аренды указанных земельных участков"]
[606,"1 11 05020 00 0000 120","Доходы, получаемые в виде арендной платы за земли после разграничения государственной собственности на землю, а также средства от продажи права на заключение договоров аренды указанных земельных участков (за исключением земельных участков бюджетных и автономных учреждений)"]
[606,"1 11 05025 05 0000 120","Доходы, получаемые в виде арендной платы, а также средства от продажи права на заключение договоров аренды за земли, находящиеся в собственности муниципальных районов (за исключением земельных участков муниципальных бюджетных и автономных учреждений)"]
[606,"1 11 05025 10 0000 120","Доходы, получаемые в виде арендной платы, а также средства от продажи права на заключение договоров аренды за земли, находящиеся в собственности сельских поселений (за исключением земельных участков муниципальных бюджетных и автономных учреждений)"]
[606,"1 11 05035 05 0000 120","Доходы от сдачи в аренду имущества, находящегося в оперативном управлении органов управления муниципальных районов и созданных ими учреждений (за исключением имущества муниципальных бюджетных и автономных учреждений)"]
["606","1 11 05075 05 0000 120","Доходы от сдачи в аренду имущества, составляющего казну муниципальных районов (за исключением земельных участков)  "]
[606,"1 11 07015 05 0000 120","Доходы от перечисления части прибыли, остающейся после уплаты налогов и иных обязательных платежей муниципальных унитарных предприятий, созданных муниципальными районами"]
[606,"1 11 08050 05 0000 120","Средства, получаемые от передачи имущества, находящегося в собственности муниципальных районов (за исключением имущества муниципальных бюджетных и автономных учреждений, а также имущества муниципальных унитарных предприятий, в том числе казенных), в залог, в доверительное управление"]
[606,"1 11 09040 00 0000 120","Прочие поступления от использования имущества, находящегося в государственной и муниципальной собственности (за исключением имущества бюджетных и автономных учреждений, а также имущества государственных и муниципальных унитарных предприятий, в том числе казенных)"]
[606,"1 11 09045 05 0000 120","Прочие поступления от использования имущества, находящегося в собственности муниципальных районов (за исключением имущества муниципальных бюджетных и автономных учреждений, а также имущества муниципальных унитарных предприятий, в том числе казенных)"]
["606"," 1 13 02065 05 0000 130","Доходы, поступающие в порядке возмещения расходов, понесенных в связи с эксплуатацией  имущества муниципальных районов"]
[606,"1 13 01995 05 0000 130","Прочие доходы от оказания платных услуг (работ) получателями средств бюджетов муниципальных районов"]
[606,"1 13 02995 05 0000 130","Прочие доходы от компенсации затрат  бюджетов муниципальных районов"]
[606,"1 14 01050 05 0000 410","Доходы  от продажи квартир, находящихся в собственности муниципальных районов."]
[606,"1 14 02050 05 0000 410","Доходы от реализации имущества, находящегося в собственности муниципальных районов (за исключением имущества муниципальных бюджетных и автономных учреждений, а также имущества муниципальных унитарных предприятий, в том числе казенных), в части реализации основных средств по указанному имуществу"]
[606,"1 14 02050 05 0000 440","Доходы от реализации имущества, находящегося в собственности муниципальных районов (за исключением имущества муниципальных бюджетных и автономных учреждений, а также имущества муниципальных унитарных предприятий, в том числе казенных), в части реализации материальных запасов по указанному имуществу"]
[606,"1 14 02052 05 0000 410","Доходы от реализации имущества, находящегося в оперативном управлении учреждений, находящихся в ведении органов управления муниципальных районов (за исключением имущества муниципальных бюджетных и автономных учреждений), в части реализации основных средств по указанному имуществу"]
[606,"1 14 02052 05 0000 440","Доходы от реализации имущества, находящегося в оперативном управлении учреждений, находящихся в ведении органов управления муниципальных районов (за исключением имущества муниципальных бюджетных и автономных учреждений), в части реализации материальных запасов по указанному имуществу"]
[606,"1 14 02053 05 0000 410","Доходы от реализации иного имущества, находящегося в собственности муниципальных районов (за исключением имущества муниципальных бюджетных и автономных учреждений, а также имущества муниципальных унитарных предприятий, в том числе казенных), в части реализации основных средств по указанному имуществу"]
[606,"1 14 02053 05 0000 440","Доходы от реализации иного имущества, находящегося в собственности муниципальных районов (за исключением имущества муниципальных бюджетных и автономных учреждений, а также имущества муниципальных унитарных предприятий, в том числе казенных), в части реализации материальных запасов по указанному имуществу"]
[606,"1 14 03050 05 0000 410","Средства от распоряжения и реализации конфискованного и иного имущества, обращенного в доходы муниципальных районов (в части реализации основных средств по указанному имуществу)"]
[606,"1 14 03050 05 0000 440","Средства от распоряжения и реализации конфискованного и иного имущества, обращенного в доходы муниципальных районов (в части реализации материальных запасов по указанному имуществу)"]
[606,"1 14 04050 05 0000 420","Доходы от продажи нематериальных активов, находящихся в собственности муниципальных районов"]
[606,"1 14 06000 00 0000 430","Доходы от продажи земельных участков, находящихся в государственной и муниципальной собственности (за исключением земельных участков бюджетных и автономных учреждений)"]
[606,"1 14 06010 00 0000 430","Доходы от продажи земельных участков, государственная собственность на которые не разграничена"]
[606,"1 14 06013 05 0000 430","Доходы от продажи земельных участков, государственная собственность на которые не разграничена и которые расположены в границах межселенных территорий муниципальных районов"]
[606,"1 14 06013 10 0000 430","Доходы от продажи земельных участков, государственная собственность на которые не разграничена и которые расположены в границах сельских поселений"]
[606,"1 14 06013 13 0000 430","Доходы от продажи земельных участков, государственная собственность на которые не разграничена и которые расположены в границах городских поселений"]
[606,"1 14 06020 00 0000 430","Доходы от продажи земельных участков, государственная собственность на которые разграничена (за исключением земельных участков бюджетных и автономных учреждений)"]
[606,"1 14 06025 05 0000 430","Доходы от продажи земельных участков, находящихся в собственности муниципальных районов (за исключением земельных участков муниципальных бюджетных и автономных учреждений)"]
[606,"1 14 06025 10 0000 430","Доходы от продажи земельных участков, находящихся в собственности сельских поселений (за исключением земельных участков муниципальных бюджетных и автономных учреждений)"]
[606,"1 17 01050 05 0000 180","Невыясненные поступления, зачисляемые в бюджеты муниципальных районов"]
[606,"1 17 02020 05 0000 180","Возмещение потерь сельскохозяйственного производства, связанных с изъятием сельскохозяйственных угодий, расположенных на межселенных территориях (по обязательствам, возникшим до 1 января 2008 года)"]
[606,"1 17 02020 10 0000 180","Возмещение потерь сельскохозяйственного производства, связанных с изъятием сельскохозяйственных угодий, расположенных на территориях сельских поселений (по обязательствам, возникшим до 1 января 2008 года)"]
[]
["         Глава Района                                   С.Д.Димитриев"]

{"sheet":"5","index":5,"n_rows":25,"n_cols":3,"rows_kept":25,"cut":false,"hidden":true,"merged":[[13,0,13,2],[5,0,5,2],[6,0,6,2],[7,0,7,2],[8,0,8,2],[10,0,10,1],[10,2,11,2]]}
[null,null,{"$f":"дата!$A$2&дата!$C$7","v":"Приложение №"}]
["                                                                                        к решению Кукморского районного",null,"к решению Кукморского"]
["                                                                                                                                                                                                                 Совета народных депутатов",null,"районного Совета"]
["                                                                                                                                                                                                                         от 24 декабря 2004г. №20",null,{"$f":"дата!C1","v":"от 28 марта 2016 г. № "}]
[]
["Перечень главных администраторов и администраторов  "]
["источников финансирования дефицита  бюджета муниципального районна  "]
["на 2016 год - органов местного самоуправления"]
[" "]
[]
["коды бюджетной классификации",null,"Наименование "]
["код администратора источника финансирования","источника финансирования дефицита бюджета"]
[]
["Финансово-бюджетная палата Кукморского муниципального района"]
[605,"01 02 00 00 05 0000 710"," Получение кредитов от кредитных организаций бюджетом муниципального района в валюте Российской Федерации "]
["605","01 02 00 00 05 0000 810"," Погашение бюджетом муниципального района кредитов от кредитных организаций в валюте Российской Федерации "]
[605,"01 03 00 00 05 0000 710","Получение  кредитов от других бюджетов бюджетной системы Российской Федерации  бюджетом муниципального района в валюте Российской Федерации."]
["605","1 03 00 00 05 0000 810","Погашение  бюджетом муниципального района кредитов от других бюджетов бюджетной системы Российской Федерации  в валюте Российской Федерации."]
[605,"01 05 02 01 00 0000 510","Увеличение прочих остатков денежных  средств бюджетов"]
[605,"01 05 02 01 00 0000 610","Уменьшение прочих остатков денежных средств бюджетов "]
[605,"01 06 04 00 01 0000 810","Исполнение государственных гарантии муниципальных районов в валюте Российской Федерации"]
[605,"01 06 05 01 05 0000 640","Возврат бюджетных кредитов, предоставленных юридическим лицам из муниципального бюджета "]
[]
[]
["         Глава Района                                   С.Д.Димитриев"]

{"sheet":"6","index":6,"n_rows":293,"n_cols":7,"rows_kept":293,"cut":false,"hidden":false,"merged":[[9,5,10,5],[5,0,5,4],[6,0,6,4],[7,0,7,4],[9,0,10,0],[9,2,10,2],[9,3,10,3],[9,4,10,4]]}
[null,null,{"$f":"дата!$A$2&дата!$C$8","v":"Приложение №3"}]
[null,null,"к решению Совета Кукморского"]
[null,null,"муниципального района"]
[null,null,{"$f":"дата!C1","v":"от 28 марта 2016 г. № "}]
[]
["Распределение бюджетных ассигнований по разделам и подразделам,"]
["          целевым статьям и видам расходов классификации расходов бюджетов"]
["бюджета Кукморского муниципального района на 2016 год"]
[null,null,null,null,null,"(рублей)"]
["Наименование",null,"РЗ, ПР","ЦСР","ВР","Сумма"]
[null,null,null,null,null,null,{"$f":"SUBTOTAL(9,F13:F12935)","v":6305684810.9099979}]
[]
["ОБЩЕГОСУДАРСТВЕННЫЕ ВОПРОСЫ",null,"0100",null,null,47254655.5]
["Функционирование высшего должностного лица субъекта Российской Федерации и муниципального образования",null,"0102",null,null,1611000]
["Непрограммные направления расходов",null,"0102","9900000000",null,1611000]
["Глава муниципального района",null,"0102","9900002030",null,1611000]
["Фонд оплаты труда государственных (муниципальных) органов и взносы по обязательному социальному страхованию",null,"0102","9900002030","121",1237000]
["Взносы по обязательному социальному страхованию на выплату денежного содержания и иные выплаты работникам государственных (муниципальных) органов",null,"0102","9900002030","129",374000]
["Функционирование законодательных (представительных) органов государственной власти и представительных органов муниципальных образований",null,"0103",null,null,7150246.6900000004]
["Непрограммные направления расходов",null,"0103","9900000000",null,7150246.6900000004]
["Центральный аппарат",null,"0103","9900002040",null,7150246.6900000004]
["Фонд оплаты труда государственных (муниципальных) органов и взносы по обязательному социальному страхованию",null,"0103","9900002040","121",3611000]
["Иные выплаты персоналу государственных (муниципальных) органов, за исключением фонда оплаты труда",null,"0103","9900002040","122",15619]
["Взносы по обязательному социальному страхованию на выплату денежного содержания и иные выплаты работникам государственных (муниципальных) органов",null,"0103","9900002040","129",1091000]
["Прочая закупка товаров, работ и услуг для обеспечения государственных (муниципальных) нужд",null,"0103","9900002040","244",2391124.19]
["Уплата прочих налогов, сборов и иных платежей",null,"0103","9900002040","852",41503.5]
["Функционирование Правительства Российской Федерации, высших исполнительных органов государственной власти субъектов Российской Федерации, местных администраций",null,"0104",null,null,16697222.710000001]
["Муниципальная программа «Развитие образования Кукморского муниципального района Республики Татарстан на 2015 – 2017 годы»",null,"0104","0200000000",null,255700]
["Подпрограмма «Развитие общего образования на 2015 – 2017 годы»",null,"0104","0220000000",null,255700]
["Фонд оплаты труда государственных (муниципальных) органов и взносы по обязательному социальному страхованию",null,"0104","0220025300","121",186600]
["Взносы по обязательному социальному страхованию на выплату денежного содержания и иные выплаты работникам государственных (муниципальных) органов",null,"0104","0220025300","129",56000]
["Прочая закупка товаров, работ и услуг для обеспечения государственных (муниципальных) нужд",null,"0104","0220025300","244",13100]
["Непрограммные направления расходов",null,"0104","9900000000",null,16441522.710000001]
["Центральный аппарат",null,"0104","9900002040",null,16185822.710000001]
["Фонд оплаты труда государственных (муниципальных) органов и взносы по обязательному социальному страхованию",null,"0104","9900002040","121",9072800]
["Иные выплаты персоналу государственных (муниципальных) органов, за исключением фонда оплаты труда",null,"0104","9900002040","122",1932]
["Взносы по обязательному социальному страхованию на выплату денежного содержания и иные выплаты работникам государственных (муниципальных) органов",null,"0104","9900002040","129",2739900]
["Прочая закупка товаров, работ и услуг для обеспечения государственных (муниципальных) нужд",null,"0104","9900002040","244",4365501.71]
["Уплата прочих налогов, сборов и иных платежей",null,"0104","9900002040","852",5689]
["Реализация государственных полномочий в области молодежной политики",null,"0104","9900025240",null,255700]
["Фонд оплаты труда государственных (муниципальных) органов и взносы по обязательному социальному страхованию",null,"0104","9900025240","121",186600]
["Взносы по обязательному социальному страхованию на выплату денежного содержания и иные выплаты работникам государственных (муниципальных) органов",null,"0104","9900025240","129",56000]
["Прочая закупка товаров, работ и услуг для обеспечения государственных (муниципальных) нужд",null,"0104","9900025240","244",13100]
["Судебная система",null,"0105",null,null,28679]
["Непрограммные направления расходов",null,"0105","9900000000",null,28679]
["Составление (изменение) списков кандидатов в присяжные заседатели федеральных судов общей юрисдикции в Российской Федерации за счет средств федерального бюджета",null,"0105","9900051200",null,28679]
["Прочая закупка товаров, работ и услуг для обеспечения государственных (муниципальных) нужд",null,"0105","9900051200","244",28679]
["Обеспечение деятельности финансовых, налоговых и таможенных органов и органов финансового (финансово-бюджетного) надзора",null,"0106",null,null,4428152]
["Муниципальная программа «Управление муниципальными финансами Кукморского муниципального района Республики Татарстан на 2015 – 2017 годы»",null,"0106","1800000000",null,3936162]
["Фонд оплаты труда государственных (муниципальных) органов и взносы по обязательному социальному страхованию",null,"0106","1800002040","121",2570000]
["Взносы по обязательному социальному страхованию на выплату денежного содержания и иные выплаты работникам государственных (муниципальных) органов",null,"0106","1800002040","129",776000]
["Прочая закупка товаров, работ и услуг для обеспечения государственных (муниципальных) нужд",null,"0106","1800002040","244",587862]
["Уплата прочих налогов, сборов и иных платежей",null,"0106","1800002040","852",1600]
["Уплата налога на имущество организаций и земельного налога",null,"0106","1800002950","851",700]
["Непрограммные направления расходов",null,"0106","9900000000",null,491990]
["Центральный аппарат",null,"0106","9900002040",null,491990]
["Фонд оплаты труда государственных (муниципальных) органов и взносы по обязательному социальному страхованию",null,"0106","9900002040","121",328000]
["Иные выплаты персоналу государственных (муниципальных) органов, за исключением фонда оплаты труда",null,"0106","9900002040","122",16000]
["Взносы по обязательному социальному страхованию на выплату денежного содержания и иные выплаты работникам государственных (муниципальных) органов",null,"0106","9900002040","129",99000]
["Прочая закупка товаров, работ и услуг для обеспечения государственных (муниципальных) нужд",null,"0106","9900002040","244",48990]
["Другие общегосударственные вопросы",null,"0113",null,null,17339355.100000001]
["Муниципальная программа «Социальная поддержка граждан Кукморского муниципального района Республики Татарстан» на 2015 – 2017 годы",null,"0113","0300000000",null,715600]
["Подпрограмма \"Улучшение социально-экономического положения семей\" на 2015 – 2020 годы",null,"0113","0350000000",null,715600]
["Фонд оплаты труда государственных (муниципальных) органов и взносы по обязательному социальному страхованию",null,"0113","0350025330","121",520000]
["Иные выплаты персоналу государственных (муниципальных) органов, за исключением фонда оплаты труда",null,"0113","0350025330","122",1600]
["Взносы по обязательному социальному страхованию на выплату денежного содержания и иные выплаты работникам государственных (муниципальных) органов",null,"0113","0350025330","129",157000]
["Прочая закупка товаров, работ и услуг для обеспечения государственных (муниципальных) нужд",null,"0113","0350025330","244",37000]
["Муниципальная программа «Обеспечение общественного порядка и противодействие преступности в Кукморском муниципальном районе на 2015 - 2017 годы\"",null,"0113","0600000000",null,15000]
["Подпрограмма «Профилактика терроризма и экстремизма в Кукморском муниципальном районе на 2015-2016гг.»",null,"0113","0630000000",null,15000]
["Прочая закупка товаров, работ и услуг для обеспечения государственных (муниципальных) нужд",null,"0113","0630010990","244",15000]
["Муниципальная программа «Развитие культуры Кукморского муниципального района Республики Татарстан на 2015 – 2017 годы»",null,"0113","0800000000",null,663522.43999999994]
["Подпрограмма \"Развитие архивного дела на 2015 - 2017 годы\"",null,"0113","08Е0000000",null,663522.43999999994]
["Фонд оплаты труда государственных (муниципальных) органов и взносы по обязательному социальному страхованию",null,"0113","08Е0044020","121",445000]
["Взносы по обязательному социальному страхованию на выплату денежного содержания и иные выплаты работникам государственных (муниципальных) органов",null,"0113","08Е0044020","129",134000]
["Прочая закупка товаров, работ и услуг для обеспечения государственных (муниципальных) нужд",null,"0113","08Е0044020","244",84522.44]
["Муниципальная программа «Управление муниципальным имуществом Кукморского муниципального района Республики Татарстан на 2015 – 2017 годы»",null,"0113","1600000000",null,1521580]
["Фонд оплаты труда государственных (муниципальных) органов и взносы по обязательному социальному страхованию",null,"0113","1600002040","121",934000]
["Взносы по обязательному социальному страхованию на выплату денежного содержания и иные выплаты работникам государственных (муниципальных) органов",null,"0113","1600002040","129",282000]
["Прочая закупка товаров, работ и услуг для обеспечения государственных (муниципальных) нужд",null,"0113","1600002040","244",270580]
["Уплата налога на имущество организаций и земельного налога",null,"0113","1600002950","851",35000]
["Муниципальная программа «Управление муниципальными финансами Кукморского муниципального района Республики Татарстан на 2015 – 2017 годы»",null,"0113","1800000000",null,10593252.93]
["Уплата налога на имущество организаций и земельного налога",null,"0113","1800002950","851",2800]
["Фонд оплаты труда казенных учреждений и взносы по обязательному социальному страхованию",null,"0113","1800029900","111",7309000]
["Взносы по обязательному социальному страхованию на выплаты по оплате труда работников и иные выплаты работникам учреждений",null,"0113","1800029900","119",2207643.9500000002]
["Прочая закупка товаров, работ и услуг для обеспечения государственных (муниципальных) нужд",null,"0113","1800029900","244",1070808.98]
["Уплата прочих налогов, сборов и иных платежей",null,"0113","1800029900","852",3000]
["Программа по реализации государственной национальной политики в Кукморском муниципальном районе на 2015-2020 годы",null,"0113","2000000000",null,80000]
["Прочая закупка товаров, работ и услуг для обеспечения государственных (муниципальных) нужд",null,"0113","2000010990","244",80000]
["Государственная программа \"Развитие юстиции в Республике Татарстан на 2014 – 2020 годы\"",null,"0113","2400000000",null,3000,{"$f":"C89&D89&E89","v":"01132400000000"}]
["Подпрограмма \"Реализация государственной политики в сфере юстиции в Республике Татарстан на 2014 – 2020 годы\"",null,"0113","2410000000",null,3000]
["Прочая закупка товаров, работ и услуг для обеспечения государственных (муниципальных) нужд",null,"0113","2410025390","244",3000]
["Муниципальная программа «Реализация антикоррупционной политики в Кукморском муниципальном районе Республики Татарстан на 2015-2020 годы»",null,"0113","2700000000",null,5000]
["Прочая закупка товаров, работ и услуг для обеспечения государственных (муниципальных) нужд",null,"0113","2700010990","244",5000]
["Непрограммные направления расходов",null,"0113","9900000000",null,3742399.73]
["Уплата налога на имущество организаций и земельного налога",null,"0113","9900002950",null,733226.4]
["Уплата налога на имущество организаций и земельного налога",null,"0113","9900002950","851",733226.4]
["Реализация государственных полномочий по образованию и организации деятельности комиссий по делам несовершеннолетних и защите их прав",null,"0113","9900025260",null,506500,{"$f":"C97&D97&E97","v":"01139900025260"}]
["Фонд оплаты труда государственных (муниципальных) органов и взносы по обязательному социальному страхованию",null,"0113","9900025260","121",375000]
["Взносы по обязательному социальному страхованию на выплату денежного содержания и иные выплаты работникам государственных (муниципальных) органов",null,"0113","9900025260","129",113000]
["Прочая закупка товаров, работ и услуг для обеспечения государственных (муниципальных) нужд",null,"0113","9900025260","244",18500,{"$f":"C100&D100&E100","v":"01139900025260244"}]
["Реализация государственных полномочий по образованию и организации деятельности административных комиссий",null,"0113","9900025270",null,244900]
["Фонд оплаты труда государственных (муниципальных) органов и взносы по обязательному социальному страхованию",null,"0113","9900025270","121",178000]
["Взносы по обязательному социальному страхованию на выплату денежного содержания и иные выплаты работникам государственных (муниципальных) органов",null,"0113","9900025270","129",54000]
["Прочая закупка товаров, работ и услуг для обеспечения государственных (муниципальных) нужд",null,"0113","9900025270","244",12900]
["Реализация государственных полномочий в области архивного дела",null,"0113","9900025340",null,55900]
["Прочая закупка товаров, работ и услуг для обеспечения государственных (муниципальных) нужд",null,"0113","9900025340","244",55900]
["Реализация государственных полномочий по определению перечня должностных лиц, уполномоченных составлять протоколы об административных правонарушениях",null,"0113","9900025350",null,370]
["Прочая закупка товаров, работ и услуг для обеспечения государственных (муниципальных) нужд",null,"0113","9900025350","244",370,{"$f":"C108&D108&E108","v":"01139900025350244"}]
["Государственная регистрация актов гражданского состояния за счет средств федерального бюджета",null,"0113","9900059300",null,1654000,{"$f":"C109&D109&E109","v":"01139900059300"}]
["Фонд оплаты труда государственных (муниципальных) органов и взносы по обязательному социальному страхованию",null,"0113","9900059300","121",618000]
["Иные выплаты персоналу государственных (муниципальных) органов, за исключением фонда оплаты труда",null,"0113","9900059300","122",28000]
["Взносы по обязательному социальному страхованию на выплату денежного содержания и иные выплаты работникам государственных (муниципальных) органов",null,"0113","9900059300","129",187000]
["Прочая закупка товаров, работ и услуг для обеспечения государственных (муниципальных) нужд",null,"0113","9900059300","244",721000]
["Субвенции",null,"0113","9900059300","530",100000]
["Обеспечение деятельности подведомственных учреждений",null,"0113","9900092990",null,547503.32999999996]
["Прочая закупка товаров, работ и услуг для обеспечения государственных (муниципальных) нужд",null,"0113","9900092990","244",541457.84]
["Уплата прочих налогов, сборов и иных платежей",null,"0113","9900092990","852",6045.49]
["НАЦИОНАЛЬНАЯ ОБОРОНА",null,"0200",null,null,2352800]
["Мобилизационная и вневойсковая подготовка",null,"0203",null,null,2352800]
["Непрограммные направления расходов",null,"0203","9900000000",null,2352800]
["Осуществление первичного воинского учета на территориях, где отсутствуют военные комиссариаты за счет средств федерального бюджета",null,"0203","9900051180",null,2352800]
["Субвенции",null,"0203","9900051180","530",2352800]
["НАЦИОНАЛЬНАЯ БЕЗОПАСНОСТЬ И ПРАВООХРАНИТЕЛЬНАЯ ДЕЯТЕЛЬНОСТЬ",null,"0300",null,null,1575500,{"$f":"C123&D123&E123","v":"0300"}]
["Защита населения и территории от чрезвычайных ситуаций природного и техногенного характера, гражданская оборона",null,"0309",null,null,1144200]
["Муниципальная программа «Защита населения и территорий от чрезвычайных ситуаций, обеспечение пожарной безопасности и безопасности людей на водных объектах в Кукморском муниципальном районе Республики Татарстан на 2015 – 2017 годы»",null,"0309","0700000000",null,1144200]
["Подпрограмма «Снижение рисков и смягчение последствий чрезвычайных ситуаций природного и техногенного характера в Кукморском муниципальном районе Республики Татарстан на 2015 – 2017 годы»",null,"0309","0720000000",null,1144200]
["Прочая закупка товаров, работ и услуг для обеспечения государственных (муниципальных) нужд",null,"0309","0720007420","244",100000,{"$f":"C127&D127&E127","v":"03090720007420244"}]
["Фонд оплаты труда казенных учреждений и взносы по обязательному социальному страхованию",null,"0309","0720022670","111",793000]
["Взносы по обязательному социальному страхованию на выплаты по оплате труда работников и иные выплаты работникам учреждений",null,"0309","0720022670","119",239000]
["Прочая закупка товаров, работ и услуг для обеспечения государственных (муниципальных) нужд",null,"0309","0720022670","244",12200,{"$f":"C130&D130&E130","v":"03090720022670244"}]
["Другие вопросы в области национальной безопасности и правоохранительной деятельности",null,"0314",null,null,431300,{"$f":"C131&D131&E131","v":"0314"}]
["Муниципальная программа «Обеспечение общественного порядка и противодействие преступности в Кукморском муниципальном районе на 2015 - 2017 годы\"",null,"0314","0600000000",null,431300,{"$f":"C132&D132&E132","v":"03140600000000"}]
["Подпрограмма \"Организация деятельности по профилактике правонарушений и преступлений в Республике Татарстан на 2014 – 2020 годы\"",null,"0314","0610000000",null,431300,{"$f":"C133&D133&E133","v":"03140610000000"}]
["Фонд оплаты труда государственных (муниципальных) органов и взносы по обязательному социальному страхованию",null,"0314","0610010990","121",431300]
["НАЦИОНАЛЬНАЯ ЭКОНОМИКА",null,"0400",null,null,19914317.550000001]
["Сельское хозяйство и рыболовство",null,"0405",null,null,2101600,{"$f":"C136&D136&E136","v":"0405"}]
["Непрограммные направления расходов",null,"0405","9900000000",null,2101600]
["Средства, передаваемые для компенсации дополнительных расходов, возникших в результате решений, принятых органами власти другого уровня",null,"0405","9900025360",null,2101600]
["Прочая закупка товаров, работ и услуг для обеспечения государственных (муниципальных) нужд",null,"0405","9900025360","244",2101600,{"$f":"C139&D139&E139","v":"04059900025360244"}]
["Дорожное хозяйство (дорожные фонды)",null,"0409",null,null,17812717.550000001]
["Муниципальная программа «Обеспечение качественным жильем и услугами жилищно-коммунального хозяйства населения, благоустройства территории Кукморского муниципального района Республики Татарстан на 2015 - 2017 годы»",null,"0409","0400000000",null,755643.55,{"$f":"C141&D141&E141","v":"04090400000000"}]
["Подпрограмма «Благоустройство территории Кукморского муниципального района на 2015 – 2017 годы»",null,"0409","0490000000",null,755643.55]
["Прочая закупка товаров, работ и услуг для обеспечения государственных (муниципальных) нужд",null,"0409","0490078020","244",755643.55,{"$f":"C143&D143&E143","v":"04090490078020244"}]
["Непрограммные направления расходов",null,"0409","9900000000",null,366474,{"$f":"C144&D144&E144","v":"04099900000000"}]
["Межбюджетные трансферты, передаваемые бюджетам муниципальных образований для компенсации дополнительных расходов, возникших в результате решений, принятых органами власти другого уровня",null,"0409","9900025151",null,366474,{"$f":"C145&D145&E145","v":"04099900025151"}]
["Иные межбюджетные трансферты",null,"0409","9900025151","540",366474,{"$f":"C146&D146&E146","v":"04099900025151540"}]
["Строительство, реконструкция и ремонт (текущий и капитальный) автомобильных дорог за счет муниципального Дорожного фонда",null,"0409","Д100003650",null,16690600]
["Прочая закупка товаров, работ и услуг для обеспечения государственных (муниципальных) нужд",null,"0409","Д100003650","244",16690600,{"$f":"C148&D148&E148","v":"0409Д100003650244"}]
["ЖИЛИЩНО-КОММУНАЛЬНОЕ ХОЗЯЙСТВО",null,"0500",null,null,64596491.600000001]
["Жилищное хозяйство",null,"0501",null,null,60796035.149999999,{"$f":"C150&D150&E150","v":"0501"}]
["Муниципальная программа «Обеспечение качественным жильем и услугами жилищно-коммунального хозяйства населения, благоустройства территории Кукморского муниципального района Республики Татарстан на 2015 - 2017 годы»",null,"0501","0400000000",null,60796035.149999999,{"$f":"C151&D151&E151","v":"05010400000000"}]
["Подпрограмма \"Реализация мероприятий Республиканской адресной программы по переселению граждан из аварийного жилищного фонда в 2014 – 2017 годах\"",null,"0501","0440000000",null,41301035.149999999,{"$f":"C152&D152&E152","v":"05010440000000"}]
["Иные выплаты населению",null,"0501","0440095020","360",41301035.149999999,{"$f":"C153&D153&E153","v":"05010440095020360"}]
["Подпрограмма «Реализация мероприятий муниципальной программы капитального ремонта общего имущества в многоквартирных домах, расположенных на территории Кукморского муниципального района Республики Татарстан в 2015 – 2017 годах»",null,"0501","0450000000",null,4388000]
["Субсидии некоммерческим организациям (за исключением государственных (муниципальных) учреждений)",null,"0501","0450096010","630",4388000,{"$f":"C155&D155&E155","v":"05010450096010630"}]
["Подпрограмма «Реализация муниципальной политики в сфере архитектуры, градо-строительства, строительства, промышленности строительных материалов, в жилищной сфере и коммунальном хозяйстве на 2015 – 2017 годы»",null,"0501","0480000000",null,15107000]
["Прочая закупка товаров, работ и услуг для обеспечения государственных (муниципальных) нужд",null,"0501","0480076040","244",15107000,{"$f":"C157&D157&E157","v":"05010480076040244"}]
["Коммунальное хозяйство",null,"0502",null,null,268059.32]
["Непрограммные направления расходов",null,"0502","9900000000",null,268059.32,{"$f":"C159&D159&E159","v":"05029900000000"}]
["Межбюджетные трансферты, передаваемые бюджетам муниципальных образований для компенсации дополнительных расходов, возникших в результате решений, принятых органами власти другого уровня",null,"0502","9900025151",null,268059.32]
["Иные межбюджетные трансферты",null,"0502","9900025151","540",268059.32]
["Благоустройство",null,"0503",null,null,3532397.13]
["Муниципальная программа «Обеспечение качественным жильем и услугами жилищно-коммунального хозяйства населения, благоустройства территории Кукморского муниципального района Республики Татарстан на 2015 - 2017 годы»",null,"0503","0400000000",null,1155000]
["Подпрограмма «Благоустройство территории Кукморского муниципального района на 2015 – 2017 годы»",null,"0503","0490000000",null,1155000]
["Прочая закупка товаров, работ и услуг для обеспечения государственных (муниципальных) нужд",null,"0503","0490078040","244",1155000]
["Муниципальная программа «Обеспечение общественного порядка и противодействие преступности в Кукморском муниципальном районе на 2015 - 2017 годы\"",null,"0503","0600000000",null,1500000]
["Подпрограмма «Повышение безопасности дорожного движения в Кукморском муниципальном районе на 2015-2020 годы»",null,"0503","0620000000",null,1500000]
["Прочая закупка товаров, работ и услуг для обеспечения государственных (муниципальных) нужд",null,"0503","0620078020","244",1500000]
["Непрограммные направления расходов",null,"0503","9900000000",null,877397.13]
["Межбюджетные трансферты, передаваемые бюджетам муниципальных образований для компенсации дополнительных расходов, возникших в результате решений, принятых органами власти другого уровня",null,"0503","9900025151",null,877397.13]
["Иные межбюджетные трансферты",null,"0503","9900025151","540",877397.13]
["ОХРАНА ОКРУЖАЮЩЕЙ СРЕДЫ",null,"0600",null,null,500000]
["Охрана объектов растительного и животного мира и среды их обитания",null,"0603",null,null,500000,{"$f":"C173&D173&E173","v":"0603"}]
["Муниципальная программа «Охрана окружающей среды, воспроизводство и использование природных ресурсов Кукморского муниципального района Республики Татарстан на 2015 год»",null,"0603","0900000000",null,500000]
["Подпрограмма \"Регулирование качества окружающей среды Республики Татарстан на 2014 – 2020 годы\"",null,"0603","0910000000",null,500000]
["Прочая закупка товаров, работ и услуг для обеспечения государственных (муниципальных) нужд",null,"0603","0910019100","244",500000,{"$f":"C176&D176&E176","v":"06030910019100244"}]
["ОБРАЗОВАНИЕ",null,"0700",null,null,782417178.36000001]
["Дошкольное образование",null,"0701",null,null,185173066.62]
["Муниципальная программа «Развитие образования Кукморского муниципального района Республики Татарстан на 2015 – 2017 годы»",null,"0701","0200000000",null,183805066.62]
["Подпрограмма «Развитие дошкольного образования на 2015 – 2017 годы»",null,"0701","0210000000",null,183805066.62,{"$f":"C180&D180&E180","v":"07010210000000"}]
["Субсидии бюджетным учреждениям на финансовое обеспечение государственного (муниципального) задания на оказание государственных (муниципальных) услуг (выполнение работ)",null,"0701","0210025370","611",68240600,{"$f":"C181&D181&E181","v":"07010210025370611"}]
["Субсидии бюджетным учреждениям на финансовое обеспечение государственного (муниципального) задания на оказание государственных (муниципальных) услуг (выполнение работ)",null,"0701","0210042000","611",115564466.62]
["Муниципальная программа «Обеспечение общественного порядка и противодействие преступности в Кукморском муниципальном районе на 2015 - 2017 годы\"",null,"0701","0600000000",null,1368000,{"$f":"C183&D183&E183","v":"07010600000000"}]
["Подпрограмма «Профилактика терроризма и экстремизма в Кукморском муниципальном районе на 2015-2016гг.»",null,"0701","0630000000",null,1368000]
["Субсидии бюджетным учреждениям на финансовое обеспечение государственного (муниципального) задания на оказание государственных (муниципальных) услуг (выполнение работ)",null,"0701","0630010990","611",1368000,{"$f":"C185&D185&E185","v":"07010630010990611"}]
["Общее образование",null,"0702",null,null,572577086.00999999]
["Муниципальная программа «Развитие образования Кукморского муниципального района Республики Татарстан на 2015 – 2017 годы»",null,"0702","0200000000",null,570598258.61000001,{"$f":"C187&D187&E187","v":"07020200000000"}]
["Подпрограмма «Развитие общего образования на 2015 – 2017 годы»",null,"0702","0220000000",null,498980156.48000002,{"$f":"C188&D188&E188","v":"07020220000000"}]
["Субсидии бюджетным учреждениям на финансовое обеспечение государственного (муниципального) задания на оказание государственных (муниципальных) услуг (выполнение работ)",null,"0702","0220025280","611",268287800,{"$f":"C189&D189&E189","v":"07020220025280611"}]
["Субсидии бюджетным учреждениям на финансовое обеспечение государственного (муниципального) задания на оказание государственных (муниципальных) услуг (выполнение работ)",null,"0702","0220042100","611",230675001.36000001,{"$f":"C190&D190&E190","v":"07020220042100611"}]
["Субсидии бюджетным учреждениям на финансовое обеспечение государственного (муниципального) задания на оказание государственных (муниципальных) услуг (выполнение работ)",null,"0702","0220043620","611",17355.12]
["Подпрограмма «Развитие дополнительного образования на 2015 – 2017 годы»",null,"0702","0230000000",null,71618102.129999995,{"$f":"C192&D192&E192","v":"07020230000000"}]
["Субсидии бюджетным учреждениям на финансовое обеспечение государственного (муниципального) задания на оказание государственных (муниципальных) услуг (выполнение работ)",null,"0702","0230042310","611",17676701.07]
["Субсидии бюджетным учреждениям на финансовое обеспечение государственного (муниципального) задания на оказание государственных (муниципальных) услуг (выполнение работ)",null,"0702","0230042320","611",13607515.619999999]
["Субсидии бюджетным учреждениям на финансовое обеспечение государственного (муниципального) задания на оказание государственных (муниципальных) услуг (выполнение работ)",null,"0702","0230042330","611",40333885.439999998]
["Муниципальная программа «Обеспечение общественного порядка и противодействие преступности в Кукморском муниципальном районе на 2015 - 2017 годы\"",null,"0702","0600000000",null,1944000,{"$f":"C196&D196&E196","v":"07020600000000"}]
["Подпрограмма «Профилактика терроризма и экстремизма в Кукморском муниципальном районе на 2015-2016гг.»",null,"0702","0630000000",null,1944000]
["Субсидии бюджетным учреждениям на финансовое обеспечение государственного (муниципального) задания на оказание государственных (муниципальных) услуг (выполнение работ)",null,"0702","0630010990","611",1944000]
["Муниципальная программа «Развитие молодежной политики, физической культуры и спорта в Кукморском муниципальном районе Республики Татарстан на 2015 – 2017 годы»",null,"0702","1000000000",null,34827.4,{"$f":"C199&D199&E199","v":"07021000000000"}]
["Подпрограмма «Развитие физической культуры и спорта в Кукморском муниципальном районе Республики Татарстан на 2015 – 2017 годы»",null,"0702","1010000000",null,34827.4,{"$f":"C200&D200&E200","v":"07021010000000"}]
["Фонд оплаты труда государственных (муниципальных) органов и взносы по обязательному социальному страхованию",null,"0702","1010042330","121",34827.4]
["Молодежная политика и оздоровление детей",null,"0707",null,null,11923468.33]
["Муниципальная программа «Обеспечение общественного порядка и противодействие преступности в Кукморском муниципальном районе на 2015 - 2017 годы\"",null,"0707","0600000000",null,1000,{"$f":"C203&D203&E203","v":"07070600000000"}]
["Подпрограмма «Профилактика терроризма и экстремизма в Кукморском муниципальном районе на 2015-2016гг.»",null,"0707","0630000000",null,1000]
["Прочая закупка товаров, работ и услуг для обеспечения государственных (муниципальных) нужд",null,"0707","0630010990","244",1000,{"$f":"C205&D205&E205","v":"07070630010990244"}]
["Муниципальная программа «Развитие молодежной политики, физической культуры и спорта в Кукморском муниципальном районе Республики Татарстан на 2015 – 2017 годы»",null,"0707","1000000000",null,11703468.33]
["Подпрограмма «Сельская молодежь Кукморского муниципального района Республики Татарстан на 2015 – 2017 годы»",null,"0707","1040000000",null,11703468.33,{"$f":"C207&D207&E207","v":"07071040000000"}]
["Субсидии бюджетным учреждениям на финансовое обеспечение государственного (муниципального) задания на оказание государственных (муниципальных) услуг (выполнение работ)",null,"0707","1040043190","611",11703468.33]
["Программа по реализации государственной национальной политики в Кукморском муниципальном районе на 2015-2020 годы",null,"0707","2000000000",null,204000]
["Иные выплаты персоналу казенных учреждений, за исключением фонда оплаты труда",null,"0707","2000010990","112",90000]
["Иные выплаты, за исключением фонда оплаты труда казенных учреждений, лицам, привлекаемым согласно законодательству для выполнения отдельных полномочий",null,"0707","2000010990","113",4000]
["Прочая закупка товаров, работ и услуг для обеспечения государственных (муниципальных) нужд",null,"0707","2000010990","244",110000]
["Муниципальная программа «Реализация антикоррупционной политики в Кукморском муниципальном районе Республики Татарстан на 2015-2020 годы»",null,"0707","2700000000",null,15000,{"$f":"C213&D213&E213","v":"07072700000000"}]
["Прочая закупка товаров, работ и услуг для обеспечения государственных (муниципальных) нужд",null,"0707","2700010990","244",15000,"07072700010990244"]
["Другие вопросы в области образования",null,"0709",null,null,12743557.4]
["Муниципальная программа «Развитие образования Кукморского муниципального района Республики Татарстан на 2015 – 2017 годы»",null,"0709","0200000000",null,12340057.4]
["Подпрограмма «Развитие общего образования на 2015 – 2017 годы»",null,"0709","0220000000",null,4906900]
["Фонд оплаты труда казенных учреждений и взносы по обязательному социальному страхованию",null,"0709","0220025301","111",3507100]
["Иные выплаты персоналу казенных учреждений, за исключением фонда оплаты труда",null,"0709","0220025301","112",72000,{"$f":"C219&D219&E219","v":"07090220025301112"}]
["Взносы по обязательному социальному страхованию на выплаты по оплате труда работников и иные выплаты работникам учреждений",null,"0709","0220025301","119",876000]
["Прочая закупка товаров, работ и услуг для обеспечения государственных (муниципальных) нужд",null,"0709","0220025301","244",366700]
["Уплата прочих налогов, сборов и иных платежей",null,"0709","0220025301","852",7000,{"$f":"C222&D222&E222","v":"07090220025301852"}]
["Фонд оплаты труда государственных (муниципальных) органов и взносы по обязательному социальному страхованию",null,"0709","0220043624","121",78100]
["Подпрограмма «Развитие системы оценки качества образования на 2015 – 2017 годы»",null,"0709","0250000000",null,7433157.4000000004]
["Фонд оплаты труда казенных учреждений и взносы по обязательному социальному страхованию",null,"0709","0250042520","111",2802000]
["Иные выплаты персоналу казенных учреждений, за исключением фонда оплаты труда",null,"0709","0250042520","112",274822.8]
["Иные выплаты, за исключением фонда оплаты труда казенных учреждений, лицам, привлекаемым согласно законодательству для выполнения отдельных полномочий",null,"0709","0250042520","113",186050]
["Взносы по обязательному социальному страхованию на выплаты по оплате труда работников и иные выплаты работникам учреждений",null,"0709","0250042520","119",846000]
["Прочая закупка товаров, работ и услуг для обеспечения государственных (муниципальных) нужд",null,"0709","0250042520","244",3280675.79]
["Уплата налога на имущество организаций и земельного налога",null,"0709","0250042520","851",41200]
["Уплата прочих налогов, сборов и иных платежей",null,"0709","0250042520","852",2408.81,{"$f":"C231&D231&E231","v":"07090250042520852"}]
["Муниципальная программа «Обеспечение общественного порядка и противодействие преступности в Кукморском муниципальном районе на 2015 - 2017 годы\"",null,"0709","0600000000",null,3500,{"$f":"C232&D232&E232","v":"07090600000000"}]
["Подпрограмма «Профилактика терроризма и экстремизма в Кукморском муниципальном районе на 2015-2016гг.»",null,"0709","0630000000",null,3500]
["Прочая закупка товаров, работ и услуг для обеспечения государственных (муниципальных) нужд",null,"0709","0630010990","244",3500]
["Программа по реализации государственной национальной политики в Кукморском муниципальном районе на 2015-2020 годы",null,"0709","2000000000",null,390000,{"$f":"C235&D235&E235","v":"07092000000000"}]
["Прочая закупка товаров, работ и услуг для обеспечения государственных (муниципальных) нужд",null,"0709","2000010990","244",390000]
["Муниципальная программа «Реализация антикоррупционной политики в Кукморском муниципальном районе Республики Татарстан на 2015-2020 годы»",null,"0709","2700000000",null,10000]
["Прочая закупка товаров, работ и услуг для обеспечения государственных (муниципальных) нужд",null,"0709","2700010990","244",10000,{"$f":"C238&D238&E238","v":"07092700010990244"}]
["КУЛЬТУРА, КИНЕМАТОГРАФИЯ",null,"0800",null,null,93660373.379999995]
["Культура",null,"0801",null,null,93660373.379999995]
["Муниципальная программа «Обеспечение общественного порядка и противодействие преступности в Кукморском муниципальном районе на 2015 - 2017 годы\"",null,"0801","0600000000",null,3500,{"$f":"C241&D241&E241","v":"08010600000000"}]
["Подпрограмма «Профилактика терроризма и экстремизма в Кукморском муниципальном районе на 2015-2016гг.»",null,"0801","0630000000",null,3500]
["Субсидии бюджетным учреждениям на финансовое обеспечение государственного (муниципального) задания на оказание государственных (муниципальных) услуг (выполнение работ)",null,"0801","0630010990","611",3500,{"$f":"C243&D243&E243","v":"08010630010990611"}]
["Муниципальная программа «Развитие культуры Кукморского муниципального района Республики Татарстан на 2015 – 2017 годы»",null,"0801","0800000000",null,93571712.640000001]
["Подпрограмма «Развитие музейного дела на 2015 – 2017 годы»",null,"0801","0810000000",null,2685000,{"$f":"C245&D245&E245","v":"08010810000000"}]
["Субсидии бюджетным учреждениям на финансовое обеспечение государственного (муниципального) задания на оказание государственных (муниципальных) услуг (выполнение работ)",null,"0801","0810044090","611",2685000]
["Подпрограмма «Развитие библиотечного дела на 2015 – 2017 годы»",null,"0801","0830000000",null,19057600]
["Субсидии бюджетным учреждениям на финансовое обеспечение государственного (муниципального) задания на оказание государственных (муниципальных) услуг (выполнение работ)",null,"0801","0830044090","611",19040700,{"$f":"C248&D248&E248","v":"08010830044090611"}]
["Субсидии бюджетным учреждениям на иные цели",null,"0801","0830051440","612",16900]
["Подпрограмма «Развитие клубов на 2015 – 2017 годы»",null,"0801","0840000000",null,71829112.640000001]
["Субсидии бюджетным учреждениям на финансовое обеспечение государственного (муниципального) задания на оказание государственных (муниципальных) услуг (выполнение работ)",null,"0801","0840044091","611",71829112.640000001,{"$f":"C251&D251&E251","v":"08010840044091611"}]
["Программа по реализации государственной национальной политики в Кукморском муниципальном районе на 2015-2020 годы",null,"0801","2000000000",null,75160.740000000005,{"$f":"C252&D252&E252","v":"08012000000000"}]
["Субсидии бюджетным учреждениям на финансовое обеспечение государственного (муниципального) задания на оказание государственных (муниципальных) услуг (выполнение работ)",null,"0801","2000010990","611",75160.740000000005]
["Муниципальная программа «Реализация антикоррупционной политики в Кукморском муниципальном районе Республики Татарстан на 2015-2020 годы»",null,"0801","2700000000",null,10000,{"$f":"C254&D254&E254","v":"08012700000000"}]
["Субсидии бюджетным учреждениям на финансовое обеспечение государственного (муниципального) задания на оказание государственных (муниципальных) услуг (выполнение работ)",null,"0801","2700010990","611",10000,{"$f":"C255&D255&E255","v":"08012700010990611"}]
["ЗДРАВООХРАНЕНИЕ",null,"0900",null,null,689500,{"$f":"C256&D256&E256","v":"0900"}]
["Санитарно-эпидемиологическое благополучие",null,"0907",null,null,689500]
["Муниципальная программа «Развитие здравоохранения Кукморского муниципального района Республики Татарстан на 2015-2017 годы»",null,"0907","0100000000",null,689500]
["Подпрограмма «Профилактика заболеваний и формирование здорового образа жизни. Развитие первичной медико-санитарной помощи»",null,"0907","0110000000",null,689500]
["Прочая закупка товаров, работ и услуг для обеспечения государственных (муниципальных) нужд",null,"0907","0110002110","244",689500,{"$f":"C260&D260&E260","v":"09070110002110244"}]
["СОЦИАЛЬНАЯ ПОЛИТИКА",null,"1000",null,null,17587000]
["Социальное обеспечение населения",null,"1003",null,null,7872000,{"$f":"C262&D262&E262","v":"1003"}]
["Муниципальная программа «Социальная поддержка граждан Кукморского муниципального района Республики Татарстан» на 2015 – 2017 годы",null,"1003","0300000000",null,7872000]
["Подпрограмма «Социальные выплаты» на 2015 – 2017 годы",null,"1003","0310000000",null,7872000,{"$f":"C264&D264&E264","v":"10030310000000"}]
["Прочая закупка товаров, работ и услуг для обеспечения государственных (муниципальных) нужд",null,"1003","0310005410","244",614000]
["Субсидии бюджетным учреждениям на финансовое обеспечение государственного (муниципального) задания на оказание государственных (муниципальных) услуг (выполнение работ)",null,"1003","0310005510","611",7258000]
["Охрана семьи и детства",null,"1004",null,null,9715000]
["Муниципальная программа «Социальная поддержка граждан Кукморского муниципального района Республики Татарстан» на 2015 – 2017 годы",null,"1004","0300000000",null,9715000]
["Подпрограмма \"Улучшение социально-экономического положения семей\" на 2015 – 2020 годы",null,"1004","0350000000",null,9715000]
["Пособия, компенсации, меры социальной поддержки по публичным нормативным обязательствам",null,"1004","0350013200","313",9715000]
["ФИЗИЧЕСКАЯ КУЛЬТУРА И СПОРТ",null,"1100",null,null,1349528.04]
["Массовый спорт",null,"1102",null,null,1349528.04]
["Муниципальная программа «Социальная поддержка граждан Кукморского муниципального района Республики Татарстан» на 2015 – 2017 годы",null,"1102","0300000000",null,385500]
["Подпрограмма Кукморского муниципального района \"Доступная среда на 2015-2017 годы\"",null,"1102","0360000000",null,385500]
["Прочая закупка товаров, работ и услуг для обеспечения государственных (муниципальных) нужд",null,"1102","0360012870","244",385500]
["Муниципальная программа «Развитие молодежной политики, физической культуры и спорта в Кукморском муниципальном районе Республики Татарстан на 2015 – 2017 годы»",null,"1102","1000000000",null,549028.04]
["Подпрограмма «Развитие физической культуры и спорта в Кукморском муниципальном районе Республики Татарстан на 2015 – 2017 годы»",null,"1102","1010000000",null,549028.04]
["Иные выплаты, за исключением фонда оплаты труда казенных учреждений, лицам, привлекаемым согласно законодательству для выполнения отдельных полномочий",null,"1102","1010012870","113",148850]
["Прочая закупка товаров, работ и услуг для обеспечения государственных (муниципальных) нужд",null,"1102","1010012870","244",400178.04]
["Программа по реализации государственной национальной политики в Кукморском муниципальном районе на 2015-2020 годы",null,"1102","2000000000",null,415000]
["Прочая закупка товаров, работ и услуг для обеспечения государственных (муниципальных) нужд",null,"1102","2000010990","244",415000]
["МЕЖБЮДЖЕТНЫЕ ТРАНСФЕРТЫ ОБЩЕГО ХАРАКТЕРА БЮДЖЕТАМ СУБЪЕКТОВ РОССИЙСКОЙ ФЕДЕРАЦИИ И МУНИЦИПАЛЬНЫХ ОБРАЗОВАНИЙ",null,"1400",null,null,29649300]
["Дотации на выравнивание бюджетной обеспеченности субъектов Российской Федерации и муниципальных образований",null,"1401",null,null,24354900]
["Муниципальная программа «Управление муниципальными финансами Кукморского муниципального района Республики Татарстан на 2015 – 2017 годы»",null,"1401","1800000000",null,24354900]
["Дотации на выравнивание бюджетной обеспеченности",null,"1401","1800080040","511",22562000]
["Дотации на выравнивание бюджетной обеспеченности",null,"1401","1800080060","511",1792900]
["Иные дотации",null,"1402",null,null,5294400]
["Муниципальная программа «Управление муниципальными финансами Кукморского муниципального района Республики Татарстан на 2015 – 2017 годы»",null,"1402","1800000000",null,5294400]
["Иные дотации",null,"1402","1800080040","512",5294400]
["Итого","Итого",null,null,null,1061546644.4299999]
[]
[]
["         Глава Района                                   С.Д.Димитриев"]

{"sheet":"7","index":7,"n_rows":371,"n_cols":7,"rows_kept":371,"cut":false,"hidden":false,"merged":[[5,0,5,5],[6,0,6,5],[8,0,9,0],[8,2,9,2],[8,3,9,3],[8,4,9,4],[8,5,9,5],[8,1,9,1]]}
[null,null,{"$f":"дата!$A$2&дата!$C$9","v":"Приложение №4"}]
[null,null,"к решению Совета Кукморского"]
[null,null,"муниципального района"]
[null,null,{"$f":"дата!C1","v":"от 28 марта 2016 г. № "}]
[]
["Ведомственная структура расходов"]
["бюджета Кукморского муниципального района на 2016 год"]
[null,null,null,null,null,"(рублей)"]
["Наименование","КВСР","Рз, ПР","ЦСР","ВР","Сумма"]
[]
[]
["Исполнительный комитет Кукморского муниципального района Республики Татарстан","601",null,null,null,114219630.97,{"$f":"F12-свод16!I13*1000","v":-887392839.02999985}]
["ОБЩЕГОСУДАРСТВЕННЫЕ ВОПРОСЫ","601","0100",null,null,28341752.27]
["Функционирование Правительства Российской Федерации, высших исполнительных органов государственной власти субъектов Российской Федерации, местных администраций","601","0104",null,null,13322887.57]
["Непрограммные направления расходов","601","0104","9900000000",null,13322887.57]
["Центральный аппарат","601","0104","9900002040",null,13322887.57]
["Фонд оплаты труда государственных (муниципальных) органов и взносы по обязательному социальному страхованию","601","0104","9900002040","121",6963000,{"$f":"C17&D17&E17","v":"01049900002040121"}]
["Иные выплаты персоналу государственных (муниципальных) органов, за исключением фонда оплаты труда","601","0104","9900002040","122",1932,"01049900002040122"]
["Взносы по обязательному социальному страхованию на выплату денежного содержания и иные выплаты работникам государственных (муниципальных) органов","601","0104","9900002040","129",2102900,"01049900002040129"]
["Прочая закупка товаров, работ и услуг для обеспечения государственных (муниципальных) нужд","601","0104","9900002040","244",4255008.57,"01049900002040244"]
["Уплата прочих налогов, сборов и иных платежей","601","0104","9900002040","852",47]
["Судебная система","601","0105",null,null,28679,"0105"]
["Непрограммные направления расходов","601","0105","9900000000",null,28679]
["Составление (изменение) списков кандидатов в присяжные заседатели федеральных судов общей юрисдикции в Российской Федерации за счет средств федерального бюджета","601","0105","9900051200",null,28679]
["Прочая закупка товаров, работ и услуг для обеспечения государственных (муниципальных) нужд","601","0105","9900051200","244",28679]
["Другие общегосударственные вопросы","601","0113",null,null,14990185.699999999,{"$f":"C26&D26&E26","v":"0113"}]
["Муниципальная программа «Социальная поддержка граждан Кукморского муниципального района Республики Татарстан» на 2015 – 2017 годы","601","0113","0300000000",null,715600,"01130300000000"]
["Подпрограмма \"Улучшение социально-экономического положения семей\" на 2015 – 2020 годы","601","0113","0350000000",null,715600,"01130350000000"]
["Фонд оплаты труда государственных (муниципальных) органов и взносы по обязательному социальному страхованию","601","0113","0350025330","121",520000,"01130350025330121"]
["Иные выплаты персоналу государственных (муниципальных) органов, за исключением фонда оплаты труда","601","0113","0350025330","122",1600]
["Взносы по обязательному социальному страхованию на выплату денежного содержания и иные выплаты работникам государственных (муниципальных) органов","601","0113","0350025330","129",157000]
["Прочая закупка товаров, работ и услуг для обеспечения государственных (муниципальных) нужд","601","0113","0350025330","244",37000]
["Муниципальная программа «Обеспечение общественного порядка и противодействие преступности в Кукморском муниципальном районе на 2015 - 2017 годы\"","601","0113","0600000000",null,15000,{"$f":"C33&D33&E33","v":"01130600000000"}]
["Подпрограмма «Профилактика терроризма и экстремизма в Кукморском муниципальном районе на 2015-2016гг.»","601","0113","0630000000",null,15000]
["Прочая закупка товаров, работ и услуг для обеспечения государственных (муниципальных) нужд","601","0113","0630010990","244",15000]
["Муниципальная программа «Развитие культуры Кукморского муниципального района Республики Татарстан на 2015 – 2017 годы»","601","0113","0800000000",null,663522.43999999994]
["Подпрограмма \"Развитие архивного дела на 2015 - 2017 годы\"","601","0113","08Е0000000",null,663522.43999999994]
["Фонд оплаты труда государственных (муниципальных) органов и взносы по обязательному социальному страхованию","601","0113","08Е0044020","121",445000,{"$f":"C38&D38&E38","v":"011308Е0044020121"}]
["Взносы по обязательному социальному страхованию на выплату денежного содержания и иные выплаты работникам государственных (муниципальных) органов","601","0113","08Е0044020","129",134000]
["Прочая закупка товаров, работ и услуг для обеспечения государственных (муниципальных) нужд","601","0113","08Е0044020","244",84522.44,{"$f":"C40&D40&E40","v":"011308Е0044020244"}]
["Муниципальная программа «Управление муниципальными финансами Кукморского муниципального района Республики Татарстан на 2015 – 2017 годы»","601","0113","1800000000",null,10373252.93,"01131800000000"]
["Уплата налога на имущество организаций и земельного налога","601","0113","1800002950","851",2800,"01131800002950851"]
["Фонд оплаты труда казенных учреждений и взносы по обязательному социальному страхованию","601","0113","1800029900","111",7140000,"01131800029900111"]
["Взносы по обязательному социальному страхованию на выплаты по оплате труда работников и иные выплаты работникам учреждений","601","0113","1800029900","119",2156643.9500000002]
["Прочая закупка товаров, работ и услуг для обеспечения государственных (муниципальных) нужд","601","0113","1800029900","244",1070808.98]
["Уплата прочих налогов, сборов и иных платежей","601","0113","1800029900","852",3000,{"$f":"C46&D46&E46","v":"01131800029900852"}]
["Программа по реализации государственной национальной политики в Кукморском муниципальном районе на 2015-2020 годы","601","0113","2000000000",null,80000]
["Прочая закупка товаров, работ и услуг для обеспечения государственных (муниципальных) нужд","601","0113","2000010990","244",80000]
["Государственная программа \"Развитие юстиции в Республике Татарстан на 2014 – 2020 годы\"","601","0113","2400000000",null,3000]
["Подпрограмма \"Реализация государственной политики в сфере юстиции в Республике Татарстан на 2014 – 2020 годы\"","601","0113","2410000000",null,3000,{"$f":"C50&D50&E50","v":"01132410000000"}]
["Прочая закупка товаров, работ и услуг для обеспечения государственных (муниципальных) нужд","601","0113","2410025390","244",3000]
["Муниципальная программа «Реализация антикоррупционной политики в Кукморском муниципальном районе Республики Татарстан на 2015-2020 годы»","601","0113","2700000000",null,5000]
["Прочая закупка товаров, работ и услуг для обеспечения государственных (муниципальных) нужд","601","0113","2700010990","244",5000,{"$f":"C53&D53&E53","v":"01132700010990244"}]
["Непрограммные направления расходов","601","0113","9900000000",null,3134810.33]
["Уплата налога на имущество организаций и земельного налога","601","0113","9900002950",null,320847]
["Уплата налога на имущество организаций и земельного налога","601","0113","9900002950","851",320847]
["Реализация государственных полномочий по образованию и организации деятельности комиссий по делам несовершеннолетних и защите их прав","601","0113","9900025260",null,506500,{"$f":"C57&D57&E57","v":"01139900025260"}]
["Фонд оплаты труда государственных (муниципальных) органов и взносы по обязательному социальному страхованию","601","0113","9900025260","121",375000,"01139900025260121"]
["Взносы по обязательному социальному страхованию на выплату денежного содержания и иные выплаты работникам государственных (муниципальных) органов","601","0113","9900025260","129",113000,"01139900025260129"]
["Прочая закупка товаров, работ и услуг для обеспечения государственных (муниципальных) нужд","601","0113","9900025260","244",18500,"01139900025260244"]
["Реализация государственных полномочий по образованию и организации деятельности административных комиссий","601","0113","9900025270",null,244900]
["Фонд оплаты труда государственных (муниципальных) органов и взносы по обязательному социальному страхованию","601","0113","9900025270","121",178000]
["Взносы по обязательному социальному страхованию на выплату денежного содержания и иные выплаты работникам государственных (муниципальных) органов","601","0113","9900025270","129",54000]
["Прочая закупка товаров, работ и услуг для обеспечения государственных (муниципальных) нужд","601","0113","9900025270","244",12900,{"$f":"C64&D64&E64","v":"01139900025270244"}]
["Реализация государственных полномочий в области архивного дела","601","0113","9900025340",null,55900,"01139900025340"]
["Прочая закупка товаров, работ и услуг для обеспечения государственных (муниципальных) нужд","601","0113","9900025340","244",55900,"01139900025340244"]
["Реализация государственных полномочий по определению перечня должностных лиц, уполномоченных составлять протоколы об административных правонарушениях","601","0113","9900025350",null,370]
["Прочая закупка товаров, работ и услуг для обеспечения государственных (муниципальных) нужд","601","0113","9900025350","244",370]
["Государственная регистрация актов гражданского состояния за счет средств федерального бюджета","601","0113","9900059300",null,1554000,{"$f":"C69&D69&E69","v":"01139900059300"}]
["Фонд оплаты труда государственных (муниципальных) органов и взносы по обязательному социальному страхованию","601","0113","9900059300","121",618000,"01139900059300121"]
["Иные выплаты персоналу государственных (муниципальных) органов, за исключением фонда оплаты труда","601","0113","9900059300","122",28000,"01139900059300122"]
["Взносы по обязательному социальному страхованию на выплату денежного содержания и иные выплаты работникам государственных (муниципальных) органов","601","0113","9900059300","129",187000,"01139900059300129"]
["Прочая закупка товаров, работ и услуг для обеспечения государственных (муниципальных) нужд","601","0113","9900059300","244",721000]
["Обеспечение деятельности подведомственных учреждений","601","0113","9900092990",null,452293.33,{"$f":"C74&D74&E74","v":"01139900092990"}]
["Прочая закупка товаров, работ и услуг для обеспечения государственных (муниципальных) нужд","601","0113","9900092990","244",446247.84,"01139900092990244"]
["Уплата прочих налогов, сборов и иных платежей","601","0113","9900092990","852",6045.49]
["НАЦИОНАЛЬНАЯ БЕЗОПАСНОСТЬ И ПРАВООХРАНИТЕЛЬНАЯ ДЕЯТЕЛЬНОСТЬ","601","0300",null,null,1575500,{"$f":"C77&D77&E77","v":"0300"}]
["Защита населения и территории от чрезвычайных ситуаций природного и техногенного характера, гражданская оборона","601","0309",null,null,1144200,"0309"]
["Муниципальная программа «Защита населения и территорий от чрезвычайных ситуаций, обеспечение пожарной безопасности и безопасности людей на водных объектах в Кукморском муниципальном районе Республики Татарстан на 2015 – 2017 годы»","601","0309","0700000000",null,1144200]
["Подпрограмма «Снижение рисков и смягчение последствий чрезвычайных ситуаций природного и техногенного характера в Кукморском муниципальном районе Республики Татарстан на 2015 – 2017 годы»","601","0309","0720000000",null,1144200,{"$f":"C80&D80&E80","v":"03090720000000"}]
["Прочая закупка товаров, работ и услуг для обеспечения государственных (муниципальных) нужд","601","0309","0720007420","244",100000]
["Фонд оплаты труда казенных учреждений и взносы по обязательному социальному страхованию","601","0309","0720022670","111",793000,{"$f":"C82&D82&E82","v":"03090720022670111"}]
["Взносы по обязательному социальному страхованию на выплаты по оплате труда работников и иные выплаты работникам учреждений","601","0309","0720022670","119",239000]
["Прочая закупка товаров, работ и услуг для обеспечения государственных (муниципальных) нужд","601","0309","0720022670","244",12200]
["Другие вопросы в области национальной безопасности и правоохранительной деятельности","601","0314",null,null,431300]
["Муниципальная программа «Обеспечение общественного порядка и противодействие преступности в Кукморском муниципальном районе на 2015 - 2017 годы\"","601","0314","0600000000",null,431300,{"$f":"C86&D86&E86","v":"03140600000000"}]
["Подпрограмма \"Организация деятельности по профилактике правонарушений и преступлений в Республике Татарстан на 2014 – 2020 годы\"","601","0314","0610000000",null,431300]
["Фонд оплаты труда государственных (муниципальных) органов и взносы по обязательному социальному страхованию","601","0314","0610010990","121",431300]
["НАЦИОНАЛЬНАЯ ЭКОНОМИКА","601","0400",null,null,19547843.550000001]
["Сельское хозяйство и рыболовство","601","0405",null,null,2101600]
["Непрограммные направления расходов","601","0405","9900000000",null,2101600]
["Средства, передаваемые для компенсации дополнительных расходов, возникших в результате решений, принятых органами власти другого уровня","601","0405","9900025360",null,2101600,{"$f":"C92&D92&E92","v":"04059900025360"}]
["Прочая закупка товаров, работ и услуг для обеспечения государственных (муниципальных) нужд","601","0405","9900025360","244",2101600,"04059900025360244"]
["Дорожное хозяйство (дорожные фонды)","601","0409",null,null,17446243.550000001,"0409"]
["Муниципальная программа «Обеспечение качественным жильем и услугами жилищно-коммунального хозяйства населения, благоустройства территории Кукморского муниципального района Республики Татарстан на 2015 - 2017 годы»","601","0409","0400000000",null,755643.55,"04090400000000"]
["Подпрограмма «Благоустройство территории Кукморского муниципального района на 2015 – 2017 годы»","601","0409","0490000000",null,755643.55]
["Прочая закупка товаров, работ и услуг для обеспечения государственных (муниципальных) нужд","601","0409","0490078020","244",755643.55,{"$f":"C97&D97&E97","v":"04090490078020244"}]
["Строительство, реконструкция и ремонт (текущий и капитальный) автомобильных дорог за счет муниципального Дорожного фонда","601","0409","Д100003650",null,16690600]
["Прочая закупка товаров, работ и услуг для обеспечения государственных (муниципальных) нужд","601","0409","Д100003650","244",16690600]
["ЖИЛИЩНО-КОММУНАЛЬНОЕ ХОЗЯЙСТВО","601","0500",null,null,63451035.149999999]
["Жилищное хозяйство","601","0501",null,null,60796035.149999999]
["Муниципальная программа «Обеспечение качественным жильем и услугами жилищно-коммунального хозяйства населения, благоустройства территории Кукморского муниципального района Республики Татарстан на 2015 - 2017 годы»","601","0501","0400000000",null,60796035.149999999,{"$f":"C102&D102&E102","v":"05010400000000"}]
["Подпрограмма \"Реализация мероприятий Республиканской адресной программы по переселению граждан из аварийного жилищного фонда в 2014 – 2017 годах\"","601","0501","0440000000",null,41301035.149999999]
["Иные выплаты населению","601","0501","0440095020","360",41301035.149999999]
["Подпрограмма «Реализация мероприятий муниципальной программы капитального ремонта общего имущества в многоквартирных домах, расположенных на территории Кукморского муниципального района Республики Татарстан в 2015 – 2017 годах»","601","0501","0450000000",null,4388000]
["Субсидии некоммерческим организациям (за исключением государственных (муниципальных) учреждений)","601","0501","0450096010","630",4388000]
["Подпрограмма «Реализация муниципальной политики в сфере архитектуры, градо-строительства, строительства, промышленности строительных материалов, в жилищной сфере и коммунальном хозяйстве на 2015 – 2017 годы»","601","0501","0480000000",null,15107000,{"$f":"C107&D107&E107","v":"05010480000000"}]
["Прочая закупка товаров, работ и услуг для обеспечения государственных (муниципальных) нужд","601","0501","0480076040","244",15107000]
["Благоустройство","601","0503",null,null,2655000]
["Муниципальная программа «Обеспечение качественным жильем и услугами жилищно-коммунального хозяйства населения, благоустройства территории Кукморского муниципального района Республики Татарстан на 2015 - 2017 годы»","601","0503","0400000000",null,1155000]
["Подпрограмма «Благоустройство территории Кукморского муниципального района на 2015 – 2017 годы»","601","0503","0490000000",null,1155000]
["Прочая закупка товаров, работ и услуг для обеспечения государственных (муниципальных) нужд","601","0503","0490078040","244",1155000]
["Муниципальная программа «Обеспечение общественного порядка и противодействие преступности в Кукморском муниципальном районе на 2015 - 2017 годы\"","601","0503","0600000000",null,1500000,{"$f":"C113&D113&E113","v":"05030600000000"}]
["Подпрограмма «Повышение безопасности дорожного движения в Кукморском муниципальном районе на 2015-2020 годы»","601","0503","0620000000",null,1500000]
["Прочая закупка товаров, работ и услуг для обеспечения государственных (муниципальных) нужд","601","0503","0620078020","244",1500000]
["ЗДРАВООХРАНЕНИЕ","601","0900",null,null,689500,{"$f":"C116&D116&E116","v":"0900"}]
["Санитарно-эпидемиологическое благополучие","601","0907",null,null,689500]
["Муниципальная программа «Развитие здравоохранения Кукморского муниципального района Республики Татарстан на 2015-2017 годы»","601","0907","0100000000",null,689500]
["Подпрограмма «Профилактика заболеваний и формирование здорового образа жизни. Развитие первичной медико-санитарной помощи»","601","0907","0110000000",null,689500]
["Прочая закупка товаров, работ и услуг для обеспечения государственных (муниципальных) нужд","601","0907","0110002110","244",689500]
["СОЦИАЛЬНАЯ ПОЛИТИКА","601","1000",null,null,614000,{"$f":"C121&D121&E121","v":"1000"}]
["Социальное обеспечение населения","601","1003",null,null,614000]
["Муниципальная программа «Социальная поддержка граждан Кукморского муниципального района Республики Татарстан» на 2015 – 2017 годы","601","1003","0300000000",null,614000,{"$f":"C123&D123&E123","v":"10030300000000"}]
["Подпрограмма «Социальные выплаты» на 2015 – 2017 годы","601","1003","0310000000",null,614000]
["Прочая закупка товаров, работ и услуг для обеспечения государственных (муниципальных) нужд","601","1003","0310005410","244",614000]
["Кукморский районный Совет","602",null,null,null,9023356.6899999995]
["ОБЩЕГОСУДАРСТВЕННЫЕ ВОПРОСЫ","602","0100",null,null,9023356.6899999995,{"$f":"C127&D127&E127","v":"0100"}]
["Функционирование высшего должностного лица субъекта Российской Федерации и муниципального образования","602","0102",null,null,1611000]
["Непрограммные направления расходов","602","0102","9900000000",null,1611000]
["Глава муниципального района","602","0102","9900002030",null,1611000]
["Фонд оплаты труда государственных (муниципальных) органов и взносы по обязательному социальному страхованию","602","0102","9900002030","121",1237000]
["Взносы по обязательному социальному страхованию на выплату денежного содержания и иные выплаты работникам государственных (муниципальных) органов","602","0102","9900002030","129",374000]
["Функционирование законодательных (представительных) органов государственной власти и представительных органов муниципальных образований","602","0103",null,null,7150246.6900000004,{"$f":"C133&D133&E133","v":"0103"}]
["Непрограммные направления расходов","602","0103","9900000000",null,7150246.6900000004]
["Центральный аппарат","602","0103","9900002040",null,7150246.6900000004]
["Фонд оплаты труда государственных (муниципальных) органов и взносы по обязательному социальному страхованию","602","0103","9900002040","121",3611000]
["Иные выплаты персоналу государственных (муниципальных) органов, за исключением фонда оплаты труда","602","0103","9900002040","122",15619]
["Взносы по обязательному социальному страхованию на выплату денежного содержания и иные выплаты работникам государственных (муниципальных) органов","602","0103","9900002040","129",1091000]
["Прочая закупка товаров, работ и услуг для обеспечения государственных (муниципальных) нужд","602","0103","9900002040","244",2391124.19,{"$f":"C139&D139&E139","v":"01039900002040244"}]
["Уплата прочих налогов, сборов и иных платежей","602","0103","9900002040","852",41503.5]
["Другие общегосударственные вопросы","602","0113",null,null,262110]
["Непрограммные направления расходов","602","0113","9900000000",null,262110]
["Уплата налога на имущество организаций и земельного налога","602","0113","9900002950",null,176900]
["Уплата налога на имущество организаций и земельного налога","602","0113","9900002950","851",176900]
["Обеспечение деятельности подведомственных учреждений","602","0113","9900092990",null,85210,{"$f":"C145&D145&E145","v":"01139900092990"}]
["Прочая закупка товаров, работ и услуг для обеспечения государственных (муниципальных) нужд","602","0113","9900092990","244",85210]
["Контрольно-счетная палата Кукморского муниципального района","603",null,null,null,491990]
["ОБЩЕГОСУДАРСТВЕННЫЕ ВОПРОСЫ","603","0100",null,null,491990]
["Обеспечение деятельности финансовых, налоговых и таможенных органов и органов финансового (финансово-бюджетного) надзора","603","0106",null,null,491990,{"$f":"C149&D149&E149","v":"0106"}]
["Непрограммные направления расходов","603","0106","9900000000",null,491990,"01069900000000"]
["Центральный аппарат","603","0106","9900002040",null,491990,"01069900002040"]
["Фонд оплаты труда государственных (муниципальных) органов и взносы по обязательному социальному страхованию","603","0106","9900002040","121",328000,"01069900002040121"]
["Иные выплаты персоналу государственных (муниципальных) органов, за исключением фонда оплаты труда","603","0106","9900002040","122",16000]
["Взносы по обязательному социальному страхованию на выплату денежного содержания и иные выплаты работникам государственных (муниципальных) органов","603","0106","9900002040","129",99000,{"$f":"C154&D154&E154","v":"01069900002040129"}]
["Прочая закупка товаров, работ и услуг для обеспечения государственных (муниципальных) нужд","603","0106","9900002040","244",48990]
["Финансово-бюджетная палата Кукморского муниципального района","605",null,null,null,38050192.450000003]
["ОБЩЕГОСУДАРСТВЕННЫЕ ВОПРОСЫ","605","0100",null,null,4036162]
["Обеспечение деятельности финансовых, налоговых и таможенных органов и органов финансового (финансово-бюджетного) надзора","605","0106",null,null,3936162]
["Муниципальная программа «Управление муниципальными финансами Кукморского муниципального района Республики Татарстан на 2015 – 2017 годы»","605","0106","1800000000",null,3936162,{"$f":"C159&D159&E159","v":"01061800000000"}]
["Фонд оплаты труда государственных (муниципальных) органов и взносы по обязательному социальному страхованию","605","0106","1800002040","121",2570000,"01061800002040121"]
["Взносы по обязательному социальному страхованию на выплату денежного содержания и иные выплаты работникам государственных (муниципальных) органов","605","0106","1800002040","129",776000,"01061800002040129"]
["Прочая закупка товаров, работ и услуг для обеспечения государственных (муниципальных) нужд","605","0106","1800002040","244",587862]
["Уплата прочих налогов, сборов и иных платежей","605","0106","1800002040","852",1600]
["Уплата налога на имущество организаций и земельного налога","605","0106","1800002950","851",700]
["Другие общегосударственные вопросы","605","0113",null,null,100000]
["Непрограммные направления расходов","605","0113","9900000000",null,100000]
["Государственная регистрация актов гражданского состояния за счет средств федерального бюджета","605","0113","9900059300",null,100000]
["Субвенции","605","0113","9900059300","530",100000,{"$f":"C168&D168&E168","v":"01139900059300530"}]
["НАЦИОНАЛЬНАЯ ОБОРОНА","605","0200",null,null,2352800,"0200"]
["Мобилизационная и вневойсковая подготовка","605","0203",null,null,2352800,"0203"]
["Непрограммные направления расходов","605","0203","9900000000",null,2352800,"02039900000000"]
["Осуществление первичного воинского учета на территориях, где отсутствуют военные комиссариаты за счет средств федерального бюджета","605","0203","9900051180",null,2352800]
["Субвенции","605","0203","9900051180","530",2352800,{"$f":"C173&D173&E173","v":"02039900051180530"}]
["НАЦИОНАЛЬНАЯ ЭКОНОМИКА","605","0400",null,null,366474]
["Дорожное хозяйство (дорожные фонды)","605","0409",null,null,366474]
["Непрограммные направления расходов","605","0409","9900000000",null,366474]
["Межбюджетные трансферты, передаваемые бюджетам муниципальных образований для компенсации дополнительных расходов, возникших в результате решений, принятых органами власти другого уровня","605","0409","9900025151",null,366474,{"$f":"C177&D177&E177","v":"04099900025151"}]
["Иные межбюджетные трансферты","605","0409","9900025151","540",366474]
["ЖИЛИЩНО-КОММУНАЛЬНОЕ ХОЗЯЙСТВО","605","0500",null,null,1145456.45]
["Коммунальное хозяйство","605","0502",null,null,268059.32]
["Непрограммные направления расходов","605","0502","9900000000",null,268059.32]
["Межбюджетные трансферты, передаваемые бюджетам муниципальных образований для компенсации дополнительных расходов, возникших в результате решений, принятых органами власти другого уровня","605","0502","9900025151",null,268059.32,{"$f":"C182&D182&E182","v":"05029900025151"}]
["Иные межбюджетные трансферты","605","0502","9900025151","540",268059.32]
["Благоустройство","605","0503",null,null,877397.13]
["Непрограммные направления расходов","605","0503","9900000000",null,877397.13]
["Межбюджетные трансферты, передаваемые бюджетам муниципальных образований для компенсации дополнительных расходов, возникших в результате решений, принятых органами власти другого уровня","605","0503","9900025151",null,877397.13]
["Иные межбюджетные трансферты","605","0503","9900025151","540",877397.13,{"$f":"C187&D187&E187","v":"05039900025151540"}]
["ОХРАНА ОКРУЖАЮЩЕЙ СРЕДЫ","605","0600",null,null,500000]
["Охрана объектов растительного и животного мира и среды их обитания","605","0603",null,null,500000]
["Муниципальная программа «Охрана окружающей среды, воспроизводство и использование природных ресурсов Кукморского муниципального района Республики Татарстан на 2015 год»","605","0603","0900000000",null,500000]
["Подпрограмма \"Регулирование качества окружающей среды Республики Татарстан на 2014 – 2020 годы\"","605","0603","0910000000",null,500000]
["Прочая закупка товаров, работ и услуг для обеспечения государственных (муниципальных) нужд","605","0603","0910019100","244",500000]
["МЕЖБЮДЖЕТНЫЕ ТРАНСФЕРТЫ ОБЩЕГО ХАРАКТЕРА БЮДЖЕТАМ СУБЪЕКТОВ РОССИЙСКОЙ ФЕДЕРАЦИИ И МУНИЦИПАЛЬНЫХ ОБРАЗОВАНИЙ","605","1400",null,null,29649300,{"$f":"C193&D193&E193","v":"1400"}]
["Дотации на выравнивание бюджетной обеспеченности субъектов Российской Федерации и муниципальных образований","605","1401",null,null,24354900]
["Муниципальная программа «Управление муниципальными финансами Кукморского муниципального района Республики Татарстан на 2015 – 2017 годы»","605","1401","1800000000",null,24354900]
["Дотации на выравнивание бюджетной обеспеченности","605","1401","1800080040","511",22562000]
["Дотации на выравнивание бюджетной обеспеченности","605","1401","1800080060","511",1792900]
["Иные дотации","605","1402",null,null,5294400]
["Муниципальная программа «Управление муниципальными финансами Кукморского муниципального района Республики Татарстан на 2015 – 2017 годы»","605","1402","1800000000",null,5294400,{"$f":"C199&D199&E199","v":"14021800000000"}]
["Иные дотации","605","1402","1800080040","512",5294400,{"$f":"C200&D200&E200","v":"14021800080040512"}]
["Палата имущественных и земельных отношений Кукморского муниципального района","606",null,null,null,1751580]
["ОБЩЕГОСУДАРСТВЕННЫЕ ВОПРОСЫ","606","0100",null,null,1751580]
["Другие общегосударственные вопросы","606","0113",null,null,1751580]
["Муниципальная программа «Управление муниципальным имуществом Кукморского муниципального района Республики Татарстан на 2015 – 2017 годы»","606","0113","1600000000",null,1521580]
["Фонд оплаты труда государственных (муниципальных) органов и взносы по обязательному социальному страхованию","606","0113","1600002040","121",934000,{"$f":"C205&D205&E205","v":"01131600002040121"}]
["Взносы по обязательному социальному страхованию на выплату денежного содержания и иные выплаты работникам государственных (муниципальных) органов","606","0113","1600002040","129",282000]
["Прочая закупка товаров, работ и услуг для обеспечения государственных (муниципальных) нужд","606","0113","1600002040","244",270580]
["Уплата налога на имущество организаций и земельного налога","606","0113","1600002950","851",35000]
["Муниципальная программа «Управление муниципальными финансами Кукморского муниципального района Республики Татарстан на 2015 – 2017 годы»","606","0113","1800000000",null,220000]
["Фонд оплаты труда казенных учреждений и взносы по обязательному социальному страхованию","606","0113","1800029900","111",169000]
["Взносы по обязательному социальному страхованию на выплаты по оплате труда работников и иные выплаты работникам учреждений","606","0113","1800029900","119",51000,{"$f":"C211&D211&E211","v":"01131800029900119"}]
["Непрограммные направления расходов","606","0113","9900000000",null,10000,"01139900000000"]
["Обеспечение деятельности подведомственных учреждений","606","0113","9900092990",null,10000,"01139900092990"]
["Прочая закупка товаров, работ и услуг для обеспечения государственных (муниципальных) нужд","606","0113","9900092990","244",10000,"01139900092990244"]
["Управление образования Кукморского муниципального района","611",null,null,null,735281605.85000002]
["ОБЩЕГОСУДАРСТВЕННЫЕ ВОПРОСЫ","611","0100",null,null,1832479.4]
["Функционирование Правительства Российской Федерации, высших исполнительных органов государственной власти субъектов Российской Федерации, местных администраций","611","0104",null,null,1604100]
["Муниципальная программа «Развитие образования Кукморского муниципального района Республики Татарстан на 2015 – 2017 годы»","611","0104","0200000000",null,255700,{"$f":"C218&D218&E218","v":"01040200000000"}]
["Подпрограмма «Развитие общего образования на 2015 – 2017 годы»","611","0104","0220000000",null,255700]
["Фонд оплаты труда государственных (муниципальных) органов и взносы по обязательному социальному страхованию","611","0104","0220025300","121",186600]
["Взносы по обязательному социальному страхованию на выплату денежного содержания и иные выплаты работникам государственных (муниципальных) органов","611","0104","0220025300","129",56000]
["Прочая закупка товаров, работ и услуг для обеспечения государственных (муниципальных) нужд","611","0104","0220025300","244",13100]
["Непрограммные направления расходов","611","0104","9900000000",null,1348400]
["Центральный аппарат","611","0104","9900002040",null,1348400,{"$f":"C224&D224&E224","v":"01049900002040"}]
["Фонд оплаты труда государственных (муниципальных) органов и взносы по обязательному социальному страхованию","611","0104","9900002040","121",984400,"01049900002040121"]
["Взносы по обязательному социальному страхованию на выплату денежного содержания и иные выплаты работникам государственных (муниципальных) органов","611","0104","9900002040","129",297000,"01049900002040129"]
["Прочая закупка товаров, работ и услуг для обеспечения государственных (муниципальных) нужд","611","0104","9900002040","244",67000,"01049900002040244"]
["Другие общегосударственные вопросы","611","0113",null,null,228379.4]
["Непрограммные направления расходов","611","0113","9900000000",null,228379.4,{"$f":"C229&D229&E229","v":"01139900000000"}]
["Уплата налога на имущество организаций и земельного налога","611","0113","9900002950",null,228379.4]
["Уплата налога на имущество организаций и земельного налога","611","0113","9900002950","851",228379.4,{"$f":"C231&D231&E231","v":"01139900002950851"}]
["ОБРАЗОВАНИЕ","611","0700",null,null,716476126.45000005,{"$f":"C232&D232&E232","v":"0700"}]
["Дошкольное образование","611","0701",null,null,185173066.62]
["Муниципальная программа «Развитие образования Кукморского муниципального района Республики Татарстан на 2015 – 2017 годы»","611","0701","0200000000",null,183805066.62]
["Подпрограмма «Развитие дошкольного образования на 2015 – 2017 годы»","611","0701","0210000000",null,183805066.62]
["Субсидии бюджетным учреждениям на финансовое обеспечение государственного (муниципального) задания на оказание государственных (муниципальных) услуг (выполнение работ)","611","0701","0210025370","611",68240600]
["Субсидии бюджетным учреждениям на финансовое обеспечение государственного (муниципального) задания на оказание государственных (муниципальных) услуг (выполнение работ)","611","0701","0210042000","611",115564466.62]
["Муниципальная программа «Обеспечение общественного порядка и противодействие преступности в Кукморском муниципальном районе на 2015 - 2017 годы\"","611","0701","0600000000",null,1368000,{"$f":"C238&D238&E238","v":"07010600000000"}]
["Подпрограмма «Профилактика терроризма и экстремизма в Кукморском муниципальном районе на 2015-2016гг.»","611","0701","0630000000",null,1368000]
["Субсидии бюджетным учреждениям на финансовое обеспечение государственного (муниципального) задания на оказание государственных (муниципальных) услуг (выполнение работ)","611","0701","0630010990","611",1368000,{"$f":"C240&D240&E240","v":"07010630010990611"}]
["Общее образование","611","0702",null,null,518559502.43000001]
["Муниципальная программа «Развитие образования Кукморского муниципального района Республики Татарстан на 2015 – 2017 годы»","611","0702","0200000000",null,516639502.43000001]
["Подпрограмма «Развитие общего образования на 2015 – 2017 годы»","611","0702","0220000000",null,498962801.36000001]
["Субсидии бюджетным учреждениям на финансовое обеспечение государственного (муниципального) задания на оказание государственных (муниципальных) услуг (выполнение работ)","611","0702","0220025280","611",268287800]
["Субсидии бюджетным учреждениям на финансовое обеспечение государственного (муниципального) задания на оказание государственных (муниципальных) услуг (выполнение работ)","611","0702","0220042100","611",230675001.36000001,{"$f":"C245&D245&E245","v":"07020220042100611"}]
["Подпрограмма «Развитие дополнительного образования на 2015 – 2017 годы»","611","0702","0230000000",null,17676701.07]
["Субсидии бюджетным учреждениям на финансовое обеспечение государственного (муниципального) задания на оказание государственных (муниципальных) услуг (выполнение работ)","611","0702","0230042310","611",17676701.07,{"$f":"C247&D247&E247","v":"07020230042310611"}]
["Муниципальная программа «Обеспечение общественного порядка и противодействие преступности в Кукморском муниципальном районе на 2015 - 2017 годы\"","611","0702","0600000000",null,1920000]
["Подпрограмма «Профилактика терроризма и экстремизма в Кукморском муниципальном районе на 2015-2016гг.»","611","0702","0630000000",null,1920000]
["Субсидии бюджетным учреждениям на финансовое обеспечение государственного (муниципального) задания на оказание государственных (муниципальных) услуг (выполнение работ)","611","0702","0630010990","611",1920000,{"$f":"C250&D250&E250","v":"07020630010990611"}]
["Другие вопросы в области образования","611","0709",null,null,12743557.4]
["Муниципальная программа «Развитие образования Кукморского муниципального района Республики Татарстан на 2015 – 2017 годы»","611","0709","0200000000",null,12340057.4]
["Подпрограмма «Развитие общего образования на 2015 – 2017 годы»","611","0709","0220000000",null,4906900]
["Фонд оплаты труда казенных учреждений и взносы по обязательному социальному страхованию","611","0709","0220025301","111",3507100]
["Иные выплаты персоналу казенных учреждений, за исключением фонда оплаты труда","611","0709","0220025301","112",72000,{"$f":"C255&D255&E255","v":"07090220025301112"}]
["Взносы по обязательному социальному страхованию на выплаты по оплате труда работников и иные выплаты работникам учреждений","611","0709","0220025301","119",876000,"07090220025301119"]
["Прочая закупка товаров, работ и услуг для обеспечения государственных (муниципальных) нужд","611","0709","0220025301","244",366700,"07090220025301244"]
["Уплата прочих налогов, сборов и иных платежей","611","0709","0220025301","852",7000,"07090220025301852"]
["Фонд оплаты труда государственных (муниципальных) органов и взносы по обязательному социальному страхованию","611","0709","0220043624","121",78100]
["Подпрограмма «Развитие системы оценки качества образования на 2015 – 2017 годы»","611","0709","0250000000",null,7433157.4000000004]
["Фонд оплаты труда казенных учреждений и взносы по обязательному социальному страхованию","611","0709","0250042520","111",2802000,{"$f":"C261&D261&E261","v":"07090250042520111"}]
["Иные выплаты персоналу казенных учреждений, за исключением фонда оплаты труда","611","0709","0250042520","112",274822.8,"07090250042520112"]
["Иные выплаты, за исключением фонда оплаты труда казенных учреждений, лицам, привлекаемым согласно законодательству для выполнения отдельных полномочий","611","0709","0250042520","113",186050,"07090250042520113"]
["Взносы по обязательному социальному страхованию на выплаты по оплате труда работников и иные выплаты работникам учреждений","611","0709","0250042520","119",846000,"07090250042520119"]
["Прочая закупка товаров, работ и услуг для обеспечения государственных (муниципальных) нужд","611","0709","0250042520","244",3280675.79]
["Уплата налога на имущество организаций и земельного налога","611","0709","0250042520","851",41200]
["Уплата прочих налогов, сборов и иных платежей","611","0709","0250042520","852",2408.81,{"$f":"C267&D267&E267","v":"07090250042520852"}]
["Муниципальная программа «Обеспечение общественного порядка и противодействие преступности в Кукморском муниципальном районе на 2015 - 2017 годы\"","611","0709","0600000000",null,3500]
["Подпрограмма «Профилактика терроризма и экстремизма в Кукморском муниципальном районе на 2015-2016гг.»","611","0709","0630000000",null,3500]
["Прочая закупка товаров, работ и услуг для обеспечения государственных (муниципальных) нужд","611","0709","0630010990","244",3500,{"$f":"C270&D270&E270","v":"07090630010990244"}]
["Программа по реализации государственной национальной политики в Кукморском муниципальном районе на 2015-2020 годы","611","0709","2000000000",null,390000]
["Прочая закупка товаров, работ и услуг для обеспечения государственных (муниципальных) нужд","611","0709","2000010990","244",390000]
["Муниципальная программа «Реализация антикоррупционной политики в Кукморском муниципальном районе Республики Татарстан на 2015-2020 годы»","611","0709","2700000000",null,10000]
["Прочая закупка товаров, работ и услуг для обеспечения государственных (муниципальных) нужд","611","0709","2700010990","244",10000,{"$f":"C274&D274&E274","v":"07092700010990244"}]
["СОЦИАЛЬНАЯ ПОЛИТИКА","611","1000",null,null,16973000]
["Социальное обеспечение населения","611","1003",null,null,7258000]
["Муниципальная программа «Социальная поддержка граждан Кукморского муниципального района Республики Татарстан» на 2015 – 2017 годы","611","1003","0300000000",null,7258000]
["Подпрограмма «Социальные выплаты» на 2015 – 2017 годы","611","1003","0310000000",null,7258000]
["Субсидии бюджетным учреждениям на финансовое обеспечение государственного (муниципального) задания на оказание государственных (муниципальных) услуг (выполнение работ)","611","1003","0310005510","611",7258000]
["Охрана семьи и детства","611","1004",null,null,9715000,{"$f":"C280&D280&E280","v":"1004"}]
["Муниципальная программа «Социальная поддержка граждан Кукморского муниципального района Республики Татарстан» на 2015 – 2017 годы","611","1004","0300000000",null,9715000]
["Подпрограмма \"Улучшение социально-экономического положения семей\" на 2015 – 2020 годы","611","1004","0350000000",null,9715000]
["Пособия, компенсации, меры социальной поддержки по публичным нормативным обязательствам","611","1004","0350013200","313",9715000]
["Управление по делам молодежи и спорту Кукморского муниципального района","612",null,null,null,54613909.210000001]
["ОБЩЕГОСУДАРСТВЕННЫЕ ВОПРОСЫ","612","0100",null,null,948200,{"$f":"C285&D285&E285","v":"0100"}]
["Функционирование Правительства Российской Федерации, высших исполнительных органов государственной власти субъектов Российской Федерации, местных администраций","612","0104",null,null,941100]
["Непрограммные направления расходов","612","0104","9900000000",null,941100]
["Центральный аппарат","612","0104","9900002040",null,685400]
["Фонд оплаты труда государственных (муниципальных) органов и взносы по обязательному социальному страхованию","612","0104","9900002040","121",524400]
["Взносы по обязательному социальному страхованию на выплату денежного содержания и иные выплаты работникам государственных (муниципальных) органов","612","0104","9900002040","129",158000]
["Уплата прочих налогов, сборов и иных платежей","612","0104","9900002040","852",3000,{"$f":"C291&D291&E291","v":"01049900002040852"}]
["Реализация государственных полномочий в области молодежной политики","612","0104","9900025240",null,255700,"01049900025240"]
["Фонд оплаты труда государственных (муниципальных) органов и взносы по обязательному социальному страхованию","612","0104","9900025240","121",186600,"01049900025240121"]
["Взносы по обязательному социальному страхованию на выплату денежного содержания и иные выплаты работникам государственных (муниципальных) органов","612","0104","9900025240","129",56000,"01049900025240129"]
["Прочая закупка товаров, работ и услуг для обеспечения государственных (муниципальных) нужд","612","0104","9900025240","244",13100]
["Другие общегосударственные вопросы","612","0113",null,null,7100,{"$f":"C296&D296&E296","v":"0113"}]
["Непрограммные направления расходов","612","0113","9900000000",null,7100]
["Уплата налога на имущество организаций и земельного налога","612","0113","9900002950",null,7100,{"$f":"C298&D298&E298","v":"01139900002950"}]
["Уплата налога на имущество организаций и земельного налога","612","0113","9900002950","851",7100,"01139900002950851"]
["ОБРАЗОВАНИЕ","612","0700",null,null,52316181.170000002]
["Общее образование","612","0702",null,null,40392712.840000004]
["Муниципальная программа «Развитие образования Кукморского муниципального района Республики Татарстан на 2015 – 2017 годы»","612","0702","0200000000",null,40333885.439999998]
["Подпрограмма «Развитие дополнительного образования на 2015 – 2017 годы»","612","0702","0230000000",null,40333885.439999998]
["Субсидии бюджетным учреждениям на финансовое обеспечение государственного (муниципального) задания на оказание государственных (муниципальных) услуг (выполнение работ)","612","0702","0230042330","611",40333885.439999998]
["Муниципальная программа «Обеспечение общественного порядка и противодействие преступности в Кукморском муниципальном районе на 2015 - 2017 годы\"","612","0702","0600000000",null,24000,{"$f":"C305&D305&E305","v":"07020600000000"}]
["Подпрограмма «Профилактика терроризма и экстремизма в Кукморском муниципальном районе на 2015-2016гг.»","612","0702","0630000000",null,24000]
["Субсидии бюджетным учреждениям на финансовое обеспечение государственного (муниципального) задания на оказание государственных (муниципальных) услуг (выполнение работ)","612","0702","0630010990","611",24000]
["Муниципальная программа «Развитие молодежной политики, физической культуры и спорта в Кукморском муниципальном районе Республики Татарстан на 2015 – 2017 годы»","612","0702","1000000000",null,34827.4]
["Подпрограмма «Развитие физической культуры и спорта в Кукморском муниципальном районе Республики Татарстан на 2015 – 2017 годы»","612","0702","1010000000",null,34827.4,{"$f":"C309&D309&E309","v":"07021010000000"}]
["Фонд оплаты труда государственных (муниципальных) органов и взносы по обязательному социальному страхованию","612","0702","1010042330","121",34827.4,"07021010042330121"]
["Молодежная политика и оздоровление детей","612","0707",null,null,11923468.33]
["Муниципальная программа «Обеспечение общественного порядка и противодействие преступности в Кукморском муниципальном районе на 2015 - 2017 годы\"","612","0707","0600000000",null,1000]
["Подпрограмма «Профилактика терроризма и экстремизма в Кукморском муниципальном районе на 2015-2016гг.»","612","0707","0630000000",null,1000]
["Прочая закупка товаров, работ и услуг для обеспечения государственных (муниципальных) нужд","612","0707","0630010990","244",1000,{"$f":"C314&D314&E314","v":"07070630010990244"}]
["Муниципальная программа «Развитие молодежной политики, физической культуры и спорта в Кукморском муниципальном районе Республики Татарстан на 2015 – 2017 годы»","612","0707","1000000000",null,11703468.33,"07071000000000"]
["Подпрограмма «Сельская молодежь Кукморского муниципального района Республики Татарстан на 2015 – 2017 годы»","612","0707","1040000000",null,11703468.33]
["Субсидии бюджетным учреждениям на финансовое обеспечение государственного (муниципального) задания на оказание государственных (муниципальных) услуг (выполнение работ)","612","0707","1040043190","611",11703468.33]
["Программа по реализации государственной национальной политики в Кукморском муниципальном районе на 2015-2020 годы","612","0707","2000000000",null,204000,{"$f":"C318&D318&E318","v":"07072000000000"}]
["Иные выплаты персоналу казенных учреждений, за исключением фонда оплаты труда","612","0707","2000010990","112",90000,"07072000010990112"]
["Иные выплаты, за исключением фонда оплаты труда казенных учреждений, лицам, привлекаемым согласно законодательству для выполнения отдельных полномочий","612","0707","2000010990","113",4000]
["Прочая закупка товаров, работ и услуг для обеспечения государственных (муниципальных) нужд","612","0707","2000010990","244",110000]
["Муниципальная программа «Реализация антикоррупционной политики в Кукморском муниципальном районе Республики Татарстан на 2015-2020 годы»","612","0707","2700000000",null,15000]
["Прочая закупка товаров, работ и услуг для обеспечения государственных (муниципальных) нужд","612","0707","2700010990","244",15000,{"$f":"C323&D323&E323","v":"07072700010990244"}]
["ФИЗИЧЕСКАЯ КУЛЬТУРА И СПОРТ","612","1100",null,null,1349528.04]
["Массовый спорт","612","1102",null,null,1349528.04]
["Муниципальная программа «Социальная поддержка граждан Кукморского муниципального района Республики Татарстан» на 2015 – 2017 годы","612","1102","0300000000",null,385500]
["Подпрограмма Кукморского муниципального района \"Доступная среда на 2015-2017 годы\"","612","1102","0360000000",null,385500]
["Прочая закупка товаров, работ и услуг для обеспечения государственных (муниципальных) нужд","612","1102","0360012870","244",385500]
["Муниципальная программа «Развитие молодежной политики, физической культуры и спорта в Кукморском муниципальном районе Республики Татарстан на 2015 – 2017 годы»","612","1102","1000000000",null,549028.04]
["Подпрограмма «Развитие физической культуры и спорта в Кукморском муниципальном районе Республики Татарстан на 2015 – 2017 годы»","612","1102","1010000000",null,549028.04]
["Иные выплаты, за исключением фонда оплаты труда казенных учреждений, лицам, привлекаемым согласно законодательству для выполнения отдельных полномочий","612","1102","1010012870","113",148850]
["Прочая закупка товаров, работ и услуг для обеспечения государственных (муниципальных) нужд","612","1102","1010012870","244",400178.04]
["Программа по реализации государственной национальной политики в Кукморском муниципальном районе на 2015-2020 годы","612","1102","2000000000",null,415000]
["Прочая закупка товаров, работ и услуг для обеспечения государственных (муниципальных) нужд","612","1102","2000010990","244",415000]
["Управление культуры Кукморского муниципального района","613",null,null,null,108114379.26000001]
["ОБЩЕГОСУДАРСТВЕННЫЕ ВОПРОСЫ","613","0100",null,null,829135.14]
["Функционирование Правительства Российской Федерации, высших исполнительных органов государственной власти субъектов Российской Федерации, местных администраций","613","0104",null,null,829135.14]
["Непрограммные направления расходов","613","0104","9900000000",null,829135.14]
["Центральный аппарат","613","0104","9900002040",null,829135.14]
["Фонд оплаты труда государственных (муниципальных) органов и взносы по обязательному социальному страхованию","613","0104","9900002040","121",601000]
["Взносы по обязательному социальному страхованию на выплату денежного содержания и иные выплаты работникам государственных (муниципальных) органов","613","0104","9900002040","129",182000]
["Прочая закупка товаров, работ и услуг для обеспечения государственных (муниципальных) нужд","613","0104","9900002040","244",43493.14]
["Уплата прочих налогов, сборов и иных платежей","613","0104","9900002040","852",2642]
["ОБРАЗОВАНИЕ","613","0700",null,null,13624870.74]
["Общее образование","613","0702",null,null,13624870.74]
["Муниципальная программа «Развитие образования Кукморского муниципального района Республики Татарстан на 2015 – 2017 годы»","613","0702","0200000000",null,13624870.74]
["Подпрограмма «Развитие общего образования на 2015 – 2017 годы»","613","0702","0220000000",null,17355.12]
["Субсидии бюджетным учреждениям на финансовое обеспечение государственного (муниципального) задания на оказание государственных (муниципальных) услуг (выполнение работ)","613","0702","0220043620","611",17355.12]
["Подпрограмма «Развитие дополнительного образования на 2015 – 2017 годы»","613","0702","0230000000",null,13607515.619999999]
["Субсидии бюджетным учреждениям на финансовое обеспечение государственного (муниципального) задания на оказание государственных (муниципальных) услуг (выполнение работ)","613","0702","0230042320","611",13607515.619999999]
["КУЛЬТУРА, КИНЕМАТОГРАФИЯ","613","0800",null,null,93660373.379999995]
["Культура","613","0801",null,null,93660373.379999995]
["Муниципальная программа «Обеспечение общественного порядка и противодействие преступности в Кукморском муниципальном районе на 2015 - 2017 годы\"","613","0801","0600000000",null,3500]
["Подпрограмма «Профилактика терроризма и экстремизма в Кукморском муниципальном районе на 2015-2016гг.»","613","0801","0630000000",null,3500]
["Субсидии бюджетным учреждениям на финансовое обеспечение государственного (муниципального) задания на оказание государственных (муниципальных) услуг (выполнение работ)","613","0801","0630010990","611",3500]
["Муниципальная программа «Развитие культуры Кукморского муниципального района Республики Татарстан на 2015 – 2017 годы»","613","0801","0800000000",null,93571712.640000001]
["Подпрограмма «Развитие музейного дела на 2015 – 2017 годы»","613","0801","0810000000",null,2685000]
["Субсидии бюджетным учреждениям на финансовое обеспечение государственного (муниципального) задания на оказание государственных (муниципальных) услуг (выполнение работ)","613","0801","0810044090","611",2685000]
["Подпрограмма «Развитие библиотечного дела на 2015 – 2017 годы»","613","0801","0830000000",null,19057600]
["Субсидии бюджетным учреждениям на финансовое обеспечение государственного (муниципального) задания на оказание государственных (муниципальных) услуг (выполнение работ)","613","0801","0830044090","611",19040700]
["Субсидии бюджетным учреждениям на иные цели","613","0801","0830051440","612",16900]
["Подпрограмма «Развитие клубов на 2015 – 2017 годы»","613","0801","0840000000",null,71829112.640000001]
["Субсидии бюджетным учреждениям на финансовое обеспечение государственного (муниципального) задания на оказание государственных (муниципальных) услуг (выполнение работ)","613","0801","0840044091","611",71829112.640000001]
["Программа по реализации государственной национальной политики в Кукморском муниципальном районе на 2015-2020 годы","613","0801","2000000000",null,75160.740000000005]
["Субсидии бюджетным учреждениям на финансовое обеспечение государственного (муниципального) задания на оказание государственных (муниципальных) услуг (выполнение работ)","613","0801","2000010990","611",75160.740000000005]
["Муниципальная программа «Реализация антикоррупционной политики в Кукморском муниципальном районе Республики Татарстан на 2015-2020 годы»","613","0801","2700000000",null,10000]
["Субсидии бюджетным учреждениям на финансовое обеспечение государственного (муниципального) задания на оказание государственных (муниципальных) услуг (выполнение работ)","613","0801","2700010990","611",10000]
["Итого",null,null,null,null,1061546644.4299999]
[]
[]
["         Глава Района                                   С.Д.Димитриев"]

{"sheet":"8","index":8,"n_rows":61,"n_cols":7,"rows_kept":61,"cut":false,"hidden":true,"merged":[[5,0,5,5],[6,0,6,5],[8,0,9,0],[8,1,9,1],[8,2,9,2],[8,3,9,3],[8,4,9,4],[8,5,9,5]]}
[null,null,{"$f":"дата!$A$2&дата!$C$10","v":"Приложение №"}]
[null,null,"к решению Кукморского"]
[null,null,"районного Совета"]
[null,null,{"$f":"дата!C1","v":"от 28 марта 2016 г. № "}]
[]
["Объем бюджетных ассигнований на исполнение"]
["публичных нормативных обязательств на 2016 год"]
[null,null,null,null,null,"(рублей)"]
["Наименование","КВСР","Рз, ПР","ЦСР","ВР","Сумма"]
[]
[]
["Управление образования Кукморского муниципального района","611",null,"","",{"$f":"F13","v":4987800}]
["ОБРАЗОВАНИЕ","611","0700","","",{"$f":"F14+F19","v":4987800}]
["Дошкольное образование","611","0701","","",{"$f":"F17","v":1474800}]
["Муниципальная программа «Развитие образования Кукморского муниципального района Республики Татарстан на 2015 – 2017 годы»","611","0701","0200000000","",{"$f":"F16","v":4987800}]
["Подпрограмма «Развитие дошкольного образования на 2015 – 2017 годы»","611","0701","0210000000","",{"$f":"F17+F19","v":4987800}]
["Развитие дошкольных образовательных учреждений","611","0701","0210342000","",{"$f":"F18","v":1474800}]
["Предоставление субсидий бюджетным, автономным учреждениям и иным некоммерческим организациям","611","0701","0210342000","600",1474800]
["Общее образование","611","0702","","",{"$f":"F20","v":3513000}]
["Муниципальная программа «Развитие образования Кукморского муниципального района Республики Татарстан на 2015 – 2017 годы»","611","0702","0200000000","",{"$f":"F21+F24","v":3513000}]
["Подпрограмма «Развитие общего образования на 2015 – 2017 годы»","611","0702","0220000000","",{"$f":"F22","v":3383000}]
["Развитие общеобразовательных организаций, включая школы - детские сады","611","0702","0220242100","",{"$f":"F23","v":3383000}]
["Предоставление субсидий бюджетным, автономным учреждениям и иным некоммерческим организациям","611","0702","0220242100","600",3383000]
["Подпрограмма «Развитие дополнительного образования на 2015 – 2017 годы»","611","0702","0230000000","",{"$f":"F25","v":130000}]
["Развитие муниципальных учреждений дополнительного образования детей многопрофильной направленности","611","0702","0230142310","",{"$f":"F26","v":130000}]
["Предоставление субсидий бюджетным, автономным учреждениям и иным некоммерческим организациям","611","0702","0230142310","600",130000]
["Управление по делам молодежи и спорту Кукморского муниципального района ","612","","","",{"$f":"F28","v":111000}]
["ОБРАЗОВАНИЕ","612","0700","","",{"$f":"F29+F34","v":111000}]
["Общее образование","612","0702","","",{"$f":"F30","v":43000}]
["Муниципальная программа «Развитие образования Кукморского муниципального района Республики Татарстан на 2015 – 2017 годы»","612","0709","0200000000","",{"$f":"F31","v":43000}]
["Подпрограмма «Развитие дополнительного образования на 2015 – 2017 годы»","612","0702","0230000000","",{"$f":"F32","v":43000}]
["Развитие муниципальных учреждений дополнительного образования детей спортивной направленности","612","0702","0230142330","",{"$f":"F33","v":43000}]
["Предоставление субсидий бюджетным, автономным учреждениям и иным некоммерческим организациям","612","0702","0230142330","600",43000]
["Молодежная политика и оздоровление детей","612","0707","","",{"$f":"F35","v":68000}]
["Муниципальная программа «Развитие молодежной политики, физической культуры и спорта в Кукморском муниципальном районе Республики Татарстан на 2015 – 2017 годы»","612","0707","1000000000","",{"$f":"F37","v":68000}]
["Подпрограмма «Сельская молодежь Кукморского муниципального района Республики Татарстан на 2015 – 2017 годы» ","612","0707","1040000000","",{"$f":"F37","v":68000}]
["Мероприятия по созданию условий для повышения социальной и экономической активности сельской молодежи ","612","0707","1040143190","",{"$f":"F38","v":68000}]
["Предоставление субсидий бюджетным, автономным учреждениям и иным некоммерческим организациям","612","0707","1040143190","600",68000]
["Управление культуры Кукморского муниципального района","613",null,"","",{"$f":"F46+F40","v":757000}]
["ОБРАЗОВАНИЕ","612","0700","","",{"$f":"F41","v":80000}]
["Общее образование","612","0702","","",{"$f":"F42","v":80000}]
["Муниципальная программа «Развитие образования Кукморского муниципального района Республики Татарстан на 2015 – 2017 годы»","613","0702","0200000000","",{"$f":"F43","v":80000}]
["Подпрограмма «Развитие дополнительного образования на 2015 – 2017 годы»","613","0702","0230000000","",80000]
["Развитие муниципальных учреждений дополнительного образования детей художественно-эстетической направленности","613","0702","0230142320","",{"$f":"F45","v":80000}]
["Предоставление субсидий бюджетным, автономным учреждениям и иным некоммерческим организациям","613","0702","0230142320","600",80000]
["КУЛЬТУРА, КИНЕМАТОГРАФИЯ, СРЕДСТВА МАССОВОЙ ИНФОРМАЦИИ","613","0800","","",{"$f":"F47","v":677000}]
["Культура","613","0801","","",{"$f":"F48","v":677000}]
["Муниципальная программа «Развитие культуры Кукморского муниципального района Республики Татарстан на 2015 – 2017 годы»","613","0801","0800000000","",{"$f":"F49+F52+F55","v":677000}]
["Подпрограмма «Развитие музейного дела на 2015 – 2017 годы»","613","0801","0810000000","",{"$f":"F50","v":0}]
["Обеспечение деятельности подведомственных учреждений культуры","613","0801","0810144090","",{"$f":"F51","v":0}]
["Предоставление субсидий бюджетным, автономным учреждениям и иным некоммерческим организациям","613","0801","0810144090","600",0,{"$f":"C51&D51&E51","v":"08010810144090600"}]
["Подпрограмма «Развитие клубов на 2015 – 2017 годы»","613","0801","0840000000","",{"$f":"F53","v":422000}]
["Обеспечение деятельности подведомственных учреждений культуры","613","0801","0840144091","",{"$f":"F54","v":422000}]
["Предоставление субсидий бюджетным, автономным учреждениям и иным некоммерческим организациям","613","0801","0840144091","600",422000,{"$f":"C54&D54&E54","v":"08010840144091600"}]
["Подпрограмма «Развитие библиотечного дела на 2015 – 2017 годы»","613","0801","0830000000","",{"$f":"F56","v":255000}]
["Обеспечение деятельности подведомственных учреждений культуры","613","0801","0830144090","",{"$f":"F57","v":255000}]
["Предоставление субсидий бюджетным, автономным учреждениям и иным некоммерческим организациям","613","0801","0830144090","600",255000,{"$f":"C57&D57&E57","v":"08010830144090600"}]
["ВСЕГО РАСХОДОВ","",null,null,null,{"$f":"F39+F12+F27","v":5855800}]
[]
[]
["         Глава Района                                   С.Д.Димитриев"]

{"sheet":"9","index":9,"n_rows":45,"n_cols":2,"rows_kept":45,"cut":false,"hidden":true,"merged":[[4,0,4,1],[8,0,10,0],[6,0,6,1],[5,0,5,1],[8,1,10,1]]}
[null,{"$f":"дата!$A$2&дата!$C$11","v":"Приложение №"}]
[null,"к решению Кукморского"]
[null,"районного Совета"]
[null,{"$f":"дата!$C$1","v":"от 28 марта 2016 г. № "}]
["Субсидии из бюджетов поселений на осуществление части полномочий"]
["по решению вопросов  местного  значения в соответствии "]
["с заключенными соглашениями на финансовый контроль на 2016 год"]
[]
["Наименование  поселений","Сумма, рублей"]
[]
[]
["Байлянгарское сельское поселение",{"$f":"плрег16!BL8*1000","v":8000}]
["Березнякское сельское поселение",{"$f":"плрег16!BL9*1000","v":5000}]
["Большекукморское сельское поселение",{"$f":"плрег16!BL10*1000","v":15000}]
["Большесардекское сельское поселение",{"$f":"плрег16!BL11*1000","v":19000}]
["Важашурское сельское поселение",{"$f":"плрег16!BL12*1000","v":7000}]
["Каенсарское сельское поселение",{"$f":"плрег16!BL13*1000","v":4000}]
["Каркаусское сельское поселение",{"$f":"плрег16!BL14*1000","v":7000}]
["Кошкинское сельское поселение",{"$f":"плрег16!BL15*1000","v":7000}]
["Лельвижское сельское поселение",{"$f":"плрег16!BL16*1000","v":5000}]
["Лубянское сельское поселение",{"$f":"плрег16!BL17*1000","v":13000}]
["Мамаширское сельское поселение",{"$f":"плрег16!BL18*1000","v":6000}]
["Манзарасское сельское поселение",{"$f":"плрег16!BL19*1000","v":12000}]
["Нижнеискубашское сельское поселение",{"$f":"плрег16!BL20*1000","v":7000}]
["Нижнерусское сельское поселение",{"$f":"плрег16!BL21*1000","v":6000}]
["Ныртинское сельское поселение",{"$f":"плрег16!BL22*1000","v":7000}]
["Нырьинское сельское поселение",{"$f":"плрег16!BL23*1000","v":10000}]
["Олуязское сельское поселение",{"$f":"плрег16!BL24*1000","v":10000}]
["Ошторма-Юмьинское сельское поселение",{"$f":"плрег16!BL25*1000","v":10000}]
["поселок городского типа Кукмор",{"$f":"плрег16!BL26*1000","v":138000}]
["Починок-Кучуковское сельское поселение",{"$f":"плрег16!BL27*1000","v":7000}]
["Псякское сельское поселение",{"$f":"плрег16!BL28*1000","v":5000}]
["Сардекбашское сельское поселение",{"$f":"плрег16!BL29*1000","v":9000}]
["Село-Чуринское сельское поселение",{"$f":"плрег16!BL30*1000","v":9000}]
["Среднекуморское сельское поселение",{"$f":"плрег16!BL31*1000","v":10000}]
["Туембашское сельское поселение",{"$f":"плрег16!BL32*1000","v":6000}]
["Уркушское сельское поселение",{"$f":"плрег16!BL33*1000","v":5000}]
["Чарлинское сельское поселение",{"$f":"плрег16!BL34*1000","v":6000}]
["Ядыгерьское сельское поселение",{"$f":"плрег16!BL35*1000","v":7000}]
["Яныльское сельское поселение",{"$f":"плрег16!BL36*1000","v":10000}]
["Ятмас-Дусаевское сельское поселение",{"$f":"плрег16!BL37*1000","v":5000}]
["ВСЕГО",{"$f":"SUM(B12:B41)","v":375000}]
[]
[]
["         Глава Района                                   С.Д.Димитриев"]

{"sheet":"10","index":10,"n_rows":45,"n_cols":2,"rows_kept":45,"cut":false,"hidden":true,"merged":[[4,0,4,1],[5,0,5,1],[6,0,6,1],[8,0,10,0],[8,1,10,1]]}
[null,{"$f":"дата!$A$2&дата!$C$12","v":"Приложение №"}]
[null,"к решению Кукморского"]
[null,"районного Совета"]
[null,{"$f":"дата!$C$1","v":"от 28 марта 2016 г. № "}]
["Субсидии в бюджеты поселений на осуществление части полномочий"]
["по осуществлению дорожной деятельности на 2016 год"]
[]
[]
["Наименование  поселений","Сумма, рублей"]
[]
[]
["Байлянгарское сельское поселение",{"$f":"плрег16!AR8*1000","v":16000}]
["Березнякское сельское поселение",{"$f":"плрег16!AR9*1000","v":10900}]
["Большекукморское сельское поселение",{"$f":"плрег16!AR10*1000","v":40500}]
["Большесардекское сельское поселение",{"$f":"плрег16!AR11*1000","v":50900}]
["Важашурское сельское поселение",{"$f":"плрег16!AR12*1000","v":14700}]
["Каенсарское сельское поселение",{"$f":"плрег16!AR13*1000","v":5500}]
["Каркаусское сельское поселение",{"$f":"плрег16!AR14*1000","v":13400}]
["Кошкинское сельское поселение",{"$f":"плрег16!AR15*1000","v":15200}]
["Лельвижское сельское поселение",{"$f":"плрег16!AR16*1000","v":7900}]
["Лубянское сельское поселение",{"$f":"плрег16!AR17*1000","v":22900}]
["Мамаширское сельское поселение",{"$f":"плрег16!AR18*1000","v":12000}]
["Манзарасское сельское поселение",{"$f":"плрег16!AR19*1000","v":29700}]
["Нижнеискубашское сельское поселение",{"$f":"плрег16!AR20*1000","v":15200}]
["Нижнерусское сельское поселение",{"$f":"плрег16!AR21*1000","v":11900}]
["Ныртинское сельское поселение",{"$f":"плрег16!AR22*1000","v":14100}]
["Нырьинское сельское поселение",{"$f":"плрег16!AR23*1000","v":21300}]
["Олуязское сельское поселение",{"$f":"плрег16!AR24*1000","v":21900}]
["Ошторма-Юмьинское сельское поселение",{"$f":"плрег16!AR25*1000","v":21400}]
["поселок городского типа Кукмор",{"$f":"плрег16!AR26*1000","v":0}]
["Починок-Кучуковское сельское поселение",{"$f":"плрег16!AR27*1000","v":16300}]
["Псякское сельское поселение",{"$f":"плрег16!AR28*1000","v":10500}]
["Сардекбашское сельское поселение",{"$f":"плрег16!AR29*1000","v":18600}]
["Село-Чуринское сельское поселение",{"$f":"плрег16!AR30*1000","v":20000}]
["Среднекуморское сельское поселение",{"$f":"плрег16!AR31*1000","v":15600}]
["Туембашское сельское поселение",{"$f":"плрег16!AR32*1000","v":10300}]
["Уркушское сельское поселение",{"$f":"плрег16!AR33*1000","v":9200}]
["Чарлинское сельское поселение",{"$f":"плрег16!AR34*1000","v":10000}]
["Ядыгерьское сельское поселение",{"$f":"плрег16!AR35*1000","v":15100}]
["Яныльское сельское поселение",{"$f":"плрег16!AR36*1000","v":21300}]
["Ятмас-Дусаевское сельское поселение",{"$f":"плрег16!AR37*1000","v":7700}]
["ВСЕГО",{"$f":"SUM(B12:B41)","v":500000}]
[]
[]
["         Заместитель главы Района                                   Р.А.Каримуллина"]

{"sheet":"11","index":11,"n_rows":45,"n_cols":2,"rows_kept":45,"cut":false,"hidden":true,"merged":[[4,0,4,1],[5,0,5,1],[6,0,6,1],[8,0,10,0],[8,1,10,1]]}
[null,{"$f":"дата!$A$2&дата!$C$13","v":"Приложение №"}]
[null,"к решению Кукморского"]
[null,"районного Совета"]
[null,{"$f":"дата!$C$1","v":"от 28 марта 2016 г. № "}]
["Иные межбюджетные трансферты из бюджетов поселений на осуществление"]
["полномочий исполнительных комитетов поселений,  входящих в  состав Кукморского муниципального района Республики Татарстан, по распоряжению земельными участками, государственная собственность на которые не разграничена и которые расположены на территориях поселений, при наличии утвержденных правил землепользования и застройки поселений на 2016 год"]
[]
[]
["Наименование  поселений","Сумма, рублей"]
[]
[]
["Байлянгарское сельское поселение",{"$f":"плрег16!BN8*1000","v":3200}]
["Березнякское сельское поселение",{"$f":"плрег16!BN9*1000","v":2200}]
["Большекукморское сельское поселение",{"$f":"плрег16!BN10*1000","v":8100}]
["Большесардекское сельское поселение",{"$f":"плрег16!BN11*1000","v":10200}]
["Важашурское сельское поселение",{"$f":"плрег16!BN12*1000","v":2900}]
["Каенсарское сельское поселение",{"$f":"плрег16!BN13*1000","v":1100}]
["Каркаусское сельское поселение",{"$f":"плрег16!BN14*1000","v":2700}]
["Кошкинское сельское поселение",{"$f":"плрег16!BN15*1000","v":3000}]
["Лельвижское сельское поселение",{"$f":"плрег16!BN16*1000","v":1600}]
["Лубянское сельское поселение",{"$f":"плрег16!BN17*1000","v":4600}]
["Мамаширское сельское поселение",{"$f":"плрег16!BN18*1000","v":2400}]
["Манзарасское сельское поселение",{"$f":"плрег16!BN19*1000","v":5900}]
["Нижнеискубашское сельское поселение",{"$f":"плрег16!BN20*1000","v":3000}]
["Нижнерусское сельское поселение",{"$f":"плрег16!BN21*1000","v":2400}]
["Ныртинское сельское поселение",{"$f":"плрег16!BN22*1000","v":2800}]
["Нырьинское сельское поселение",{"$f":"плрег16!BN23*1000","v":4300}]
["Олуязское сельское поселение",{"$f":"плрег16!BN24*1000","v":4400}]
["Ошторма-Юмьинское сельское поселение",{"$f":"плрег16!BN25*1000","v":4300}]
["поселок городского типа Кукмор",{"$f":"плрег16!BN26*1000","v":0}]
["Починок-Кучуковское сельское поселение",{"$f":"плрег16!BN27*1000","v":3300}]
["Псякское сельское поселение",{"$f":"плрег16!BN28*1000","v":2100}]
["Сардекбашское сельское поселение",{"$f":"плрег16!BN29*1000","v":3700}]
["Село-Чуринское сельское поселение",{"$f":"плрег16!BN30*1000","v":4000}]
["Среднекуморское сельское поселение",{"$f":"плрег16!BN31*1000","v":3100}]
["Туембашское сельское поселение",{"$f":"плрег16!BN32*1000","v":2100}]
["Уркушское сельское поселение",{"$f":"плрег16!BN33*1000","v":1800}]
["Чарлинское сельское поселение",{"$f":"плрег16!BN34*1000","v":2000}]
["Ядыгерьское сельское поселение",{"$f":"плрег16!BN35*1000","v":3000}]
["Яныльское сельское поселение",{"$f":"плрег16!BN36*1000","v":4300}]
["Ятмас-Дусаевское сельское поселение",{"$f":"плрег16!BN37*1000","v":1500}]
["ВСЕГО",{"$f":"SUM(B12:B41)","v":100000}]
[]
[]
["         Заместитель главы Района                                   Р.А.Каримуллина"]

{"sheet":"12","index":12,"n_rows":45,"n_cols":4,"rows_kept":45,"cut":false,"hidden":true,"merged":[[5,0,5,3],[6,0,6,3],[9,0,11,0],[9,1,9,3],[10,1,11,1],[10,2,10,3]]}
[null,null,{"$f":"дата!$A$2&дата!$C$14","v":"Приложение №"}]
[null,null,"к решению Кукморского"]
[null,null,"районного Совета"]
[null,null,{"$f":"дата!$C$1","v":"от 28 марта 2016 г. № "}]
[]
["   Дотации бюджетам поселений "]
[" на выравнивание бюджетной обеспеченности поселений на 2016 год"]
[]
[]
["Наименование  поселений","Сумма, рублей"]
[null,"всего","в том числе"]
[null,null,"за счет субвенции из регионального фонда финансовой поддержки поселений","за счет субсидий на выравнивание бюджетной обеспеченности поселений"]
[{"$f":"плрег16!B8","v":"Байлянгарское сельское поселение"},{"$f":"SUM(C13:D13)","v":985600},{"$f":"плрег16!T8*1000","v":38400},{"$f":"плрег16!U8*1000","v":947200}]
[{"$f":"плрег16!B9","v":"Березнякское сельское поселение"},{"$f":"SUM(C14:D14)","v":696500},{"$f":"плрег16!T9*1000","v":25800},{"$f":"плрег16!U9*1000","v":670700}]
[{"$f":"плрег16!B10","v":"Большекукморское сельское поселение"},665700,{"$f":"плрег16!T10*1000","v":96800},{"$f":"плрег16!U10*1000","v":568900}]
[{"$f":"плрег16!B11","v":"Большесардекское сельское поселение"},846100,{"$f":"плрег16!T11*1000","v":121500},{"$f":"плрег16!U11*1000","v":724600}]
[{"$f":"плрег16!B12","v":"Важашурское сельское поселение"},904500,{"$f":"плрег16!T12*1000","v":33800},{"$f":"плрег16!U12*1000","v":870700}]
[{"$f":"плрег16!B13","v":"Каенсарское сельское поселение"},810800,{"$f":"плрег16!T13*1000","v":12700},{"$f":"плрег16!U13*1000","v":798100}]
[{"$f":"плрег16!B14","v":"Каркаусское сельское поселение"},992700,{"$f":"плрег16!T14*1000","v":31900},{"$f":"плрег16!U14*1000","v":960800}]
[{"$f":"плрег16!B15","v":"Кошкинское сельское поселение"},636900,{"$f":"плрег16!T15*1000","v":36500},{"$f":"плрег16!U15*1000","v":600400}]
[{"$f":"плрег16!B16","v":"Лельвижское сельское поселение"},660400,{"$f":"плрег16!T16*1000","v":18100},{"$f":"плрег16!U16*1000","v":642300}]
[{"$f":"плрег16!B17","v":"Лубянское сельское поселение"},2418900,{"$f":"плрег16!T17*1000","v":55300},{"$f":"плрег16!U17*1000","v":2363600}]
[{"$f":"плрег16!B18","v":"Мамаширское сельское поселение"},746800,{"$f":"плрег16!T18*1000","v":28500},{"$f":"плрег16!U18*1000","v":718300}]
[{"$f":"плрег16!B19","v":"Манзарасское сельское поселение"},860900,{"$f":"плрег16!T19*1000","v":72200},{"$f":"плрег16!U19*1000","v":788700}]
[{"$f":"плрег16!B20","v":"Нижнеискубашское сельское поселение"},769200,{"$f":"плрег16!T20*1000","v":36300},{"$f":"плрег16!U20*1000","v":732900}]
[{"$f":"плрег16!B21","v":"Нижнерусское сельское поселение"},934700,{"$f":"плрег16!T21*1000","v":27500},{"$f":"плрег16!U21*1000","v":907200}]
[{"$f":"плрег16!B22","v":"Ныртинское сельское поселение"},907400,{"$f":"плрег16!T22*1000","v":31900},{"$f":"плрег16!U22*1000","v":875500}]
[{"$f":"плрег16!B23","v":"Нырьинское сельское поселение"},99700,{"$f":"плрег16!T23*1000","v":49300},{"$f":"плрег16!U23*1000","v":50400}]
[{"$f":"плрег16!B24","v":"Олуязское сельское поселение"},913200,{"$f":"плрег16!T24*1000","v":52300},{"$f":"плрег16!U24*1000","v":860900}]
[{"$f":"плрег16!B25","v":"Ошторма-Юмьинское сельское поселение"},708600,{"$f":"плрег16!T25*1000","v":51200},{"$f":"плрег16!U25*1000","v":657400}]
[{"$f":"плрег16!B26","v":"поселок городского типа Кукмор"},610199.99999999988,{"$f":"плрег16!T26*1000","v":610199.99999999988},{"$f":"плрег16!U26*1000","v":0}]
[{"$f":"плрег16!B27","v":"Починок-Кучуковское сельское поселение"},684500,{"$f":"плрег16!T27*1000","v":38200},{"$f":"плрег16!U27*1000","v":646300}]
[{"$f":"плрег16!B28","v":"Псякское сельское поселение"},644600,{"$f":"плрег16!T28*1000","v":25000},{"$f":"плрег16!U28*1000","v":619600}]
[{"$f":"плрег16!B29","v":"Сардекбашское сельское поселение"},768500,{"$f":"плрег16!T29*1000","v":43700},{"$f":"плрег16!U29*1000","v":724800}]
[{"$f":"плрег16!B30","v":"Село-Чуринское сельское поселение"},1055800,{"$f":"плрег16!T30*1000","v":47500},{"$f":"плрег16!U30*1000","v":1008300}]
[{"$f":"плрег16!B31","v":"Среднекуморское сельское поселение"},1013100,{"$f":"плрег16!T31*1000","v":36300},{"$f":"плрег16!U31*1000","v":976800}]
[{"$f":"плрег16!B32","v":"Туембашское сельское поселение"},693200,{"$f":"плрег16!T32*1000","v":24200},{"$f":"плрег16!U32*1000","v":669000}]
[{"$f":"плрег16!B33","v":"Уркушское сельское поселение"},848500,{"$f":"плрег16!T33*1000","v":21300},{"$f":"плрег16!U33*1000","v":827200}]
[{"$f":"плрег16!B34","v":"Чарлинское сельское поселение"},852200,{"$f":"плрег16!T34*1000","v":22800},{"$f":"плрег16!U34*1000","v":829400}]
[{"$f":"плрег16!B35","v":"Ядыгерьское сельское поселение"},631300,{"$f":"плрег16!T35*1000","v":35600},{"$f":"плрег16!U35*1000","v":595700}]
[{"$f":"плрег16!B36","v":"Яныльское сельское поселение"},138300,{"$f":"плрег16!T36*1000","v":50400},{"$f":"плрег16!U36*1000","v":87900}]
[{"$f":"плрег16!B37","v":"Ятмас-Дусаевское сельское поселение"},856100,{"$f":"плрег16!T37*1000","v":17700},{"$f":"плрег16!U37*1000","v":838400}]
["ВСЕГО",{"$f":"SUM(B13:B42)","v":24354900},{"$f":"SUM(C13:C42)","v":1792900},{"$f":"SUM(D13:D42)","v":22562000}]
[]
["         Глава Района                                   С.Д.Димитриев"]

{"sheet":"13","index":13,"n_rows":46,"n_cols":2,"rows_kept":46,"cut":false,"hidden":true,"merged":[[5,0,5,1],[8,0,10,0],[8,1,10,1]]}
[null,{"$f":"дата!$A$2&дата!$C$15","v":"Приложение №"}]
[null,"к решению Кукморского"]
[null,"районного Совета"]
[null,{"$f":"дата!$C$1","v":"от 28 марта 2016 г. № "}]
[]
["Дотации на сбалансированность поселений в 2016 году"]
[]
[null,"(рублей)"]
["Наименование  поселений","Сумма"]
[]
[]
[{"$f":"плрег16!B8","v":"Байлянгарское сельское поселение"},{"$f":"плрег16!V8*1000","v":175400}]
[{"$f":"плрег16!B9","v":"Березнякское сельское поселение"},{"$f":"плрег16!V9*1000","v":132600}]
[{"$f":"плрег16!B10","v":"Большекукморское сельское поселение"},{"$f":"плрег16!V10*1000","v":256200}]
[{"$f":"плрег16!B11","v":"Большесардекское сельское поселение"},{"$f":"плрег16!V11*1000","v":174500}]
[{"$f":"плрег16!B12","v":"Важашурское сельское поселение"},{"$f":"плрег16!V12*1000","v":142900}]
[{"$f":"плрег16!B13","v":"Каенсарское сельское поселение"},{"$f":"плрег16!V13*1000","v":121300}]
[{"$f":"плрег16!B14","v":"Каркаусское сельское поселение"},{"$f":"плрег16!V14*1000","v":169800}]
[{"$f":"плрег16!B15","v":"Кошкинское сельское поселение"},{"$f":"плрег16!V15*1000","v":129900}]
[{"$f":"плрег16!B16","v":"Лельвижское сельское поселение"},{"$f":"плрег16!V16*1000","v":108900}]
[{"$f":"плрег16!B17","v":"Лубянское сельское поселение"},{"$f":"плрег16!V17*1000","v":357100}]
[{"$f":"плрег16!B18","v":"Мамаширское сельское поселение"},{"$f":"плрег16!V18*1000","v":120100}]
[{"$f":"плрег16!B19","v":"Манзарасское сельское поселение"},{"$f":"плрег16!V19*1000","v":165300}]
[{"$f":"плрег16!B20","v":"Нижнеискубашское сельское поселение"},{"$f":"плрег16!V20*1000","v":127700}]
[{"$f":"плрег16!B21","v":"Нижнерусское сельское поселение"},{"$f":"плрег16!V21*1000","v":143500}]
[{"$f":"плрег16!B22","v":"Ныртинское сельское поселение"},{"$f":"плрег16!V22*1000","v":151000}]
[{"$f":"плрег16!B23","v":"Нырьинское сельское поселение"},{"$f":"плрег16!V23*1000","v":122700}]
[{"$f":"плрег16!B24","v":"Олуязское сельское поселение"},{"$f":"плрег16!V24*1000","v":180500}]
[{"$f":"плрег16!B25","v":"Ошторма-Юмьинское сельское поселение"},{"$f":"плрег16!V25*1000","v":125300}]
[{"$f":"плрег16!B26","v":"поселок городского типа Кукмор"},{"$f":"плрег16!V26*1000","v":0}]
[{"$f":"плрег16!B27","v":"Починок-Кучуковское сельское поселение"},{"$f":"плрег16!V27*1000","v":127100}]
[{"$f":"плрег16!B28","v":"Псякское сельское поселение"},{"$f":"плрег16!V28*1000","v":125900}]
[{"$f":"плрег16!B29","v":"Сардекбашское сельское поселение"},{"$f":"плрег16!V29*1000","v":129400}]
[{"$f":"плрег16!B30","v":"Село-Чуринское сельское поселение"},{"$f":"плрег16!V30*1000","v":194000}]
[{"$f":"плрег16!B31","v":"Среднекуморское сельское поселение"},{"$f":"плрег16!V31*1000","v":153400}]
[{"$f":"плрег16!B32","v":"Туембашское сельское поселение"},{"$f":"плрег16!V32*1000","v":126600}]
[{"$f":"плрег16!B33","v":"Уркушское сельское поселение"},{"$f":"плрег16!V33*1000","v":129699.99999999999}]
[{"$f":"плрег16!B34","v":"Чарлинское сельское поселение"},{"$f":"плрег16!V34*1000","v":147000}]
[{"$f":"плрег16!B35","v":"Ядыгерьское сельское поселение"},{"$f":"плрег16!V35*1000","v":125700}]
[{"$f":"плрег16!B36","v":"Яныльское сельское поселение"},{"$f":"плрег16!V36*1000","v":275200}]
[{"$f":"плрег16!B37","v":"Ятмас-Дусаевское сельское поселение"},{"$f":"плрег16!V37*1000","v":123100}]
[]
["ВСЕГО",{"$f":"SUM(B12:B42)","v":4561800}]
[]
[]
["         Глава Района                                   С.Д.Димитриев"]

{"sheet":"14","index":14,"n_rows":46,"n_cols":3,"rows_kept":46,"cut":false,"hidden":true,"merged":[[5,0,5,2],[6,0,6,2],[7,0,7,2],[9,0,11,0],[9,1,11,1],[9,2,11,2]]}
[null,{"$f":"дата!$A$2&дата!$C$16","v":"Приложение №"}]
[null,"к решению Кукморского"]
[null,"районного Совета"]
[null,{"$f":"дата!$C$1","v":"от 28 марта 2016 г. № "}]
[]
["Субвенция"]
["на выполнение федеральных полномочий по государственной регистрации"]
["актов гражданского состояния на 2016 год"]
[]
["Наименование  поселений","количество записей за 4 квартал 2014 года и 3 квартала 2015 года","Сумма, рублей"]
[]
[]
[{"$f":"плрег16!B8","v":"Байлянгарское сельское поселение"},5,{"$f":"плрег16!AJ8*1000","v":2900}]
[{"$f":"плрег16!B9","v":"Березнякское сельское поселение"},5,{"$f":"плрег16!AJ9*1000","v":2900}]
[{"$f":"плрег16!B10","v":"Большекукморское сельское поселение"},4,{"$f":"плрег16!AJ10*1000","v":2300}]
[{"$f":"плрег16!B11","v":"Большесардекское сельское поселение"},11,{"$f":"плрег16!AJ11*1000","v":6300}]
[{"$f":"плрег16!B12","v":"Важашурское сельское поселение"},20,{"$f":"плрег16!AJ12*1000","v":11400}]
[{"$f":"плрег16!B13","v":"Каенсарское сельское поселение"},1,{"$f":"плрег16!AJ13*1000","v":600}]
[{"$f":"плрег16!B14","v":"Каркаусское сельское поселение"},5,{"$f":"плрег16!AJ14*1000","v":2900}]
[{"$f":"плрег16!B15","v":"Кошкинское сельское поселение"},7,{"$f":"плрег16!AJ15*1000","v":4000}]
[{"$f":"плрег16!B16","v":"Лельвижское сельское поселение"},2,{"$f":"плрег16!AJ16*1000","v":1100}]
[{"$f":"плрег16!B17","v":"Лубянское сельское поселение"},6,{"$f":"плрег16!AJ17*1000","v":3400}]
[{"$f":"плрег16!B18","v":"Мамаширское сельское поселение"},1,{"$f":"плрег16!AJ18*1000","v":600}]
[{"$f":"плрег16!B19","v":"Манзарасское сельское поселение"},3,{"$f":"плрег16!AJ19*1000","v":1700}]
[{"$f":"плрег16!B20","v":"Нижнеискубашское сельское поселение"},5,{"$f":"плрег16!AJ20*1000","v":2900}]
[{"$f":"плрег16!B21","v":"Нижнерусское сельское поселение"},3,{"$f":"плрег16!AJ21*1000","v":1700}]
[{"$f":"плрег16!B22","v":"Ныртинское сельское поселение"},6,{"$f":"плрег16!AJ22*1000","v":3400}]
[{"$f":"плрег16!B23","v":"Нырьинское сельское поселение"},3,{"$f":"плрег16!AJ23*1000","v":1700}]
[{"$f":"плрег16!B24","v":"Олуязское сельское поселение"},2,{"$f":"плрег16!AJ24*1000","v":1100}]
[{"$f":"плрег16!B25","v":"Ошторма-Юмьинское сельское поселение"},17,{"$f":"плрег16!AJ25*1000","v":9700}]
[{"$f":"плрег16!B26","v":"поселок городского типа Кукмор"},0,{"$f":"плрег16!AJ26*1000","v":0}]
[{"$f":"плрег16!B27","v":"Починок-Кучуковское сельское поселение"},4,{"$f":"плрег16!AJ27*1000","v":2300}]
[{"$f":"плрег16!B28","v":"Псякское сельское поселение"},0,{"$f":"плрег16!AJ28*1000","v":0}]
[{"$f":"плрег16!B29","v":"Сардекбашское сельское поселение"},7,{"$f":"плрег16!AJ29*1000","v":4000}]
[{"$f":"плрег16!B30","v":"Село-Чуринское сельское поселение"},6,{"$f":"плрег16!AJ30*1000","v":3400}]
[{"$f":"плрег16!B31","v":"Среднекуморское сельское поселение"},8,{"$f":"плрег16!AJ31*1000","v":4600}]
[{"$f":"плрег16!B32","v":"Туембашское сельское поселение"},0,{"$f":"плрег16!AJ32*1000","v":0}]
[{"$f":"плрег16!B33","v":"Уркушское сельское поселение"},3,{"$f":"плрег16!AJ33*1000","v":1700}]
[{"$f":"плрег16!B34","v":"Чарлинское сельское поселение"},2,{"$f":"плрег16!AJ34*1000","v":1100}]
[{"$f":"плрег16!B35","v":"Ядыгерьское сельское поселение"},10,{"$f":"плрег16!AJ35*1000","v":5700}]
[{"$f":"плрег16!B36","v":"Яныльское сельское поселение"},28,{"$f":"плрег16!AJ36*1000","v":16000}]
[{"$f":"плрег16!B37","v":"Ятмас-Дусаевское сельское поселение"},1,{"$f":"плрег16!AJ37*1000","v":600}]
["ВСЕГО",{"$f":"SUM(B13:B42)","v":175},{"$f":"SUM(C13:C42)","v":100000}]
[]
[]
["         Глава Района                                   С.Д.Димитриев"]

{"sheet":"15","index":15,"n_rows":44,"n_cols":7,"rows_kept":44,"cut":false,"hidden":true,"merged":[[7,0,7,3],[6,0,6,3],[5,0,5,3]]}
[null,null,{"$f":"дата!$A$2&дата!$C$17","v":"Приложение №"}]
[null,null,"к решению Кукморского"]
[null,null,"районного Совета"]
[null,null,{"$f":"дата!$C$1","v":"от 28 марта 2016 г. № "}]
[]
["Субвенция"]
["на осуществление полномочий по первичному воинскому учету на территориях,"]
["где отсутствуют военные комиссариаты на 2016 год"]
[]
["Наименование муниципального образования, в котором отсутствует военный комиссариат ","Количество граждан, состоящих   на воинском  учете","Количество  освобожденных  работников, требующихся  для осуществления воинского учета ","сумма на год, рублей"]
["Байлянгарское сельское поселение",313,"-",{"$f":"плрег16!AK8*1000","v":86500},40,{"$f":"D11-E11","v":86460}]
["Березнякское сельское поселение",175,"-",{"$f":"плрег16!AK9*1000","v":48400},32,{"$f":"D12-E12","v":48368}]
["Большекукморское сельское поселение",693,1,{"$f":"плрег16!AK10*1000","v":191600},131,191469,10600]
["Большесардекское сельское поселение",891,1,{"$f":"плрег16!AK11*1000","v":246300},170,246130]
["Важашурское сельское поселение",287,"-",{"$f":"плрег16!AK12*1000","v":79300},44,79256]
["Каенсарское сельское поселение",108,"-",{"$f":"плрег16!AK13*1000","v":29900},27,29873]
["Каркаусское сельское поселение",208,"-",{"$f":"плрег16!AK14*1000","v":57500},36,57464]
["Кошкинское сельское поселение",300,"-",{"$f":"плрег16!AK15*1000","v":82900},39,82861]
["Лельвижское сельское поселение",158,"-",{"$f":"плрег16!AK16*1000","v":43700},31,43669]
["Лубянское сельское поселение",148,"-",{"$f":"плрег16!AK17*1000","v":40900},38,40862]
["Мамаширское сельское поселение",209,"-",{"$f":"плрег16!AK18*1000","v":57800},34,57766]
["Манзарасское сельское поселение",457,"-",{"$f":"плрег16!AK19*1000","v":126300},56,126244]
["Нижнеискубашское сельское поселение",239,"-",{"$f":"плрег16!AK20*1000","v":66100},40,66060]
["Нижнерусское сельское поселение",210,"-",{"$f":"плрег16!AK21*1000","v":58100},37,58063]
["Ныртинское сельское поселение",225,"-",{"$f":"плрег16!AK22*1000","v":62200},43,62157]
["Нырьинское сельское поселение",387,"-",{"$f":"плрег16!AK23*1000","v":107000},47,106953]
["Олуязское сельское поселение",346,"-",{"$f":"плрег16!AK24*1000","v":95600},47,95553]
["Ошторма-Юмьинское сельское поселение",434,"-",{"$f":"плрег16!AK25*1000","v":120000},50,119950]
[null,0,null,{"$f":"плрег16!AK26*1000","v":0}]
["Починок-Кучуковское сельское поселение",302,"-",{"$f":"плрег16!AK27*1000","v":83500},40,83460]
["Псякское сельское поселение",159,"-",{"$f":"плрег16!AK28*1000","v":44000},34,43966]
["Сардекбашское сельское поселение",349,"-",{"$f":"плрег16!AK29*1000","v":96500},44,96456]
["Село-Чуринское сельское поселение",342,"-",{"$f":"плрег16!AK30*1000","v":94500},49,94451]
["Среднекуморское сельское поселение",305,"-",{"$f":"плрег16!AK31*1000","v":84300},45,84255]
["Туембашское сельское поселение",151,"-",{"$f":"плрег16!AK32*1000","v":41700},33,41667]
["Уркушское сельское поселение",160,"-",{"$f":"плрег16!AK33*1000","v":44200},31,44169]
["Чарлинское сельское поселение",192,"-",{"$f":"плрег16!AK34*1000","v":53100},34,53066]
["Ядыгерьское сельское поселение",273,"-",{"$f":"плрег16!AK35*1000","v":75500},39,75461]
["Яныльское сельское поселение",372,"-",{"$f":"плрег16!AK36*1000","v":102800},43,102757]
["Ятмас-Дусаевское сельское поселение",118,"-",{"$f":"плрег16!AK37*1000","v":32600},32,32568]
["ИТОГО",{"$f":"SUM(B11:B40)","v":8511},{"$f":"SUM(C11:C40)","v":2},{"$f":"SUM(D11:D40)","v":2352800},{"$f":"SUM(E11:E40)","v":1366},2351434]
[]
[]
["         Глава Района                                   С.Д.Димитриев"]

{"sheet":"16","index":16,"n_rows":29,"n_cols":4,"rows_kept":29,"cut":false,"hidden":false,"merged":[[5,0,5,2],[6,0,6,2],[8,0,10,0],[8,1,9,1],[8,2,10,2]]}
[null,{"$f":"дата!$A$2&дата!$C$18","v":"Приложение №5"}]
[null,"к решению Совета Кукморского"]
[null,"муниципального района"]
[null,{"$f":"дата!C1","v":"от 28 марта 2016 г. № "}]
[]
["Межбюджетные трансферты, получаемые \n"]
[" из бюджета Республики Татарстан и бюджетов поселений в 2016 году\n"]
[null,null,"(рублей)"]
["Наименование","код дохода","сумма"]
[]
[null,"квд"]
[]
["БЕЗВОЗМЕЗДНЫЕ ПОСТУПЛЕНИЯ","2.00.00000.00.0000.000",752025366.66999996]
["БЕЗВОЗМЕЗДНЫЕ ПОСТУПЛЕНИЯ ОТ ДРУГИХ БЮДЖЕТОВ БЮДЖЕТНОЙ СИСТЕМЫ РОССИЙСКОЙ ФЕДЕРАЦИИ","2.02.00000.00.0000.000",752025366.66999996]
["Дотации бюджетам муниципальных районов на выравнивание бюджетной обеспеченности","2.02.01001.05.0000.151",69862100,{"$f":"LEFT(B15,7)","v":"2.02.01"}]
["Субсидии бюджетам муниципальных районов на обеспечение мероприятий по переселению граждан из аварийного жилищного фонда за счет средств, поступивших от государственной корпорации Фонд содействия реформированию жилищно-коммунального хозяйства","2.02.02088.05.0000.151",41301035.149999999,{"$f":"LEFT(B16,7)","v":"2.02.02"}]
["Прочие субсидии бюджетам муниципальных районов","2.02.02999.05.0000.151",267248082.52000001,{"$f":"LEFT(B17,7)","v":"2.02.02"}]
["Субвенции бюджетам муниципальных районов на государственную регистрацию актов гражданского состояния","2.02.03003.05.0000.151",1654000,"2.02.03"]
["Субвенции бюджетам муниципальных районов на составление (изменение) списков кандидатов в присяжные заседатели федеральных судов общей юрисдикции в Российской Федерации","2.02.03007.05.0000.151",28700,"2.02.03"]
["Субвенции бюджетам муниципальных районов на осуществление первичного воинского учета на территориях, где отсутствуют военные комиссариаты","2.02.03015.05.0000.151",2352800,"2.02.03"]
["Субвенции бюджетам муниципальных районов на выполнение передаваемых полномочий субъектов Российской Федерации","2.02.03024.05.0000.151",347978849,"2.02.03"]
["Межбюджетные трансферты, передаваемые бюджетам муниципальных районов для компенсации дополнительных расходов, возникших в результате решений, принятых органами власти другого уровня","2.02.04012.05.0000.151",15987300,"2.02.04"]
["Межбюджетные трансферты, передаваемые бюджетам муниципальных районов из бюджетов поселений на осуществление части полномочий по решению вопросов местного значения в соответствии с заключенными соглашениями","2.02.04014.05.0000.151",4863000,"2.02.04"]
["Межбюджетные трансферты, передаваемые бюджетам муниципальных районов на комплектование книжных фондов библиотек муниципальных образований","2.02.04025.05.0000.151",16900,"2.02.04"]
["Прочие межбюджетные трансферты, передаваемые бюджетам муниципальных районов","2.02.04999.05.0000.151",732600,"2.02.04"]
["ИТОГО","",{"$f":"C13","v":752025366.66999996}]
[]
[]
["         Глава Района                                   С.Д.Димитриев"]

{"sheet":"плрег16","index":17,"n_rows":56,"n_cols":212,"rows_kept":56,"cut":false,"hidden":true,"merged":[[43,12,43,15],[4,14,5,14],[4,15,5,15],[4,10,5,10],[4,11,5,11],[3,36,5,36],[3,37,5,37],[3,38,5,38],[3,33,5,33],[3,34,5,34],[3,35,5,35],[3,0,5,0],[3,1,5,1],[3,2,5,2],[3,19,3,22],[3,23,5,23],[4,8,5,8],[4,9,5,9],[4,12,4,13],[4,16,5,16],[4,3,5,3],[4,4,5,4],[4,5,5,5],[4,6,5,6],[4,7,5,7],[4,17,5,17],[4,18,5,18],[4,19,5,19],[4,20,5,20],[4,21,5,21],[4,22,5,22],[3,24,5,24],[3,25,5,25],[3,26,5,26],[3,27,5,27],[0,46,0,48],[3,44,5,44],[3,40,5,40],[3,41,5,41],[3,42,5,42],[3,43,5,43],[3,46,5,46],[3,39,5,39],[3,28,5,28],[3,29,5,29],[3,30,5,30],[3,31,5,31],[3,32,5,32],[3,54,5,54],[3,64,5,64],[3,90,5,90],[3,66,5,66],[3,55,5,55],[3,89,5,89],[3,57,5,57],[3,58,5,58],[3,59,5,59],[3,60,5,60],[3,86,5,86],[3,56,5,56],[3,67,5,67],[3,79,3,84],[3,87,5,87],[3,88,5,88],[3,53,5,53],[3,47,5,47],[3,48,5,48],[3,49,5,49],[3,50,5,50],[3,51,5,51],[3,52,5,52],[3,61,5,61],[3,62,5,62],[3,63,5,63],[4,79,5,79],[4,80,4,84],[3,65,5,65],[46,42,46,44],[42,42,42,44],[43,42,43,44],[44,42,44,44],[45,42,45,44],[4,203,5,203],[3,172,3,175],[3,177,5,177],[3,184,3,191],[4,184,5,184],[4,185,4,191],[3,178,5,178],[3,179,5,179]]}
[{"$f":"BQ10","v":0},"допкод МФ РТ",null,"План регулирования на",null,null,2016,"год",null,null,null,null,null,null,null,null,null,null,null,null,null,{"$f":"Y40-V2","v":-2100.0000000000036},null,13220,13110,13120,103395,103310,null,"103350","103355",103360,null,103335,103340,null,null,103345,103345,103396,103397,null,null,null,null,null,null,null,null,null,null,null,null,null,null,null,null,null,null,null,null,null,null,null,null,null,null,null,null,null,null,null,null,null,null,null,null,null,null,null,null,null,null,null,null,null,null,null,null,null,null,null,null,null,null,null,null,null,null,null,null,null,null,null,null,null,null,null,null,null,null,null,null,null,null,null,null,null,null,null,null,null,null,null,null,null,null,"Субвенция по соглашениям (Культура)"]
[null,"допкод МР",null,null,null,null,null,null,null,null,null,null,null,null,null,null,null,null,null,null,{"$f":"SUM(T38:U38)","v":24354.900000000005},{"$f":"W38-T38","v":27123.800000000003},null,"00934","00951","00954","00931","00936",null,"00937","00946","00940","00947","00938","00939","00920","00926","00943","00943","00945","00944","00942","00925"]
[null,"№ прил Закона РТ",null,null,null,null,null,null,null,null,null,null,null,null,null,null,null,null,null,null,null,null,null,"№11","№12","№13","№14","№15","№16","№19","№20","№21","№26(1)","№21","№17","№27","№28","№18","№18","№22","№23","№27",null,null,null,null,null,null,null,null,null,null,null,null,null,null,null,null,null,null,null,null,null,null,null,null,null,null,null,null,null,null,null,null,null,null,null,null,null,null,null,null,null,null,null,null,250,null,null,null,null,null,null,null,null,null,null,null,null,null,null,null,null,null,null,null,null,null,null,null,null,null,null,null,null,null,null,null,null,null,null,null,null,null,null,null,null,null,null,null,null,null,null,null,null,null,null,null,null,null,null,null,null,null,null,null,null,null,null,null,null,null,null,null,null,null,null,null,null,null,null,null,null,null,null,null,null,null,null,null,null,null,null,null,null,null,null,null,null,null,null,null,null,null,null,310]
["Код администратора","Наименование поселений","население на 01.01.2015",null,null,null,null,null,null,null,null,null,null,null,null,null,null,null,null,"Районный фонд финансовой поддержки поселений",null,null,null,"Дотации бюджетам МР","Субсидии из РФС соцрасходов","Субсидии(соцрасходы Образования)","Субвенция исходя из количества жителей","Субвенции школам","Субвенции детсадам","Субвенции по комиисии несоверш","Субвенции по адм.практике","Субвенции молодежная политика","Субвенции ветстанции","Иные трансферты на книжный фонд","Субвенции Образованию","Субвенции ЗАГСам","Субвенции по первичному воинскому учету","Субвенции по составлению (изменению) списков кандидатов в присяжные заседатели федеральных судов","Субвенции ИМО образовательных учрежд","Субвенции архиву","Субвенции на опеку","Субвенции на проведение протовоэпид мероприятий","Субвенция протоколы, ведение регистра, ","Субвенции из  вышестоящих бюджетов (дорфонд)","Субвенции из  нижстоящ.бюджетов (ксп+зем+кржф)","ВСЕГО ","Дефицит","Общегосударственные вопросы","ЦБ","ЗАГС","Полномочия","Национальная оборона","Национальная безопасность","Национальная экономика","ЖКХ","Охрана окружающей среды","Образование","Молодежная политика","Культура","Здравоохранение","Социальная политика","Физическая культура и спорт","Обслуживание муниципального долга","МТ (по соглашению-ксп)","МТ (по соглашению-ЖКХ)","МТ (здравоохранение)","МТ (по соглашению-ЖКХ)","Всего расходов",null,null,null,null,null,null,null,null,null,null,null,"РАСХОДЫ НА 1 ЖИТЕЛЯ ПОСЕЛЕНИЯ,руб",null,null,null,null,null,null,"жкх 2012год","жкх 2009год1.07","жкх 2008год-план","разница","разница в расчете на 1 жителя,руб",null,null,null,null,null,null,null,null,null,null,null,null,null,null,null,null,null,null,null,null,null,null,null,null,"213+211",null,null,null,null,null,null,null,null,null,null,null,null,null,null,null,null,null,null,null,null,null,null,null,null,null,null,null,null,null,null,null,null,null,null,null,null,null,null,null,null,null,null,null,null,null,null,null,null,null,null,null,null,null,null,null,null,"проверка",null,null,null,null,"земельный было","плюс бюдж бюджетных учреждений Кукморского муниципального района","стало",null,null,null,null,"РАСХОДЫ  ЖКХ НА 1 ЖИТЕЛЯ ПОСЕЛЕНИЯ,руб"]
[null,null,null,"НДФЛ","имущество фл ","земельный налог ","ед.налог на вм.доход","налог  взим по упрощ системена вм.доход","патент","сельхозналог","госпошлина (суды)","Акциз, налог на игорный бизнес","аренда",null,"продажа земли","доход от платных услуг","штрафы","негативное воздействие","ВСЕГО","дотация исходя из количества жителей","дотация по обеспеченности","дотация для сбалансированности","итого",null,null,null,null,null,null,null,null,null,null,null,null,null,null,null,null,null,null,null,null,null,null,"доходов",null,null,null,null,null,null,null,null,null,null,null,null,null,null,null,null,null,null,null,null,null,null,"район",null,null,null,null,null,null,null,null,null,809,"всего","в том числе",null,null,null,null,null,null,null,null,null,null,"Главы образований 100","Функционирование законодательных органов100","Функционирование местных администраций100","Функционирование местных администраций200","Функционирование местных администраций800","ЗАГС100","ЗАГС200","Централизованная бухгалтерия100","Централизованная бухгалтерия200","Централизованная бухгалтерия800","Военкомат100","Военкомат200","Капремонт жилфонда200","Уличное освещение200","Содержание автомобильных дорог200","Озеленение200","Прочие мероприятия по благоустройству200","Водонапорные башни200","Субвенция по соглашениям (КРЖФ)500","СДК,клубы200","Субвенция по соглашениям (КСП)500","Субвенция по соглашениям (ПИЗО)500","ИТОГО",null,"Главы образований","Функционирование законодательных органов","Функционирование местных администраций","Централизованная бухгалтерия","Капремонт жилфонда","Уличное освещение","Содержание автомобильных дорог","Прочие мероприятия по благоустройству","Прочие мероприятия по благоустройству","Субвенция по соглашениям (КРЖФ)","Субвенция по соглашениям (Культура)","Субвенция межмуниципального характера на здравоохранение",null,null,"обеспеченность","сбалансированность","итого","50683,1 (00951) субсидии","обес (местный) 00952","обес (местный) 00953","Налог","субвнция на здрав","субвнция на здрав (00951)","субвнция на здрав (00952)","субвнция на здрав (00953)","субвнция на здрав (Налог)","остаток после субв (00951)","остаток после субв (00952)","остаток после субв (00953)","остаток после субв (Налог)","субвенция на культ","субвенция на культ (00951)","субвенция на культ (00952)","субвенция на культ (00953)","субвенция на культ (Налог)","остаток после культ (00951)","остаток после культ (00952)","остаток после культ (00953)","остаток после культ (Налог)","зп+есн","зп+есн (00951)","зп+есн (00952)","зп+есн (00953)","зп+есн (Налог)","остаток после зп+есн (00951)","остаток после зп+есн (00952)","остаток после зп+есн (00953)","остаток после зп+есн (Налог)","улосвещ","улосвещ (00951)","улосвещ (00952)","улосвещ (00953)","улосвещ (Налог)","остаток после улосвещ (00951)","остаток после улосвещ (00952)","остаток после улосвещ (00953)","остаток после улосвещ (Налог)","остаток  (00951)","остаток  (00952)","остаток (00953)","остаток  (Налог)",null,null,null,null,null,null,null,null,"всего",null,null,null,null,null,null,null,null,null,null,null,null,null,null,null,null,null,null,"НДФЛ",null,"аппарат управл."]
[null,null,null,null,null,null,null,null,null,null,null,null,"земли ","имущества",null,null,null,null,null,null,null,null,null,null,null,null,null,null,null,null,null,null,null,null,null,null,null,null,null,null,null,null,null,null,null,null,null,null,null,null,null,null,null,null,null,null,null,null,null,null,null,null,null,null,null,null,null,null,null,"доля","исполкомы","код администартора","совет",931,809,null,803,null,"разница 600",null,"управление","жкх","образование","культура","здравоохранение",null,null,null,null,null,null,1,2,6,7,11,38,39,42,43,45,49,50,57,60,61,62,64,65,66,115,177,174,null,null,1,2,4,11,21,24,25,26,28,58,59,61,null,"00931","00951+00952","00953",null,null,null,null,null,null,null,null,null,null,null,null,null,null,null,null,null,null,null,null,null,null,null,null,null,null,null,null,null,null,null,null,null,null,null,null,null,null,null,null,null,null,null,null,null,null,null,null,null,null,null,null,null,null,"жкх","кржф","дороги","водители","дополнительно в счет отриц трансфертов","дорфонд","башни",null,null,null,null,null,null,null,null,null,null,null,null,null,null,"ни","экол","МУ \"Централизованная бухгалтерия\"","жкх"]
[null,null,null,null,null,null,null,null,null,null,null,null,null,null,null,null,null,null,null,null,null,null,null,null,null,null,null,null,null,null,null,null,null,null,null,null,null,null,null,null,null,null,null,null,null,null,null,"01","01","01","01","02","03","04","05","06","07","07","08","09","10","11","13",14,14,14,14,null,null,null,null,null,null,null,null,null,null,null,null,null,null,null,null,null,null,null,1,2,3,"4=3-2"]
[1,"Байлянгарское сельское поселение",1101,68,132.69999999999999,235,null,null,null,0,null,null,null,13,null,{"$f":"135","v":135},null,null,{"$f":"SUM(D8:R8)","v":583.70000000000005},38.4,947.2,175.4,{"$f":"SUM(T8:V8)","v":1161},null,null,null,null,null,null,null,null,null,null,null,null,2.9,86.5,null,null,null,null,null,null,16,null,{"$f":"SUM(S8:AS8)-W8","v":1850.1000000000004},0,728.50000000000011,394,2.9,0,{"$f":"AK8","v":86.5},0,null,492,null,null,null,135,0,0,0,0,8,null,3.2,null,{"$f":"SUM(AV8:BO8)","v":1850.1000000000001},{"$f":"AT40","v":1001612.4699999999},{"$f":"C8/$C$38","v":2.1441508111160881E-2},1,621,2,{"$f":"U8+V8","v":1122.6000000000001},{"$f":"ROUND(C8*0.28,0)","v":308},167,20,{"$f":"(BC8-P8)*1000/C8","v":324.25068119891006},{"$f":"BW8-BX8-BY8","v":121},{"$f":"BP8/$C8*1000","v":1680.3814713896459},{"$f":"AV8/$C8*1000","v":661.67120799273391},{"$f":"(BC8-P8)/$C8*1000","v":324.25068119891012},{"$f":"BE8/$C8*1000","v":0},{"$f":"BG8/$C8*1000","v":122.6158038147139},{"$f":"BN8/$C8*1000","v":2.9064486830154403},{"$f":"ROUND(C8/($C$38-$C$26)*6360,0)","v":207},{"$f":"ROUND(C8*$CI$3/1000,0)","v":275},{"$f":"ROUND(C8*0.2,0)","v":220},208,{"$f":"CK8-CJ8","v":-12},{"$f":"CL8/C8*1000","v":-10.899182561307901},417,0,264,11,36.5,0,2.9,158,231.4,4.5999999999999996,83.5,3,0,167,0,0,190,135,0,135,8,3.2,{"$f":"SUM(CN8:DI8)","v":1850.1},null,0,0,0,0,0,0,0,0,0,{"$error":"#REF!"},{"$error":"#REF!"},{"$error":"#REF!"},{"$f":"SUM(DL8:DW8)","v":{"$error":"#REF!"}},{"$f":"T8","v":38.4},947.2,175.4,{"$f":"SUM(DY8:EA8)","v":1161},1596.7,{"$f":"DZ8-EC8","v":-649.5},{"$f":"EA8","v":175.4},{"$f":"S8","v":583.70000000000005},{"$f":"BN8","v":3.2},{"$f":"EG8","v":3.2},{"$f":"EG8-EH8","v":0},null,null,{"$f":"EC8-EH8","v":1593.5},{"$f":"ED8-EI8","v":-649.5},{"$f":"EE8-EJ8","v":175.4},{"$f":"EF8-EK8","v":583.70000000000005},{"$f":"BL8","v":8},{"$f":"EL8","v":1593.5},236,null,{"$f":"EP8-EQ8-ER8-ES8","v":-1821.5},{"$f":"EL8-EQ8","v":0},{"$f":"EM8-ER8","v":-885.5},{"$f":"EN8-ES8","v":175.4},{"$f":"EO8-ET8","v":2405.1999999999998},{"$f":"DL8+DM8+DN8+DO8","v":0},null,{"$f":"EV8","v":-885.5},{"$f":"334.4-190.7","v":143.69999999999999},{"$f":"EY8-EZ8-FA8-FB8","v":741.8},{"$f":"EU8-EZ8","v":0},{"$f":"EV8-FA8","v":0},{"$f":"EW8-FB8","v":31.700000000000017},{"$f":"EX8-FC8","v":1663.3999999999999},{"$f":"DQ8","v":0},null,null,190.7,{"$f":"FH8-FI8-FJ8-FK8","v":-190.7},{"$f":"FD8-FI8","v":0},{"$f":"FE8-FJ8","v":0},{"$f":"FF8-FK8","v":-158.99999999999997},{"$f":"FG8-FL8","v":1854.1},{"$f":"EC8-EH8-EQ8-EZ8-FI8-FM8","v":0},{"$f":"ED8-EI8-ER8-FA8-FJ8-FN8","v":0},{"$f":"EE8-EJ8-ES8-FB8-FK8-FO8","v":0},{"$f":"EF8-EK8-ET8-FC8-FL8-FP8","v":0},null,140,39,{"$f":"SUM(FV8:FW8)","v":179},{"$f":"AT8-BP8","v":0},{"$f":"BC8/C8*1000","v":446.86648501362396},null,null,{"$f":"SUM(GD8:GJ8)","v":492},{"$f":"ROUND(C8*$GD$3/1000,0)","v":341},null,null,null,null,{"$f":"AR8","v":16},{"$f":"P8","v":135},{"$f":"BC8-GC8","v":0},{"$f":"GC8+GK8","v":492},null,{"$f":"S8/C8","v":0.5301544050862852},{"$f":"(BP8-AJ8-AK8)/C8","v":1.599182561307902},null,{"$f":"GN8/0.63","v":0.84151492870838918},{"$f":"GO8/1.3","v":1.2301404317753093},null,{"$f":"SUM(M8:P8)","v":148},null,34,892529.57,{"$f":"CN8+CO8+CP8+CQ8+CR8","v":728.5},null,null,{"$f":"CU8+CV8+CW8","v":394}]
[2,"Березнякское сельское поселение",740,67,63.5,285,null,null,null,0,null,null,null,18.8,null,{"$f":"30","v":30},null,null,464.3,25.8,670.7,132.6,829.1,null,null,null,null,null,null,null,null,null,null,null,null,2.9,48.4,null,null,null,null,null,null,10.9,null,1355.6000000000004,3.1263880373444408E-13,765.7,160.39999999999998,2.9,0,{"$f":"AK9","v":48.4},0,null,369.9,null,null,null,1.1000000000000001,0,0,0,0,5,null,2.2000000000000002,null,1355.6,{"$f":"BP40","v":1001612.47},{"$f":"C9/$C$38","v":1.4411186196420574E-2},13,622,3,{"$f":"U9+V9","v":803.30000000000007},{"$f":"ROUND(C9*0.28,0)","v":207},137,32,459.32432432432432,{"$f":"BW9-BX9-BY9","v":38},{"$f":"BP9/C9*1000","v":1831.8918918918919},{"$f":"AV9/$C9*1000","v":1034.7297297297298},459.32432432432432,0,{"$f":"BG9/$C9*1000","v":1.4864864864864866},{"$f":"BN9/$C9*1000","v":2.9729729729729732},{"$f":"ROUND(C9/($C$38-$C$26)*6360,0)","v":139},185,148,148,{"$f":"CK9-CJ9","v":0},0,444,0,259,11,51.7,0,2.9,0,150.79999999999998,9.6,46.400000000000006,1.9999999999999929,0,137,0,0,202.89999999999998,30,0,1.1000000000000001,5,2.2000000000000002,1355.6000000000001,null,0,0,0,0,0,0,0,0,0,{"$error":"#REF!"},{"$error":"#REF!"},{"$error":"#REF!"},{"$error":"#REF!"},25.8,670.7,132.6,{"$f":"SUM(DY9:EA9)","v":829.1},1289.5,-618.79999999999995,{"$f":"EA9","v":132.6},464.3,2.2000000000000002,{"$f":"EG9","v":2.2000000000000002},0,null,null,{"$f":"EC9-EH9","v":1287.3},-618.79999999999995,132.6,464.3,5,{"$f":"EL9","v":1287.3},88.899999999999977,null,{"$f":"EP9-EQ9-ER9-ES9","v":-1371.1999999999998},{"$f":"EL9-EQ9","v":0},-707.69999999999993,132.6,1835.4999999999998,0,null,{"$f":"EV9","v":-707.69999999999993},{"$f":"182.8-68.3","v":114.50000000000001},{"$f":"EY9-EZ9-FA9-FB9","v":593.19999999999993},{"$f":"EU9-EZ9","v":0},0,18.09999999999998,1242.2999999999997,{"$f":"DQ9","v":0},null,null,68.3,{"$f":"FH9-FI9-FJ9-FK9","v":-68.3},{"$f":"FD9-FI9","v":0},0,-50.200000000000017,1310.5999999999997,{"$f":"EC9-EH9-EQ9-EZ9-FI9-FM9","v":0},0,0,0,null,120,57,{"$f":"SUM(FV9:FW9)","v":177},0,499.86486486486478,null,null,{"$f":"SUM(GD9:GJ9)","v":369.9},229,null,null,100,null,10.9,30,0,{"$f":"GC9+GK9","v":369.9},null,0.62743243243243241,1.7625675675675672,null,{"$f":"GN9/0.63","v":0.99592449592449583},{"$f":"GO9/1.3","v":1.3558212058212054},null,48.8,null,33,892529.57,{"$f":"CN9+CO9+CP9+CQ9+CR9","v":765.7},null,null,{"$f":"CU9+CV9+CW9","v":160.39999999999998}]
[3,"Большекукморское сельское поселение",2773,154,473.9,1010,null,null,null,7,null,null,null,0,null,300,null,null,1944.9,96.8,568.9,256.2,921.89999999999986,null,null,null,null,null,null,null,null,null,null,null,null,2.2999999999999998,191.6,null,null,null,null,null,null,40.5,null,3101.2,5.1159076974727213E-13,864.09999999999991,347.6,2.2999999999999998,0,191.6,0,null,1495.9,null,null,null,176.6,0,0,0,0,15,null,8.1,null,3101.2,{"$f":"BQ8-BQ9","v":0},5.4002999084694928E-2,12,623,4,825.09999999999991,776,521.4,0,431.26577713667507,254.60000000000002,1118.3555715831228,311.61197259285967,431.26577713667513,0,63.685539127298945,2.9210241615578796,{"$f":"ROUND(C10/($C$38-$C$26)*6360,0)-2","v":519},693,555,499,-56,-20.19473494410386,444,0,292,11,117.1,0,2.2999999999999998,0,343.8,3.8,145.69999999999999,45.900000000000006,0,521.4,0,0,674.50000000000011,300,0,176.6,15,8.1,3101.2,null,0,0,0,0,0,0,0,0,0,{"$error":"#REF!"},{"$error":"#REF!"},{"$error":"#REF!"},{"$error":"#REF!"},96.8,568.9,256.2,921.89999999999986,1670.3,-1101.4000000000001,256.2,1944.9,8.1,1670.3,-1662.2,null,null,0,560.79999999999995,256.2,1944.9,15,{"$f":"EL10","v":0},{"$f":"901-505.1","v":395.9},505.1,-886,0,164.89999999999998,-248.90000000000003,2830.9,0,null,164.89999999999998,{"$f":"845.7-183.7","v":662},-826.9,0,0,-910.90000000000009,3657.8,0,null,null,183.69999999999993,-183.69999999999993,0,0,-1094.5999999999999,3841.5,0,0,0,0,null,145,80,225,0,539.45185719437438,null,null,1217.9000000000001,860,null,null,null,17.399999999999999,40.5,300,278,1495.9,null,0.70137035701406425,1.0484313018391633,null,1.1132862809747051,0.80648561679935638,null,300,null,76,null,864.1,null,null,347.6]
[4,"Большесардекское сельское поселение",3481,224,290.2,625,null,null,null,15,null,null,null,12.2,null,200,null,null,1366.4,121.5,724.6,174.5,1020.6,null,null,null,null,null,null,null,null,null,null,null,null,6.3,246.3,null,null,null,null,null,null,50.9,null,2690.5000000000005,5.6843418860808015E-13,769.4,300.60000000000002,6.3,0,246.3,0,null,1329.9,null,null,null,8.8000000000000007,0,0,0,0,19,null,10.199999999999999,null,2690.5,null,6.7790998851000026E-2,5,624,6,899.1,975,645,35,324.5906348750359,295,772.91008330939383,221.02844010341855,324.5906348750359,0,2.5280091927607011,2.9301924734271756,654,870,696,664,-32,-9.1927607009480035,444,0,301,11,13.4,0,6.3,0,288.8,11.8,157.69999999999999,88.600000000000023,0,645,0,0,484.90000000000009,200,0,8.8000000000000007,19,10.199999999999999,2690.5,null,0,0,0,0,0,0,0,0,0,{"$error":"#REF!"},{"$error":"#REF!"},{"$error":"#REF!"},{"$error":"#REF!"},121.5,724.6,174.5,1020.6,3121.4,-2396.8000000000002,174.5,1366.4,10.199999999999999,{"$f":"EG11","v":10.199999999999999},0,null,null,3111.2000000000003,-2396.8000000000002,174.5,1366.4,19,{"$f":"EL11","v":3111.2000000000003},{"$f":"1668.4-471.6","v":1196.8000000000002},471.6,-4760.6000000000004,0,-3593.6000000000004,-297.10000000000002,6127,0,null,-3593.6000000000004,{"$f":"1113.1-327.1","v":785.99999999999989},2807.6000000000004,0,0,-1083.0999999999999,3319.3999999999996,0,null,null,327.10000000000002,-327.10000000000002,0,0,-1410.1999999999998,3646.4999999999995,0,0,0,0,null,305,88,393,0,382.04538925596091,null,null,1329.9,1079,null,null,null,null,50.9,200,0,1329.9,null,0.39253088193047975,0.70034472852628549,null,0.62306489195314241,0.53872671425098884,null,212.2,null,110,null,769.4,null,null,300.60000000000002]
[5,"Важашурское сельское поселение",968,66,45.1,235,null,null,null,0,null,null,null,2.2000000000000002,null,45,null,null,393.3,33.799999999999997,870.7,142.9,1047.4000000000001,null,null,null,null,null,null,null,null,null,null,null,null,11.4,79.3,null,null,null,null,null,null,14.7,null,1546.1000000000004,0,692.9,162,11.4,0,79.3,0,null,359.7,null,null,null,230.9,0,0,0,0,7,null,2.9,null,1546.1000000000001,null,1.8851389510993397E-2,7,625,8,1013.6,271,300,0,325.10330578512395,-29,1597.2107438016531,715.80578512396687,325.10330578512395,0,238.53305785123968,2.995867768595041,182,242,194,220,26,26.859504132231407,398,0,264,11,19.899999999999999,0,11.4,0,161.80000000000001,0.2,75.5,3.7999999999999972,0,300,0,0,14.7,45,0,230.9,7,2.9,1546.1000000000001,null,0,0,0,0,0,0,0,0,0,{"$error":"#REF!"},{"$error":"#REF!"},{"$error":"#REF!"},{"$error":"#REF!"},33.799999999999997,870.7,142.9,1047.4000000000001,1256.0999999999999,-385.39999999999986,142.9,393.3,2.9,2.9,0,null,null,1253.1999999999998,-385.39999999999986,142.9,393.3,7,{"$f":"EL12","v":1253.1999999999998},188.50000000000011,null,-1434.6999999999998,0,-573.9,142.9,1827.9999999999998,0,null,-573.9,{"$f":"406.1-184.2","v":221.90000000000003},351.99999999999994,0,0,-79.000000000000028,1475.9999999999998,0,null,null,184.2,-184.2,0,0,-263.20000000000005,1660.1999999999998,0,0,0,0,null,190,63,253,0,371.59090909090907,null,null,359.7,300,null,null,null,null,14.7,45,0,359.7,null,0.40630165289256198,1.503512396694215,null,0.64492325855962218,1.1565479974570885,null,47.2,null,32,null,692.9,null,null,162]
[6,"Каенсарское сельское поселение",365,48,27.9,75,null,null,null,0,null,null,null,0,null,15,null,null,165.9,12.7,798.1,121.3,932.1,null,null,null,null,null,null,null,null,null,null,null,null,0.6,29.9,null,null,null,null,null,null,5.5,null,1134,0,731.7,131,0.6,0,29.9,0,null,133.5,null,null,null,102.2,0,0,0,0,4,null,1.1000000000000001,null,1134,null,7.1082202185047422E-3,15,626,16,919.4,102,83,0,324.65753424657532,19,3106.8493150684931,2004.6575342465753,324.65753424657532,0,280,3.0136986301369864,69,91,73,71,-2,-5.4794520547945202,444,0,264,11,12.700000000000001,0,0.6,0,130.80000000000001,0.2,29.2,0.69999999999999929,0,83,0,0,35.5,15,0,102.2,4,1.1000000000000001,1134.0000000000002,null,0,0,0,0,0,0,0,0,0,{"$error":"#REF!"},{"$error":"#REF!"},{"$error":"#REF!"},{"$error":"#REF!"},12.7,798.1,121.3,932.1,687.3,110.80000000000007,121.3,165.9,1.1000000000000001,1.1000000000000001,0,null,null,686.19999999999993,110.80000000000007,121.3,165.9,4,199,null,null,-195,487.19999999999993,110.80000000000007,121.3,360.9,0,214.2,110.80000000000007,{"$f":"81.4-48.2","v":33.200000000000003},-358.20000000000005,272.99999999999994,0,88.1,719.1,0,null,null,48.2,-48.2,272.99999999999994,0,39.899999999999991,767.30000000000007,0,0,0,0,null,32,6,38,0,365.75342465753425,null,null,133.5,113,null,null,null,null,5.5,15,0,133.5,null,0.45452054794520552,3.0232876712328767,null,0.72146118721461194,2.3256059009483665,null,15,null,24,null,731.7,null,null,131]
[7,"Каркаусское сельское поселение",915,96,68.3,315,null,null,null,4,null,null,null,2.2000000000000002,null,0,null,null,485.5,31.9,960.8,169.8,1162.5,null,null,null,null,null,null,null,null,null,null,null,null,2.9,57.5,null,null,null,null,null,null,13.4,null,1721.8000000000002,0,717.5,177.1,2.9,0,57.5,0,null,297.39999999999998,null,null,null,459.7,0,0,0,0,7,null,2.7,null,1721.8000000000002,null,1.7819236986114626E-2,18,627,17,1130.5999999999999,256,129,31,325.0273224043716,96,1881.7486338797814,784.15300546448088,325.02732240437155,0,502.40437158469939,2.9508196721311477,172,229,183,188,5,5.4644808743169397,426,0,264,11,16.5,0,2.9,0,173.79999999999998,3.3,55.6,1.8999999999999986,0,129,0,0,168.39999999999998,0,0,459.7,7,2.7,1721.8000000000002,null,0,0,0,0,0,0,0,0,0,{"$error":"#REF!"},{"$error":"#REF!"},{"$error":"#REF!"},{"$error":"#REF!"},31.9,960.8,169.8,1162.5,1702.5,-741.7,169.8,485.5,2.7,2.7,0,null,null,1699.8,-741.7,169.8,485.5,7,{"$f":"EL14","v":1699.8},217.60000000000002,null,-1910.4,0,-959.30000000000007,169.8,2395.9,0,null,-959.30000000000007,{"$f":"221-136.2","v":84.800000000000011},874.5,0,0,85,1521.4,0,null,null,136.19999999999999,-136.19999999999999,0,0,-51.199999999999989,1657.6000000000001,0,0,0,0,null,141,71,212,0,325.02732240437155,null,null,297.39999999999998,284,null,null,null,null,13.4,0,0,297.39999999999998,null,0.53060109289617485,1.815737704918033,null,0.8422239569780553,1.39672131147541,null,2.2000000000000002,null,47,null,717.5,null,null,177.1]
[8,"Кошкинское сельское поселение",1044,143,68.3,300,null,null,null,13,null,null,null,2.2000000000000002,null,62,null,null,588.5,36.5,600.4,129.9,766.8,null,null,null,null,null,null,null,null,null,null,null,null,4,82.9,null,null,null,null,null,null,15.2,null,1457.4000000000003,0,734.9,224.4,4,0,82.9,0,null,401.2,null,null,null,0,0,0,0,0,7,null,3,null,1457.4,null,2.0331457282517673E-2,19,628,20,730.3,292,249,20,324.90421455938696,23,1395.977011494253,703.92720306513411,324.90421455938696,0,0,2.8735632183908044,196,261,209,212,3,2.8735632183908044,426,0,255,11,42.900000000000006,0,4,0,217.8,6.6,79.599999999999994,3.3000000000000114,0,249,0,0,90.199999999999989,62,0,0,7,3,1457.4,null,0,0,0,0,0,0,0,0,0,{"$error":"#REF!"},{"$error":"#REF!"},{"$error":"#REF!"},{"$error":"#REF!"},36.5,600.4,129.9,766.8,1302.0999999999999,-701.69999999999993,129.9,588.5,3,3,0,null,null,1299.0999999999999,-701.69999999999993,129.9,588.5,7,{"$f":"EL15","v":1299.0999999999999},268.50000000000011,null,-1560.6,0,-970.2,129.9,2149.1,0,null,-970.2,{"$f":"393.1-116.9","v":276.20000000000005},694,0,0,-146.30000000000004,1455.1,0,null,null,116.89999999999998,-116.89999999999998,0,0,-263.20000000000005,1572,0,0,0,0,null,150,87,237,0,384.29118773946357,null,null,401.2,324,null,null,null,null,15.2,62,0,401.2,null,0.56369731800766287,1.3127394636015326,null,0.89475764763121091,1.0097995873857943,null,64.2,null,70,null,734.9,null,null,224.4]
[9,"Лельвижское сельское поселение",518,111,25.5,130,null,null,null,0,null,null,null,2.2000000000000002,null,0,null,null,268.7,18.100000000000001,642.29999999999995,108.9,769.3,null,null,null,null,null,null,null,null,null,null,null,null,1.1000000000000001,43.7,null,null,null,null,null,null,7.9,null,1090.7,0,714.3,155.39999999999998,1.1000000000000001,0,43.7,0,null,168.9,null,null,null,0.7,0,0,0,0,5,null,1.6,null,1090.7,null,1.0087830337494401E-2,26,629,27,751.19999999999993,145,86,15,326.06177606177607,44,2105.5984555984555,1378.9575289575289,326.06177606177607,0,1.3513513513513513,3.0888030888030888,97,130,104,106,2,3.8610038610038613,426,0,264,11,13.3,0,1.1000000000000001,0,150.79999999999998,4.5999999999999996,42.400000000000006,1.2999999999999972,0,86,0,0,82.9,0,0,0.7,5,1.6,1090.6999999999998,null,0,0,0,0,0,0,0,0,0,{"$error":"#REF!"},{"$error":"#REF!"},{"$error":"#REF!"},{"$error":"#REF!"},18.100000000000001,642.29999999999995,108.9,769.3,674,-31.700000000000045,108.9,268.7,1.6,1.6,0,null,null,672.4,-31.700000000000045,108.9,268.7,5,209,null,null,-204,463.4,-31.700000000000045,108.9,472.7,0,78.2,-31.700000000000045,{"$f":"EW16","v":108.9},-155.39999999999998,385.2,0,0,628.09999999999991,0,null,null,0,0,385.2,0,0,628.09999999999991,0,0,0,0,null,70,18,88,0,326.06177606177607,null,null,168.9,161,null,null,null,null,7.9,0,0,168.9,null,0.51872586872586868,2.0191119691119694,null,0.82337439480296615,1.5531630531630534,null,2.2000000000000002,null,55,null,714.3,null,null,155.39999999999998]
[10,"Лубянское сельское поселение",1585,298,57.4,150,null,null,null,0,null,null,null,12.6,null,80,null,null,598,55.3,2363.6,357.1,2776,null,null,null,null,null,null,null,null,null,null,null,null,3.4,40.9,null,null,null,null,null,null,22.9,null,3441.1999999999989,0,836.19999999999993,255.1,3.4,0,40.9,0,null,2283.9,null,null,null,4.0999999999999996,0,0,0,0,13,null,4.5999999999999996,null,3441.2,null,3.0867202866657579E-2,28,630,29,2720.7,444,524,130,1390.4731861198738,null,2171.1041009463725,527.57097791798105,1390.4731861198738,0,2.586750788643533,2.9022082018927442,298,2008,317,{"$f":"811-480","v":331},14,8.8328075709779181,508,0,299,11,18.200000000000003,0,3.4,0,254.79999999999998,0.3,39.700000000000003,1.1999999999999957,500,524,0,0,1179.9000000000001,80,0,4.0999999999999996,13,4.5999999999999996,3441.2000000000003,null,0,0,0,0,0,0,0,0,0,{"$error":"#REF!"},{"$error":"#REF!"},{"$error":"#REF!"},{"$error":"#REF!"},55.3,2363.6,357.1,2776,3062.7,-699.09999999999991,357.1,598,4.5999999999999996,4.5999999999999996,0,null,null,3058.1,-699.09999999999991,357.1,598,13,1120,null,null,-1107,1938.1,-699.09999999999991,357.1,1705,0,662.6,{"$f":"693-662.6","v":30.399999999999977},0,-693,1275.5,-729.49999999999989,357.1,2398,0,null,386,0,-386,1275.5,-1115.5,357.1,2784,0,0,0,0,null,36,4,40,0,1440.9463722397477,null,null,2368.9,491,850,{"$f":"855+70","v":925},null,{"$f":"351-351","v":0},22.9,80,-85,2283.9,null,0.37728706624605679,2.1431545741324918,null,0.59886835912072511,1.6485804416403782,null,92.6,null,147,null,836.2,null,null,255.1]
[11,"Мамаширское сельское поселение",815,57,54.4,180,null,null,null,1.5,null,null,null,2.2000000000000002,null,50,null,null,345.09999999999997,28.5,718.3,120.1,866.9,null,null,null,null,null,null,null,null,null,null,null,null,0.6,57.8,null,null,null,null,null,null,12,null,1282.3999999999996,-3.694822225952521E-13,710.3,190.3,0.6,0,57.8,0,null,315,null,null,null,0,0,0,0,0,6,null,2.4,null,1282.4000000000001,null,1.5871779392003738E-2,184,631,185,838.4,228,158,8,325.15337423312883,62,1573.4969325153377,871.53374233128829,325.15337423312883,0,0,2.9447852760736195,153,{"$f":"ROUND(C18*$CI$3/1000,0)","v":204},163,174,11,13.496932515337424,417,0,259,11,23.3,0,0.6,0,185.8,4.5,55.6,2.1999999999999957,0,158,0,0,107,50,0,0,6,2.4,1282.4000000000001,null,0,0,0,0,0,0,0,0,0,{"$error":"#REF!"},{"$error":"#REF!"},{"$error":"#REF!"},{"$error":"#REF!"},28.5,718.3,120.1,866.9,1085.4000000000001,-367.10000000000014,120.1,345.09999999999997,2.4,2.4,0,null,null,1083,-367.10000000000014,120.1,345.09999999999997,6,{"$f":"EL18","v":1083},72.599999999999909,null,-1149.5999999999999,0,-439.70000000000005,120.1,1494.6999999999998,0,null,-439.70000000000005,{"$f":"322.2-151.8","v":170.39999999999998},269.30000000000007,0,0,-50.299999999999983,1225.3999999999996,0,null,null,150,-150,0,0,-200.29999999999998,1375.3999999999996,0,0,0,0,null,80,32,112,0,386.50306748466255,null,null,315,253,null,null,null,null,12,50,0,315,null,0.42343558282208582,1.5018404907975462,null,0.67211997273346957,1.1552619159981123,null,52.2,null,28,null,710.3,null,null,190.3]
[12,"Манзарасское сельское поселение",2067,155,293.2,450,null,null,null,0,null,null,null,2.2000000000000002,null,0,null,null,900.40000000000009,72.2,788.7,165.3,1026.2,null,null,null,null,null,null,null,null,null,null,null,null,1.7,126.3,null,null,null,null,null,null,29.7,null,2084.3000000000002,0,811.90000000000009,212.1,1.7,0,126.3,0,null,770.7,null,null,null,143.69999999999999,0,0,0,0,12,null,5.9,null,2084.3000000000002,null,4.0253948470272062E-2,186,632,187,954,579,460,41,372.85921625544267,78,1008.3696178035801,392.79148524431542,372.85921625544273,0,69.5210449927431,2.8543783260764397,388,517,413,369,-44,-21.286889211417513,465,0,301,11,34.900000000000006,0,1.7,0,211.79999999999998,0.3,124.5,1.7999999999999972,0,460,0,0,310.70000000000005,0,0,143.69999999999999,12,5.9,2084.3000000000002,null,0,0,0,0,0,0,0,0,0,{"$error":"#REF!"},{"$error":"#REF!"},{"$error":"#REF!"},{"$error":"#REF!"},72.2,788.7,165.3,1026.2,1759,-970.3,165.3,900.40000000000009,5.9,5.9,0,null,null,1753.1,-970.3,165.3,900.40000000000009,12,1753.1,{"$f":"913.3-238.9","v":674.4},238.9,-2654.4,0,-1644.6999999999998,-73.599999999999994,3554.8,0,null,-1644.6999999999998,{"$f":"EW19","v":-73.599999999999994},1718.2999999999997,0,0,0,1836.5000000000005,0,null,null,0,0,0,0,0,1836.5000000000005,0,0,0,0,null,150,25,175,0,372.85921625544273,null,null,770.7,641,null,null,100,null,29.7,0,0,770.7,null,0.43560716013546208,0.94644412191582028,null,0.69143993672295567,0.72803393993524634,null,2.2000000000000002,null,76,null,811.9,null,null,212.1]
[13,"Нижнеискубашское сельское поселение",1041,72,58.6,260,null,null,null,2.5,null,null,null,2.2000000000000002,null,43,null,null,438.3,36.299999999999997,732.9,127.7,896.9,null,null,null,null,null,null,null,null,null,null,null,null,2.9,66.099999999999994,null,null,null,null,null,null,15.2,null,1419.3999999999996,0,707.1,180,2.9,0,66.099999999999994,0,null,381.2,null,null,null,72.099999999999994,0,0,0,0,7,null,3,null,1419.3999999999999,null,2.0273033554694345E-2,188,633,189,860.6,291,305,18,324.87992315081652,-32,1363.4966378482227,679.25072046109517,324.87992315081647,0,69.260326609029775,2.8818443804034581,195,260,208,220,12,11.527377521613833,426,0,254,11,16.099999999999998,0,2.9,0,177.8,2.2000000000000002,63.5,2.5999999999999943,0,305,0,0,33.200000000000003,43,0,72.099999999999994,7,3,1419.3999999999999,null,0,0,0,0,0,0,0,0,0,{"$error":"#REF!"},{"$error":"#REF!"},{"$error":"#REF!"},{"$error":"#REF!"},36.299999999999997,732.9,127.7,896.9,1590.7,-857.80000000000007,127.7,438.3,3,3,0,null,null,1587.7,-857.80000000000007,127.7,438.3,7,1587.7,245.89999999999998,null,-1826.6,0,-1103.7,127.7,2264.9,0,null,-1103.7,{"$f":"321.4-175.5","v":145.89999999999998},957.80000000000007,0,0,-18.199999999999974,1307.0999999999999,0,null,null,175.5,-175.5,0,0,-193.7,1482.6,0,0,0,0,null,151,46,197,0,366.18635926993278,null,null,381.2,323,null,null,null,null,15.2,43,0,381.2,null,0.42103746397694525,1.2972142170989431,null,0.66831343488404005,0.99785709007611012,null,45.2,null,36,null,707.1,null,null,180]
[14,"Нижнерусское сельское поселение",788,52,49.2,165,null,null,null,0,null,null,null,12.2,null,40,null,null,318.39999999999998,27.5,907.2,143.5,1078.2,null,null,null,null,null,null,null,null,null,null,null,null,1.7,58.1,null,null,null,null,null,null,11.9,null,1468.3,-2.2737367544323206E-13,718.9,171.3,1.7,0,58.1,0,null,395.9,null,null,null,114,0,0,0,0,6,null,2.4,null,1468.3000000000002,null,1.5345965841593799E-2,190,634,191,1050.7,221,232,12,451.64974619289342,-23,1863.3248730964469,912.30964467005072,451.64974619289336,0,144.67005076142132,3.0456852791878171,148,197,158,179,21,26.649746192893399,444,0,253,11,10.9,0,1.7,0,167.8,3.5,55.6,2.5,0,232,0,0,123.89999999999998,40,0,114,6,2.4,1468.3000000000002,null,0,0,0,0,0,0,0,0,0,{"$error":"#REF!"},{"$error":"#REF!"},{"$error":"#REF!"},{"$error":"#REF!"},27.5,907.2,143.5,1078.2,1512.5,-605.29999999999995,143.5,318.39999999999998,2.4,2.4,0,null,null,1510.1,-605.29999999999995,143.5,318.39999999999998,6,1510.1,141.60000000000002,null,-1645.6999999999998,0,-746.9,143.5,1964.1,0,null,-746.9,{"$f":"212.9-144.3","v":68.599999999999994},678.3,0,0,74.900000000000006,1285.8,0,null,null,{"$f":"144.3-31.3","v":113.00000000000001},-113.00000000000001,0,0,-38.100000000000009,1398.8,0,0,0,0,null,120,21,141,0,502.41116751269033,null,null,395.9,244,null,null,100,null,11.9,40,0,395.9,null,0.40406091370558372,1.7874365482233505,null,0.64136652969140273,1.3749511909410388,null,52.2,null,26,null,718.9,null,null,171.3]
[15,"Ныртинское сельское поселение",913,61,44,215,null,null,null,6,null,null,null,28.2,null,80,null,null,434.2,31.9,875.5,151,1058.4000000000001,null,null,null,null,null,null,null,null,null,null,null,null,3.4,62.2,null,null,null,null,null,null,14.1,null,1572.2999999999997,-2.2737367544323206E-13,749.60000000000025,297.20000000000005,3.4,0,62.2,0,null,417.1,null,null,null,33,0,0,0,0,7,null,2.8,null,1572.3000000000004,null,1.7780287834232411E-2,192,635,193,1026.5,256,241,22,369.2223439211391,-7,1722.1248630887189,821.029572836802,369.2223439211391,0,36.144578313253014,3.0668127053669219,171,228,183,315,132,144.57831325301206,444,0,264,11,30.599999999999998,0,3.4,65,229.80000000000004,2.4,59.599999999999994,2.6000000000000085,0,241,0,0,96.100000000000023,80,0,33,7,2.8,1572.3,null,0,0,0,0,0,0,0,0,0,{"$error":"#REF!"},{"$error":"#REF!"},{"$error":"#REF!"},{"$error":"#REF!"},31.9,875.5,151,1058.4000000000001,1944.1,-1068.5999999999999,151,434.2,2.8,2.8,0,null,null,1941.3,-1068.5999999999999,151,434.2,7,1941.3,252.5,null,-2186.8000000000002,0,-1321.1,151,2621,0,null,-1321.1,{"$f":"217.2-190.2","v":27},1294.0999999999999,0,0,124,1326.9,0,null,null,{"$f":"190.2-92.2","v":97.999999999999986},-97.999999999999986,0,0,26.000000000000014,1424.9,0,0,0,0,null,158,33,191,0,456.84556407447974,null,null,417.1,283,null,null,40,null,14.1,80,0,417.1,null,0.47557502738225627,1.6502738225629794,null,0.75488099584485124,1.2694414019715226,null,108.2,null,30,null,749.6,null,null,297.20000000000005]
[16,"Нырьинское сельское поселение",1413,231,80.8,302,null,null,null,500,null,null,null,15.9,null,43,null,null,1172.7,49.3,50.4,122.7,222.39999999999998,null,null,null,null,null,null,null,null,null,null,null,null,1.7,107,null,null,null,null,null,null,21.3,null,1525.1,0,689.1,176.1,1.7,0,107,0,null,502.3,null,null,null,34.6,0,0,0,0,10,null,4.3,null,1525.1,null,2.7517575804786851E-2,194,636,195,173.1,396,280,100,325.05307855626324,16,1079.3347487615004,487.68577494692147,325.05307855626324,0,24.486907289455061,3.043170559094126,265,353,283,305,22,15.56970983722576,388,0,259,11,31.099999999999998,0,1.7,0,171.79999999999998,4.3,103.4,3.5999999999999943,0,280,0,0,179.3,43,0,34.6,10,4.3,1525.1,null,0,0,0,0,0,0,0,0,0,{"$error":"#REF!"},{"$error":"#REF!"},{"$error":"#REF!"},{"$error":"#REF!"},49.3,50.4,122.7,222.39999999999998,2279.3000000000002,-2228.9,122.7,1172.7,4.3,4.3,0,null,null,2275,-2228.9,122.7,1172.7,10,2275,522.29999999999973,null,-2787.2999999999997,0,-2751.2,122.7,3960,0,null,-2751.2,{"$f":"479.4-208.1","v":271.29999999999995},2479.8999999999996,0,0,-148.59999999999997,1480.1000000000004,0,null,null,{"$f":"208.1-24.1","v":184},-184,0,0,-332.59999999999997,1664.1000000000004,0,0,0,0,null,149,35,184,0,355.48478414720455,null,null,502.3,438,null,null,null,null,21.3,43,0,502.3,null,0.82993630573248411,1.0024062278839347,null,1.3173592154483875,0.77108171375687284,null,58.9,null,114,null,689.1,null,null,176.1]
[17,"Олуязское сельское поселение",1497,281,163.19999999999999,350,null,null,null,0,null,null,null,2.2000000000000002,null,5,null,null,801.40000000000009,52.3,860.9,180.5,1093.6999999999998,null,null,null,null,null,null,null,null,null,null,null,null,1.1000000000000001,95.6,null,null,null,null,null,null,21.9,null,2013.6999999999998,-5.6843418860808015E-13,713,230.20000000000002,1.1000000000000001,0,95.6,0,null,490.9,null,null,null,468.5,0,0,0,0,10,null,4.4000000000000004,null,2013.7000000000003,null,2.9153440183839998E-2,196,637,197,1041.4000000000001,419,428,0,324.58249832999331,-9,1345.1569806279226,476.2859051436206,324.58249832999331,0,312.95925183700734,2.9392117568470275,281,374,299,284,-15,-10.020040080160321,426,0,256,11,20,0,1.1000000000000001,0,227.8,2.4,91.4,4.1999999999999886,0,428,0,0,57.899999999999977,5,0,468.5,10,4.4000000000000004,2013.7000000000003,null,0,0,0,0,0,0,0,0,0,{"$error":"#REF!"},{"$error":"#REF!"},{"$error":"#REF!"},{"$error":"#REF!"},52.3,860.9,180.5,1093.6999999999998,1694.3,-833.4,180.5,801.40000000000009,4.4000000000000004,4.4000000000000004,0,null,null,1689.8999999999999,-833.4,180.5,801.40000000000009,10,1689.8999999999999,{"$f":"687-37.4","v":649.6},37.4,-2366.9,0,-1483,143.1,3168.3,0,null,-1483,{"$f":"EW24","v":143.1},1339.9,0,0,0,1828.4,0,null,null,0,0,0,0,0,1828.4,0,0,0,0,null,132,76,208,0,327.92251169004675,null,null,490.9,464,null,null,null,null,21.9,5,0,490.9,null,0.5353373413493655,1.2805611222444893,null,0.84974181166565954,0.98504701711114551,null,7.2,null,139,null,713,null,null,230.20000000000002]
[18,"Ошторма-Юмьинское сельское поселение",1465,114,113.3,310,null,null,null,11,null,null,null,0,null,50,null,null,598.29999999999995,51.2,657.4,125.3,833.9,null,null,null,null,null,null,null,null,null,null,null,null,9.6999999999999993,120,null,null,null,null,null,null,21.4,null,1583.2999999999997,0,711.9,197.1,9.6999999999999993,0,120,0,null,525.4,null,null,null,4.9000000000000004,0,0,0,0,10,null,4.3,null,1583.3,null,2.8530253753724512E-2,200,638,199,782.69999999999993,410,282,39,324.50511945392492,89,1080.750853242321,485.93856655290102,324.50511945392492,0,3.344709897610922,2.9351535836177471,275,366,293,293,0,0,426,0,264,11,10.9,0,9.6999999999999993,0,194.79999999999998,2.2999999999999998,116.5,3.5,0,282,0,0,193.39999999999998,50,0,4.9000000000000004,10,4.3,1583.3,null,0,0,0,0,0,0,0,0,0,{"$error":"#REF!"},{"$error":"#REF!"},{"$error":"#REF!"},{"$error":"#REF!"},51.2,657.4,125.3,833.9,1925.6,-1268.1999999999998,125.3,598.29999999999995,4.3,4.3,0,null,null,1921.3,-1268.1999999999998,125.3,598.29999999999995,10,1921.3,453.5,null,-2364.8000000000002,0,-1721.6999999999998,125.3,2963.1000000000004,0,null,-1721.6999999999998,{"$f":"507.1-159.9","v":347.20000000000005},1374.4999999999998,0,0,-221.90000000000003,1588.6000000000006,0,null,null,159.89999999999998,-159.89999999999998,0,0,-381.8,1748.5000000000005,0,0,0,0,null,163,85,248,0,358.6348122866894,null,null,525.4,454,null,null,null,null,21.4,50,0,525.4,null,0.40839590443686002,0.99221843003412968,null,0.64824746736009531,0.76324494618009975,null,50,null,56,null,711.9,null,null,197.1]
[19,"поселок городского типа Кукмор",17479,18867,3341.2,13433,null,null,null,90.5,null,42,1500,0,null,0,null,null,37273.699999999997,610.19999999999993,0,0,610.19999999999993,null,null,null,null,null,null,null,null,null,null,null,null,0,0,null,null,null,null,null,null,0,null,37883.899999999994,0,3557.7,0,0,0,0,0,null,29800.199999999997,null,null,null,0,0,0,0,0,138,4388,0,null,37883.899999999994,null,0.34039611287464216,233,639,null,0,null,5896,0,1704.9144687911205,null,2167.3951599061729,203.54139252817666,1704.9144687911207,0,0,0,3282,15113,3496,null,-3496,-200.0114423021912,0,230,1616,719,992.7,0,0,0,0,0,0,0,1560,5896,0,2000,20344.199999999997,0,4388,0,138,0,37883.899999999994,null,0,0,0,0,0,0,0,0,0,{"$error":"#REF!"},{"$error":"#REF!"},{"$error":"#REF!"},{"$error":"#REF!"},610.19999999999993,0,0,610.19999999999993,3965.4,-3965.4,0,37273.699999999997,0,3965.4,1520.5,6684.4,null,0,-5485.9,-6684.4,37273.699999999997,138,0,null,null,138,0,-5485.9,-6684.4,37135.699999999997,0,null,-5485.9,{"$f":"EW26","v":-6684.4},12170.3,0,0,0,24965.399999999998,0,null,null,0,0,0,0,0,24965.399999999998,0,0,0,0,null,9072,-1184,7888,0,1704.9144687911207,null,null,30220.400000000001,null,null,null,null,1792.3,0,0,-420.20000000000437,29800.199999999997,null,2.132484695920819,2.1673951599061727,null,null,null,null,1500,null,18593,null,3557.7,null,null,0]
[20,"Починок-Кучуковское сельское поселение",1095,98,63,300,null,null,null,0,null,null,null,2.2000000000000002,null,70,null,null,533.20000000000005,38.200000000000003,646.29999999999995,127.1,811.6,null,null,null,null,null,null,null,null,null,null,null,null,2.2999999999999998,83.5,null,null,null,null,null,null,16.3,null,1446.9000000000005,0,746,170,2.2999999999999998,0,83.5,0,null,425.3,null,null,null,9.5,0,0,0,0,7,null,3.3,null,1446.8999999999999,null,2.1324660655514225E-2,202,640,203,773.4,307,220,15,324.47488584474888,72,1321.3698630136985,681.27853881278543,324.47488584474888,0,8.6757990867579906,3.0136986301369859,206,{"$f":"ROUND(C27*$CI$3/1000,0)","v":274},219,242,23,21.004566210045663,426,0,254,11,55,0,2.2999999999999998,0,168.8,1.2,79.599999999999994,3.9000000000000057,0,220,0,0,135.30000000000001,70,0,9.5,7,3.3,1446.8999999999999,null,0,0,0,0,0,0,0,0,0,{"$error":"#REF!"},{"$error":"#REF!"},{"$error":"#REF!"},{"$error":"#REF!"},38.200000000000003,646.29999999999995,127.1,811.6,1513.8,-867.5,127.1,533.20000000000005,3.3,{"$f":"EG27","v":3.3},{"$f":"EG27-EH27","v":0},null,null,1510.5,-867.5,127.1,533.20000000000005,7,1510.5,566.5,null,-2070,0,-1434,127.1,2603.1999999999998,0,null,-1434,{"$f":"EW27","v":127.1},1306.9000000000001,0,0,0,1296.2999999999997,0,null,null,0,0,0,0,0,1296.2999999999997,0,0,0,0,null,190,37,227,0,388.40182648401827,null,null,425.3,{"$f":"ROUND(C27*$GD$3/1000,0)","v":339},null,null,null,null,16.3,70,0,425.3,null,0.48694063926940645,1.243013698630137,null,0.77292164963397847,0.95616438356164379,null,72.2,null,48,null,746,null,null,170]
[21,"Псякское сельское поселение",715,83,55.4,280,null,null,null,0,null,null,null,28.3,null,15,null,null,461.7,25,619.6,125.9,770.5,null,null,null,null,null,null,null,null,null,null,null,null,0,44,null,null,null,null,null,null,10.5,null,1286.6999999999998,2.5579538487363607E-13,697.3,226,0,0,44,0,null,247.5,null,null,null,64.8,0,0,0,0,5,null,2.1,null,1286.6999999999998,null,1.3924321797892851E-2,204,641,205,745.5,200,136,56,325.17482517482517,8,1799.5804195804192,975.2447552447552,325.17482517482517,0,90.629370629370626,2.9370629370629371,134,179,143,135,-8,-11.188811188811188,417,0,256,11,13.299999999999999,0,0,0,223.8,2.2000000000000002,42.400000000000006,1.5999999999999943,0,136,0,0,96.5,15,0,64.8,5,2.1,1286.6999999999998,null,0,0,0,0,0,0,0,0,0,{"$error":"#REF!"},{"$error":"#REF!"},{"$error":"#REF!"},{"$error":"#REF!"},25,619.6,125.9,770.5,1459.8,-840.19999999999993,125.9,461.7,2.1,2.1,0,null,null,1457.7,-840.19999999999993,125.9,461.7,5,1457.7,199.10000000000002,null,-1651.8000000000002,0,-1039.3,125.9,2113.5,0,null,-1039.3,{"$f":"EW28","v":125.9},913.4,0,0,0,1200.0999999999999,0,null,null,0,0,0,0,0,1200.0999999999999,0,0,0,0,null,150,35,185,0,346.15384615384613,null,null,247.5,222,null,null,null,null,10.5,15,0,247.5,null,0.64573426573426573,1.7380419580419577,null,1.0249750249750249,1.3369553523399673,null,43.3,null,41,null,697.3,null,null,226]
[22,"Сардекбашское сельское поселение",1252,{"$f":"126-86","v":40},90.9,330,null,null,null,1,null,null,null,10.6,null,37,null,null,509.5,43.7,724.8,129.4,897.9,null,null,null,null,null,null,null,null,null,null,null,null,4,96.5,null,null,null,null,null,null,18.600000000000001,null,1526.5,0,713.2,239,4,0,96.5,0,null,443.6,null,null,null,17.5,0,0,0,0,9,null,3.7,null,1526.5000000000002,null,2.4382169078268321E-2,206,642,207,854.19999999999993,351,355,0,324.76038338658145,-4,1219.2492012779555,569.64856230031955,324.76038338658145,0,13.977635782747603,2.9552715654952078,235,313,250,248,-2,-1.5974440894568689,408,0,253,11,41.2,0,4,0,236.8,2.2000000000000002,92.7,3.7999999999999972,0,355,0,0,51.6,37,0,17.5,9,3.7,1526.5,null,0,0,0,0,0,0,0,0,0,{"$error":"#REF!"},{"$error":"#REF!"},{"$error":"#REF!"},{"$error":"#REF!"},43.7,724.8,129.4,897.9,1969.7,-1244.9000000000001,129.4,509.5,3.7,3.7,0,null,null,1966,-1244.9000000000001,129.4,509.5,9,1966,119.79999999999995,null,-2076.8000000000002,0,-1364.7,129.4,2586.3000000000002,0,null,628,0,-628,0,-1992.7,129.4,3214.3,0,null,7.5,{"$f":"328.6-42.1","v":286.5},-294,0,-2000.2,-157.1,3508.3,0,0,0,0,null,160,56,216,0,354.31309904153358,null,null,443.6,388,null,null,null,null,18.600000000000001,37,0,443.6,null,0.40694888178913741,1.1389776357827477,null,0.64595060601450383,0.87613664290980586,null,47.6,null,62,null,713.2,null,null,239]
[23,"Село-Чуринское сельское поселение",1360,143,101.5,260,null,null,null,1,null,null,null,14.1,null,200,null,null,719.6,47.5,1008.3,194,1249.8,null,null,null,null,null,null,null,null,null,null,null,null,3.4,94.5,null,null,null,null,null,null,20,null,2087.3000000000002,-2.2737367544323206E-13,698.60000000000025,425.8,3.4,0,94.5,0,null,642,null,null,null,210,0,0,0,0,9,null,4,null,2087.3000000000002,null,2.648542327990808E-2,208,643,209,1202.3,381,322,0,325,59,1534.7794117647061,513.67647058823547,325,0,154.41176470588235,2.9411764705882351,255,340,272,268,-4,-2.9411764705882351,408,0,254,11,25.599999999999998,0,3.4,217,200.8,8,90.1,4.4000000000000057,0,322,0,0,120,200,0,210,9,4,2087.3000000000002,null,0,0,0,0,0,0,0,0,0,{"$error":"#REF!"},{"$error":"#REF!"},{"$error":"#REF!"},{"$error":"#REF!"},47.5,1008.3,194,1249.8,1870.3,-862,194,719.6,4,4,0,null,null,1866.3,-862,194,719.6,9,1866.3,573.40000000000009,null,-2430.6999999999998,0,-1435.4,194,3150.2999999999997,0,null,-1435.4,{"$f":"428.7-52.5","v":376.2},1059.2,0,0,-182.2,2091.0999999999995,0,null,null,52.5,-52.5,0,0,-234.7,2143.5999999999995,0,0,0,0,null,141,28,169,0,472.05882352941177,null,null,642,422,null,null,null,null,20,200,0,642,null,0.52911764705882358,1.4627941176470589,null,0.83986928104575176,1.1252262443438914,null,214.1,null,70,null,698.6,null,null,425.8]
[24,"Среднекуморское сельское поселение",1039,86,54.5,225,null,null,null,0,null,null,null,2.2000000000000002,null,13,null,null,380.7,36.299999999999997,976.8,153.4,1166.5,null,null,null,null,null,null,null,null,null,null,null,null,4.5999999999999996,84.3,null,null,null,null,null,null,15.6,null,1651.6999999999998,0,731.5,176,4.5999999999999996,0,84.3,0,null,350.6,null,null,null,291.60000000000002,0,0,0,0,10,null,3.1,null,1651.6999999999998,null,2.023408440281213E-2,213,644,214,1130.2,291,180,55,324.92781520692972,56,1589.7016361886426,704.04234841193454,324.92781520692978,0,280.65447545717035,2.9836381135707413,195,260,208,220,12,11.549566891241577,444,0,264,11,12.5,0,4.5999999999999996,0,173.8,2.2000000000000002,80.900000000000006,3.3999999999999915,0,180,0,0,157.60000000000002,13,0,291.60000000000002,10,3.1,1651.6999999999998,null,0,0,0,0,0,0,0,0,0,{"$error":"#REF!"},{"$error":"#REF!"},{"$error":"#REF!"},{"$error":"#REF!"},36.299999999999997,976.8,153.4,1166.5,1572.8,-596,153.4,380.7,3.1,3.1,0,null,null,1569.7,-596,153.4,380.7,10,1569.7,237.40000000000009,null,-1797.1000000000001,0,-833.40000000000009,153.4,2177.8000000000002,0,null,-833.40000000000009,{"$f":"371.1-216.8","v":154.30000000000001},679.10000000000014,0,0,-0.90000000000000568,1498.7,0,null,null,{"$f":"216.8-1.8","v":215},-215,0,0,-215.9,1713.7,0,0,0,0,null,92,14,106,0,337.43984600577483,null,null,350.6,322,null,null,null,null,15.6,13,0,350.6,null,0.36641000962463904,1.5041385948026949,null,0.5816031898803794,1.1570296883097653,null,15.2,null,43,null,731.5,null,null,176]
[25,"Туембашское сельское поселение",693,73,50.9,170,null,null,null,42,null,null,null,16.3,null,60,null,null,412.2,24.2,669,126.6,819.80000000000007,null,null,null,null,null,null,null,null,null,null,null,null,0,41.7,null,null,null,null,null,null,10.3,null,1284,3.1263880373444408E-13,723.8,209,0,0,41.7,0,null,285.3,null,null,null,16.100000000000001,0,0,0,0,6,null,2.1,null,1283.9999999999998,null,1.3495881127188455E-2,215,645,216,795.6,194,215,0,325.1082251082251,-21,1852.8138528138525,1044.4444444444443,325.1082251082251,0,23.232323232323232,3.0303030303030303,130,173,139,138,-1,-1.4430014430014431,444,0,264,11,4.8,0,0,0,204.8,4.2,39.700000000000003,2,0,215,0,0,10.3,60,0,16.100000000000001,6,2.1,1283.9999999999998,null,0,0,0,0,0,0,0,0,0,{"$error":"#REF!"},{"$error":"#REF!"},{"$error":"#REF!"},{"$error":"#REF!"},24.2,669,126.6,819.80000000000007,1092.2,-423.20000000000005,126.6,412.2,2.1,2.1,0,null,null,1090.1000000000001,-423.20000000000005,126.6,412.2,6,571,null,null,-565,519.10000000000014,-423.20000000000005,126.6,977.2,0,9,-423.20000000000005,{"$f":"214.4-127.2","v":87.2},327.00000000000006,510.10000000000014,0,39.399999999999991,650.20000000000005,0,null,null,127.2,-127.2,510.10000000000014,0,-87.800000000000011,777.40000000000009,0,0,0,0,null,65,15,80,0,411.68831168831173,null,null,285.3,215,null,null,null,null,10.3,60,0,285.3,null,0.59480519480519478,1.7926406926406921,null,0.94413522984951548,1.3789543789543786,null,76.3,null,36,null,723.8,null,null,209]
[26,"Уркушское сельское поселение",611,46,27.2,150,null,null,null,1,null,null,null,2.2000000000000002,null,30,null,null,256.39999999999998,21.3,827.2,129.69999999999999,978.2,null,null,null,null,null,null,null,null,null,null,null,null,1.7,44.2,null,null,null,null,null,null,9.1999999999999993,null,1289.6999999999996,2.8421709430404007E-13,680.8,319.39999999999998,1.7,0,44.2,0,null,228.2,null,null,null,8.6,0,0,0,0,5,null,1.8,null,1289.6999999999998,null,1.1898965900017527E-2,218,646,219,956.90000000000009,171,178,11,324.3862520458265,-18,2110.8019639934528,1114.2389525368249,324.3862520458265,0,14.075286415711947,2.9459901800327333,115,153,122,128,6,9.8199672667757767,408,0,254,11,7.8,0,1.7,156,160.79999999999998,2.6,42.400000000000006,1.7999999999999972,0,178,0,0,20.2,30,0,8.6,5,1.8,1289.6999999999998,null,0,0,0,0,0,0,0,0,0,{"$error":"#REF!"},{"$error":"#REF!"},{"$error":"#REF!"},{"$error":"#REF!"},21.3,827.2,129.69999999999999,978.2,1732.7,-905.5,129.69999999999999,256.39999999999998,1.8,1.8,0,null,null,1730.9,-905.5,129.69999999999999,256.39999999999998,5,{"$f":"EL33","v":1730.9},23.799999999999955,null,-1749.7,0,-929.3,129.69999999999999,2006.1,0,null,520,0,-520,0,-1449.3,129.69999999999999,2526.1,0,null,120.6,15.4,-136,0,-1569.8999999999999,114.29999999999998,2662.1,0,0,0,0,null,126,7,133,0,373.48608837970539,null,null,228.2,189,null,null,null,null,9.1999999999999993,30,0,228.2,null,0.41963993453355153,2.0356792144026183,null,0.66609513418024047,1.5659070880020141,null,32.200000000000003,null,23,null,680.8,null,null,319.39999999999998]
[27,"Чарлинское сельское поселение",653,81,41.1,180,null,null,null,1.5,null,null,null,15.4,null,70,null,null,389,22.8,829.4,147,999.19999999999993,null,null,null,null,null,null,null,null,null,null,null,null,1.1000000000000001,53.1,null,null,null,null,null,null,10,null,1452.4,0,725.4,262.5,1.1000000000000001,0,53.1,0,null,282,null,null,null,120.3,0,0,0,0,6,null,2,null,1452.3999999999999,null,1.27168980895441E-2,225,647,226,976.4,183,183,19,324.65543644716695,-19,2224.1960183767223,1110.8728943338438,324.65543644716695,0,184.22664624808573,3.0627871362940278,123,163,131,139,8,12.251148545176111,398,0,256,11,60.4,0,1.1000000000000001,0,259.8,2.7,50.400000000000006,2.6999999999999957,0,183,0,0,29,70,0,120.3,6,2,1452.4,null,0,0,0,0,0,0,0,0,0,{"$error":"#REF!"},{"$error":"#REF!"},{"$error":"#REF!"},{"$error":"#REF!"},22.8,829.4,147,999.19999999999993,1170.2,-340.80000000000007,147,389,2,2,0,null,null,1168.2,-340.80000000000007,147,389,6,{"$f":"EL34","v":1168.2},34.599999999999909,null,-1196.8,0,-375.4,147,1585.8,0,null,-375.4,{"$f":"168.6-75.7","v":92.899999999999991},282.5,0,0,54.100000000000009,1303.3,0,null,null,75.7,-75.7,0,0,-21.599999999999994,1379,0,0,0,0,null,76,32,108,0,431.8529862174579,null,null,282,202,null,null,null,null,10,70,0,282,null,0.59571209800918834,2.1411944869831547,null,0.94557475874474339,1.6470726822947344,null,85.4,null,40,null,725.4,null,null,262.5]
[28,"Ядыгерьское сельское поселение",1021,115,93,280,null,null,null,2,null,null,null,0,null,66,null,null,556,35.6,595.70000000000005,125.7,757.00000000000011,null,null,null,null,null,null,null,null,null,null,null,null,5.7,75.5,null,null,null,null,null,null,15.1,null,1409.3000000000002,0,727.5,136,5.7,0,75.5,0,null,398.1,null,null,null,56.5,0,0,0,0,7,null,3,null,1409.3000000000002,null,1.988354203587217E-2,227,648,228,721.40000000000009,286,317,0,325.26934378060724,-31,1380.3134182174342,712.53672869735556,325.2693437806073,0,55.337904015670908,2.9382957884427032,192,255,204,207,3,2.9382957884427032,417,0,251,11,48.5,0,5.7,0,133.80000000000001,2.2000000000000002,72.900000000000006,2.5999999999999943,0,317,0,0,15.100000000000023,66,0,56.5,7,3,1409.3000000000002,null,0,0,0,0,0,0,0,0,0,{"$error":"#REF!"},{"$error":"#REF!"},{"$error":"#REF!"},{"$error":"#REF!"},35.6,595.70000000000005,125.7,757.00000000000011,1010.1,-414.4,125.7,556,3,3,0,null,null,1007.1,-414.4,125.7,556,7,{"$f":"EL35","v":1007.1},352.79999999999995,null,-1352.9,0,-767.19999999999993,125.7,1908.9,0,null,-767.19999999999993,{"$f":"EW35","v":125.7},641.49999999999989,0,0,0,1267.4000000000001,0,null,null,0,0,0,0,0,1267.4000000000001,0,0,0,0,null,148,41,189,0,389.91185112634673,null,null,398.1,317,null,null,null,null,15.1,66,0,398.1,null,0.54456415279138104,1.3007835455435848,null,0.86438754411330321,1.000602727341219,null,66,null,57,null,727.5,null,null,136]
[29,"Яныльское сельское поселение",1444,286,171.1,690,null,null,null,1100,null,null,null,0,null,0,null,null,2247.1,50.4,87.9,275.2,413.5,null,null,null,null,null,null,null,null,null,null,null,null,16,102.8,null,null,null,null,null,null,21.3,null,2800.7000000000003,5.1159076974727213E-13,1128.5999999999999,206.2,16,0,102.8,0,null,469.3,null,null,null,863.5,0,0,0,0,10,null,4.3,null,2800.7,null,2.8121287658961228E-2,229,649,230,363.1,404,235,50,325,119,1939.5429362880884,781.57894736842104,325,0,597.99168975069256,2.9778393351800552,271,361,289,260,-29,-20.08310249307479,417,0,259,11,441.59999999999997,0,16,0,201.79999999999998,4.4000000000000004,99.3,3.5,0,235,0,0,234.3,0,0,863.5,10,4.3,2800.7,null,0,0,0,0,0,0,0,0,0,{"$error":"#REF!"},{"$error":"#REF!"},{"$error":"#REF!"},{"$error":"#REF!"},50.4,87.9,275.2,413.5,1834.4,-1746.5,275.2,2247.1,4.3,4.3,0,null,null,1830.1000000000001,-1746.5,275.2,2247.1,10,{"$f":"EL36","v":1830.1000000000001},{"$f":"726.8-23.4","v":703.4},23.4,-2546.9,0,-2449.9,251.79999999999998,4794,0,null,-2449.9,{"$f":"EW36","v":251.79999999999998},2198.1,0,0,0,2595.9,0,null,null,0,0,0,0,0,2595.9,0,0,0,0,null,150,45,195,0,325,null,null,469.3,448,null,null,null,null,21.3,0,0,469.3,null,1.5561634349030471,1.8572714681440441,null,2.4701006903222971,1.4286703601108031,null,0,null,141,null,1128.5999999999999,null,null,206.2]
[30,"Ятмас-Дусаевское сельское поселение",498,17,21.7,110,null,null,null,1,null,null,null,2.2000000000000002,null,21,null,null,172.89999999999998,17.7,838.4,123.1,979.2,null,null,null,null,null,null,null,null,null,null,null,null,0.6,32.6,null,null,null,null,null,null,7.7,null,1192.9999999999998,-2.5579538487363607E-13,718.9,139.89999999999998,0.6,0,32.6,0,null,282.7,null,null,null,11.8,0,0,0,0,5,null,1.5,null,{"$f":"SUM(AV37:BO37)","v":1193},{"$f":"BP38-AX38-AZ38","v":85196.699999999968},9.6983388186722228E-3,231,650,232,961.5,139,129,15,525.50200803212851,-5,2395.5823293172689,1443.5742971887551,525.50200803212851,0,23.694779116465863,3.0120481927710845,{"$f":"ROUND(C37/($C$38-$C$26)*6360,0)","v":94},125,100,114,14,28.112449799196785,444,0,256,11,7.9,0,0.6,0,138.79999999999998,1.1000000000000001,31.799999999999997,0.80000000000000426,0,129,0,0,132.69999999999999,21,0,11.8,5,1.5,1192.9999999999998,null,0,0,0,0,0,0,0,0,0,{"$error":"#REF!"},{"$error":"#REF!"},{"$error":"#REF!"},{"$error":"#REF!"},17.7,838.4,123.1,979.2,1338.2,-499.80000000000007,123.1,172.89999999999998,1.5,1.5,0,null,null,1336.7,-499.80000000000007,123.1,172.89999999999998,5,850,null,null,-845,486.70000000000005,-499.80000000000007,123.1,1017.9,0,93.9,{"$f":"502-93.9","v":408.1},0,-502,392.80000000000007,-907.90000000000009,123.1,1519.9,0,null,104.5,{"$f":"124-104.5","v":19.5},-124,392.80000000000007,-1012.4000000000001,103.6,1643.9,0,0,0,0,null,85,8,93,0,567.67068273092366,null,null,282.7,154,null,null,100,null,7.7,21,0,282.7,null,0.34718875502008029,2.3289156626506027,null,0.55109326193663533,1.7914735866543097,null,23.2,null,8,null,718.9,null,null,139.89999999999998]
[null,"Итого по поселениям ",{"$f":"SUM(C8:C37)","v":51349},{"$f":"SUM(D8:D37)","v":22233},{"$f":"SUM(E8:E37)","v":6220.9999999999991},{"$f":"SUM(F8:F37)","v":22000},0,0,0,1800,{"$f":"SUM(K8:K37)","v":0},42,1500,223.99999999999997,{"$f":"SUM(O8:O37)","v":0},{"$f":"SUM(P8:P37)","v":1760},{"$f":"SUM(Q8:Q37)","v":0},0,55779.999999999985,1792.8999999999999,22562.000000000004,4561.8,28916.700000000004,{"$f":"SUM(X8:X37)","v":0},0,0,{"$f":"SUM(AA8:AA37)","v":0},0,{"$f":"SUM(AC8:AC37)","v":0},{"$f":"SUM(AD8:AD37)","v":0},{"$f":"SUM(AE8:AE37)","v":0},0,{"$f":"SUM(AG8:AG37)","v":0},0,{"$f":"SUM(AI8:AI37)","v":0},{"$f":"SUM(AJ8:AJ37)","v":100},{"$f":"SUM(AK8:AK37)","v":2352.7999999999997},{"$f":"SUM(AL8:AL37)","v":0},0,{"$f":"SUM(AN8:AN37)","v":0},{"$f":"SUM(AO8:AO37)","v":0},0,0,500.00000000000006,0,87649.499999999971,8.8107299234252423E-13,25216.3,{"$f":"SUM(AW8:AW37)","v":6471.6999999999989},{"$f":"SUM(AX8:AX37)","v":100},{"$f":"SUM(AY8:AY37)","v":0},2352.7999999999997,0,{"$f":"SUM(BB8:BB37)","v":0},{"$f":"SUM(BC8:BC37)","v":44985.599999999999},{"$f":"SUM(BD8:BD37)","v":0},0,{"$f":"SUM(BF8:BF37)","v":0},{"$f":"SUM(BG8:BG37)","v":3660.1},0,0,{"$f":"SUM(BJ8:BJ37)","v":0},{"$f":"SUM(BK8:BK37)","v":0},375,4388,99.999999999999972,{"$f":"SUM(BO8:BO37)","v":0},87649.499999999971,{"$f":"SUM(BL38:BN38)","v":4863},1,null,null,null,{"$f":"SUM(BV8:BV37)","v":27123.800000000003},{"$f":"SUM(BW8:BW37)","v":9483},13593.4,{"$f":"SUM(BY8:BY37)","v":744},{"$f":"SUM(BZ8:BZ37)","v":12852.737700623811},1251.5999999999999,1706.9368439502223,491.07674930378391,{"$f":"BC38/$C38*1000","v":876.07548345634768},0,71.278895402052626,1.9474575941108878,{"$f":"SUM(CH8:CH37)","v":9641},{"$f":"SUM(CI8:CI37)","v":25192},{"$f":"SUM(CJ8:CJ37)","v":10272},{"$f":"SUM(CK8:CK37)","v":6885},{"$f":"CK38-CJ38","v":-3387},-65.960388712535789,{"$f":"SUM(CN8:CN37)","v":12444},230,9273,1038,2231.3000000000002,0,100,596,5775.8000000000029,{"$f":"SUM(CW8:CW37)","v":99.9},{"$f":"SUM(CX8:CX37)","v":2147.6000000000008},205.19999999999996,2060,13593.4,0,2000,25572.199999999993,{"$f":"SUM(DE8:DE37)","v":1760},{"$f":"SUM(DF8:DF37)","v":4388},3660.1,375,99.999999999999972,87649.5,null,{"$f":"SUM(DL8:DL37)","v":0},{"$f":"SUM(DM8:DM37)","v":0},{"$f":"SUM(DN8:DN37)","v":0},{"$f":"SUM(DO8:DO37)","v":0},{"$f":"SUM(DP8:DP37)","v":0},0,0,{"$f":"SUM(DS8:DS37)","v":0},0,{"$error":"#REF!"},{"$error":"#REF!"},{"$error":"#REF!"},{"$error":"#REF!"},{"$f":"SUM(DY8:DY37)","v":1792.8999999999999},22562.000000000004,4561.8,28916.700000000004,50683.099999999991,-28121.100000000002,4561.8,55779.999999999985,99.999999999999972,5727.6000000000022,-141.70000000000005,6684.4,0,44955.499999999985,-27979.4,-2122.6,55779.999999999985,375,41060.999999999993,8415.4000000000015,1276.4000000000003,-50377.8,3894.5,-36394.80000000001,-3399.0000000000005,106157.79999999999,0,1057.9000000000001,-31315.400000000005,-1812.1999999999996,32069.7,2836.6000000000004,-5079.3999999999996,-1586.8000000000002,74088.099999999991,0,0,618.6,2927.5,-3546.1,2836.6000000000004,-5698,-4514.2999999999993,77634.199999999983,0,0,0,0,null,{"$f":"SUM(FV8:FV37)","v":12887},{"$f":"SUM(FW8:FW37)","v":0},{"$f":"SUM(FX8:FX37)","v":12887},null,null,null,null,{"$f":"SUM(GC8:GC37)","v":45212.799999999996},{"$f":"SUM(GD8:GD37)","v":10500},850,925,440,1809.7,500.00000000000006,1760,-227.19999999999709,44985.599999999999,null,{"$f":"(S38-S26)/(C38-C26)","v":0.54639208739297274},{"$f":"(BP38-AJ38-AK38-S26)/(C38-C26)","v":1.4149099498080888},null,{"$f":"SUM(GQ8:GQ37)/29","v":0.84998534954879867},{"$f":"SUM(GR8:GR37)/29","v":1.2183001590175735},null,{"$f":"SUM(GT8:GT37)","v":3484},null,{"$f":"SUM(GV8:GV37)","v":20295},1785059.14,25216.3,0,0,6471.6999999999989,0,0,0]
[null,null,null,null,null,null,null,null,null,null,null,null,null,null,null,null,null,null,null,null,null,null,null,null,null,null,null,null,null,null,null,null,null,null,null,null,null,null,null,null,null,null,null,null,null,null,null,null,null,null,null,null,null,null,null,null,null,null,null,null,null,null,null,null,null,null,null,null,null,null,null,null,null,null,null,null,null,null,null,null,null,null,null,null,null,null,null,null,null,null,null,null,null,null,null,null,null,null,null,null,null,null,null,null,null,null,null,null,null,null,null,null,null,{"$f":"BP38-DJ38","v":0},null,null,null,null,null,null,null,null,null,null,null,null,null,null,null,null,null,null,null,null,null,null,{"$f":"SUM(EH38:EK38)","v":12270.300000000003},null,null,null,null,{"$f":"EC38-EH38","v":44955.499999999985},{"$f":"ED38-EI38","v":-27979.4},{"$f":"EE38-EJ38","v":-2122.5999999999995},null,{"$f":"SUM(EQ38:ET38)","v":374.99999999999272},null,null,null,null,null,null,null,null,{"$f":"SUM(EZ38:FC38)","v":0},null,null,null,null,null,null,null,null,{"$f":"SUM(FI38:FL38)","v":0},null,null,null,null,null,null,null,null,null,null,null,null,null,null,null,null,null,null,null,null,null,null,null,null,null,null,null,null,null,null,null,{"$f":"S39/C39","v":{"$error":"#DIV/0!"}}]
[null,"Муниципальный район",null,{"$f":"275000-D38","v":252767},null,null,20115,6674,229,{"$f":"3600-J38","v":1800},3625,{"$f":"16690.6+74","v":16764.599999999999},{"$f":"3546-760","v":2786},{"$f":"711-N38","v":487},null,0,2422,500,{"$f":"SUM(D40:R40)","v":308169.59999999998},null,null,null,null,69862.100000000006,25023.8,241662.7,{"$f":"1342.8+450.1","v":1792.9},{"$f":"268287.8","v":268287.8},68240.600000000006,506.5,244.9,255.7,{"$f":"2045.2+56.4","v":2101.6},16.899999999999999,255.7,1654,2352.8000000000002,28.7,4828.8,55.9,715.6,689.5,{"$f":"0.37+3","v":3.37},null,{"$f":"BL38+BN38+BM38","v":4863},{"$f":"SUM(S40:AS40)","v":1001612.4699999999},{"$f":"AT40-BP40","v":0},32821,10584.6,1554,2037.67,0,1144.2,18792.199999999997,23551.1,500,753038.2,12408.400000000001,93636.899999999965,689.5,17587,1398.2,0,null,null,null,{"$f":"W38+AJ38+AK38+AR38","v":31869.500000000004},{"$f":"SUM(AV40:BO40)","v":1001612.47},null,null,null,null,null,null,null,null,null,null,null,null,null,null,null,null,null,null,null,null,null,null,null,null,null,null,null,null,null,null,null,null,null,null,null,null,null,null,null,null,null,null,null,null,null,null,null,null,{"$f":"SUM(DL38:DO38)","v":0},null,null,null,{"$f":"SUM(DP38:DT38)","v":0},null,null,null,null,null,null,null,null,null,null,null,null,null,null,null,{"$f":"EG38-EG39","v":-12170.300000000003},null,null,null,null,{"$f":"EL38-EL39","v":0},{"$f":"EM38-EM39","v":0},{"$f":"EN38-EN39","v":0},null,{"$f":"EP38-EP39","v":7.2759576141834259E-12},null,null,null,null,null,null,null,null,null,null,null,null,null,null,null,null,null,null,null,null,null,null,null,null,null,null,null,null,null,null,null,null,null,null,null,null,null,null,null,null,null,null,null,null,null,null,null,null,null,{"$f":"S40/C40","v":{"$error":"#DIV/0!"}},null,null,null,null,null,null,null,{"$f":"271000-GV38","v":250705}]
[null,null,null,null,null,null,null,null,null,null,null,null,null,null,null,null,null,null,null,null,null,null,null,null,null,null,null,null,null,null,null,null,null,null,null,null,null,null,null,null,null,null,null,null,null,{"$f":"SUM(X40:AQ40)","v":688579.87},null,null,null,null,null,null,null,null,null,null,null,null,null,null,null,null,null,null,null,null,null,null,{"$f":"SUM(BP42-BN40)","v":1089261.97},null,null,null,null,null,null,null,null,null,null,null,null,null,null,null,null,null,null,null,null,null,null,null,null,null,null,null,null,null,null,null,null,null,null,null,null,null,null,null,null,null,null,null,null,null,null,null,null,null,null,null,null,null,null,null,null,null,null,null,null,null,null,null,null,null,null,null,null,null,null,null,null,null,null,null,null,null,null,null,null,null,null,null,null,null,null,null,null,null,null,null,null,null,null,null,null,null,null,null,null,null,null,null,null,null,null,null,null,null,null,null,null,null,null,null,null,null,null,null,null,null,null,null,null,null,null,{"$f":"S41/C41","v":{"$error":"#DIV/0!"}}]
[null,"Всего консолидиров.",{"$f":"SUM(C38)+C40","v":51349},{"$f":"SUM(D38)+D40","v":275000},{"$f":"SUM(E38)+E40","v":6220.9999999999991},{"$f":"SUM(F38)+F40","v":22000},{"$f":"SUM(G38)+G40","v":20115},6674,229,3600,3625,16806.599999999999,4286,711,0,1760,2422,500,363949.6,1792.8999999999999,22562.000000000004,4561.8,28916.700000000004,69862.100000000006,25023.8,241662.7,{"$f":"SUM(AA38)+AA40","v":1792.9},268287.8,{"$f":"SUM(AC38)+AC40","v":68240.600000000006},506.5,244.9,255.7,2101.6,16.899999999999999,255.7,{"$f":"SUM(AJ38)+AJ40","v":1754},4705.6000000000004,28.7,4828.8,{"$f":"SUM(AN38)+AN40","v":55.9},{"$f":"SUM(AO38)+AO40","v":715.6},{"$f":"SUM(AP38)+AP40","v":689.5},{"$f":"SUM(AQ38)+AQ40","v":3.37},500.00000000000006,4863,1089261.9699999997,8.8107299234252423E-13,58037.3,17056.3,{"$f":"SUM(AX38)+AX40","v":1654},{"$f":"SUM(AY38)+AY40","v":2037.67},2352.7999999999997,1144.2,18792.199999999997,68536.7,{"$f":"SUM(BD38)+BD40","v":500},753038.2,{"$f":"SUM(BF38)+BF40","v":12408.400000000001},97296.999999999971,689.5,17587,{"$f":"SUM(BJ38)+BJ40","v":1398.2},{"$f":"SUM(BK38)+BK40","v":0},375,4388,99.999999999999972,31869.500000000004,1089261.97,{"$f":"SUM(BQ41+BN40)","v":1089261.97},null,null,null,null,null,null,null,null,null,null,null,null,null,null,null,null,null,null,null,null,null,null,null,null,null,null,null,null,null,null,null,null,null,null,null,null,null,null,null,null,null,null,null,null,null,null,null,null,null,null,null,null,null,null,null,null,null,null,null,null,null,null,null,null,null,null,null,null,null,null,null,null,null,null,null,null,null,null,null,null,null,null,null,null,null,null,null,null,null,null,null,null,null,null,null,null,null,null,null,null,null,null,null,null,null,null,null,null,null,null,null,null,null,null,null,null,null,null,null,null,null,null,null,null,null,null,{"$f":"S42/C42","v":7.0877641239362008},null,null,null,null,null,null,null,{"$f":"SUM(GV38)+GV40","v":271000}]
[null,{"$f":"ROUND(D42*0.1,0)","v":27500},null,41250,{"$f":"S40-D44","v":74419.599999999977},{"$f":"E43*0.5","v":37209.799999999988},{"$f":"E43*0.05","v":3720.9799999999991},null,109260.9,null,247054.6,"дот",null,null,null,null,null,null,{"$f":"S42-D44","v":130199.59999999998},null,null,null,null,null,null,null,null,null,null,null,null,null,null,null,null,null,null,null,null,null,null,null,"дотации",null,null,{"$f":"X40","v":69862.100000000006},null,{"$f":"SUM(AV40:AY40)","v":46997.27},null,null,null,null,null,null,null,null,null,null,null,null,null,null,null,null,null,null,null,{"$f":"SUM(AV42:BK42)","v":1052529.47},{"$f":"BP42-BL42-BM42-BN42-BO42-BP43","v":0},null,null,null,null,null,null,null,null,null,null,null,null,null,null,null,null,null,null,null,null,null,null,null,null,null,null,null,null,null,null,null,null,null,null,null,null,null,null,null,null,null,null,null,null,null,null,null,null,null,null,null,null,null,null,null,null,null,null,null,null,null,null,null,null,null,null,null,null,null,null,null,null,null,null,null,null,null,null,null,null,null,null,null,null,null,null,null,null,null,null,null,null,null,null,null,null,null,null,null,null,null,null,null,null,null,null,null,null,null,null,null,null,null,null,null,{"$f":"BC38-BC26","v":15185.400000000001},null,null,null,null,null,null,null,null,null,null,null,null,null,null,null,null,null,null,40650]
[null,{"$f":"B43-D38","v":5267},{"$f":"C38-C26","v":33870},{"$f":"D42-D43","v":233750},null,null,null,null,{"$f":"S42+D43-D38-D40","v":130199.59999999998},null,16704.599999999999,"ден","неналоговые",null,null,null,{"$f":"SUM(M42:R42)","v":9679},null,{"$f":"S42-D45","v":130199.59999999998},null,17561.5,{"$f":"U44-V2","v":-9562.3000000000029},null,null,null,null,null,null,null,null,null,null,null,null,null,null,null,null,null,null,null,null,"субсидии",null,null,{"$f":"SUM(Y40:Z40)","v":266686.5},null,{"$f":"SUM(AV38:AX38)","v":31788},{"$f":"SUM(AV45:AY45)","v":78785.26999999999},null,null,null,null,null,null,null,null,null,null,null,null,null,null,null,null,null,null,{"$f":"BP42-AT45-BL42-BM42-BO42+AA40-AC40-AP40-BN42","v":633377.89999999991},null,null,null,null,null,null,null,null,null,null,null,null,null,null,null,null,null,null,null,null,null,null,null,null,null,null,null,null,null,null,null,null,null,null,null,null,null,null,null,null,null,null,null,null,null,null,null,null,null,null,null,null,null,null,null,null,null,null,null,null,null,null,null,null,null,null,null,null,null,null,null,null,null,null,null,null,null,null,null,null,null,null,null,null,null,null,null,null,null,null,null,null,null,null,null,null,null,null,null,null,null,null,null,null,null,null,null,null,null,null,null,null,null,null,null,null,null,null,null,null,null,null,null,null,null,null,null,null,null,null,null,null,null,null,null,{"$f":"GV42-GV43","v":230350}]
[null,null,null,{"$f":"ROUND(D42*0.85,1)","v":233750},null,null,{"$f":"D42*0.15","v":41250},null,{"$f":"I43-I44","v":-20938.699999999983},{"$f":"($J$42-$J$26*2)*0.3+$J$26","v":1116.2},{"$f":"K43-K44","v":230350},"допнорм",null,null,11500,1455,{"$f":"SUM(O45:P45)","v":12955},null,286292,null,null,null,null,null,null,null,null,null,null,null,null,null,null,null,{"$f":"AT42-AR40-W38-AJ38-AK38","v":1057892.4699999997},null,null,null,75364.600000000006,null,null,null,"субвенции",null,null,{"$f":"SUM(AA40:AQ40)-AH40","v":352014.37000000005},null,{"$f":"SUM(AV47:AV53)","v":58037.299999999996},17056.3,1654,2037.67,2352.8000000000002,1144.2,{"$f":"SUM(BB47:BB53)","v":18792.199999999997},68536.7,500,{"$f":"SUM(BE47:BE53)","v":753038.2},12408.4,97297,689.5,17587,1398.2,0,0,0,0,0,{"$f":"SUM(AV45:BO45)","v":1052529.47},1074481.1870099995,null,null,null,null,null,null,null,null,null,null,null,null,null,null,null,null,null,null,null,null,null,null,null,null,null,null,null,null,null,null,null,null,null,null,null,null,null,null,null,null,null,null,null,null,null,null,null,null,null,null,null,null,null,null,null,null,null,null,null,null,null,null,null,null,null,null,null,null,null,null,null,null,null,null,null,null,null,null,null,null,null,null,null,null,null,null,null,null,null,null,null,null,null,null,null,null,null,null,null,null,null,null,null,null,null,null,null,null,null,null,null,null,null,null,null,null,null,null,null,null,null,null,null,null,null,null,null,null,null,null,null,null,null,null,{"$f":"ROUND(GV42*0.85,1)","v":230350}]
[null,null,null,null,null,null,null,null,null,{"$f":"($J$42-$J$26*2)*0.5+$J$26","v":1800},null,null,null,null,null,null,{"$f":"Q45-Q44","v":3276},null,{"$f":"S45-S42","v":-77657.599999999977},null,null,null,null,null,null,null,null,null,null,null,null,null,null,null,{"$f":"521391.9+AT45+AT46","v":873423.17},null,null,null,{"$f":"AT38-AM45","v":12284.899999999965},null,null,null,"иные мюжб трансферты",null,null,{"$f":"AH40","v":16.899999999999999},null,{"$f":"AV42-AV45","v":0},{"$f":"AW42-AW45","v":0},0,0,0,0,0,{"$f":"BC42-BC45","v":0},{"$f":"BD42-BD45","v":0},0,{"$f":"BF42-BF45","v":0},{"$f":"BG42-BG45","v":0},0,0,0,0,null,null,null,null,0]
[null,null,null,{"$f":"29185-D38","v":6952},null,null,null,null,null,{"$f":"J46-J45","v":683.8},null,null,null,null,null,null,null,null,null,null,22562.000000000004,4561.8,28916.700000000004,null,null,null,null,null,null,null,{"$f":"W38+AJ38+AK38-BO40","v":-500},null,null,null,{"$f":"AI46-AI45","v":-184469.2999999997},null,null,null,1757.7,null,{"$f":"AT42-SUM(W38:AS38)-AR40","v":1057392.4699999997},{"$f":"AT47+D44","v":922329.87},"итого из РТ",null,null,{"$f":"SUM(AT43:AT46)","v":688579.87},"имущ р",502.1,null,null,null,null,null,null,null,null,{"$f":"14162.2+4562.1+1348.5-2349.4-803.2-6.7-379","v":16534.5},197.8,943,null,null,null,null,null,null,null,null,18177.399999999998,23204.1,{"$f":"BQ47-BP47-BP48","v":0},null,null,null,null,null,null,null,null,null,null,null,null,null,null,null,null,null,null,null,null,null,null,null,null,null,null,null,null,null,null,null,null,null,null,null,null,null,null,null,null,null,null,null,null,null,null,null,null,null,null,null,null,null,null,null,null,null,null,null,null,null,null,null,null,null,null,null,null,null,null,null,null,null,null,null,null,null,null,null,null,null,null,null,null,null,null,null,null,null,null,null,null,null,null,null,null,null,null,null,null,null,null,null,null,null,null,null,null,null,null,null,null,null,null,null,null,null,null,null,null,null,null,null,null,null,null,null,null,null,null,null,null,null,null,null,null,null,null,{"$f":"BQ47-BQ48","v":0}]
[null,null,null,null,null,null,null,null,null,null,null,null,null,null,null,null,null,null,null,null,{"$f":"U38-U47","v":0},0,{"$f":"W38-W47","v":0},null,null,null,null,null,null,null,null,null,null,null,null,null,null,null,{"$f":"AM46-AM47","v":10527.199999999964},null,{"$f":"AT43+AT44+S42","v":700498.2},null,null,"допнорматив",null,{"$f":"D44","v":233750},"имущ с",1366.6000000000001,null,null,null,null,null,null,null,null,null,null,3660.1,null,null,null,null,null,null,null,null,{"$f":"SUM(AV48:BO48)","v":5026.7},{"$f":"BP47+BP48","v":23204.1},null,null,null,null,null,null,null,null,null,null,null,null,null,null,null,null,null,null,null,null,null,null,null,null,null,null,null,null,null,null,null,null,null,null,null,null,null,null,null,null,null,null,null,null,null,null,null,null,null,null,null,null,null,null,null,null,null,null,null,null,null,null,null,null,null,null,null,null,null,null,null,null,null,null,null,null,null,null,null,null,null,null,null,null,null,null,null,null,null,null,null,null,null,null,null,null,null,null,null,null,null,null,null,null,null,null,null,null,null,null,null,null,null,null,null,null,null,null,null,null,null,null,null,null,null,null,null,null,null,null,null,null,null,null,{"$f":"BQ47-BQ48","v":0}]
[null,null,null,{"$f":"D38-D26","v":3366},null,null,null,null,null,null,null,null,null,null,null,null,null,null,null,null,null,null,null,null,null,null,null,null,null,null,null,null,null,null,null,null,null,null,null,null,null,{"$f":"S42+AT47+BO40+BM38","v":1088786.97},null,"всего",null,{"$f":"SUM(AT47:AT48)","v":922329.87},"экол р",1.6,2,null,null,null,null,null,null,null,{"$f":"698.6-8.4-0.5+1-2.8","v":687.90000000000009},4,63.9,null,null,null,null,null,null,null,null,759.40000000000009,774.6,{"$f":"BQ49-BP49-BP50","v":-6.7501559897209518E-14},null,null,null,null,null,null,null,null,null,null,null,null,null,null,null,null,null,null,null,null,null,null,null,null,null,null,null,null,null,null,null,null,null,null,null,null,null,null,null,null,null,null,null,null,null,null,null,null,null,null,null,null,null,null,null,null,null,null,null,null,null,null,null,null,null,null,null,null,null,null,null,null,null,null,null,null,null,null,null,null,null,null,null,null,null,null,null,null,null,null,null,null,null,null,null,null,null,null,null,null,null,null,null,null,null,null,null,null,null,null,null,null,null,null,null,null,null,null,null,null,null,null,null,null,null,null,null,null,null,null,null,null,null,null,null,null,null,null,{"$f":"BQ49-BQ50","v":0}]
[null,null,null,null,null,null,null,null,null,null,null,null,null,null,null,null,null,null,null,null,null,null,null,null,null,null,null,null,null,null,null,null,null,null,null,null,null,null,null,null,"конс",{"$f":"338641+587822.57+2063+20900+700.794+4443.645","v":954571.00899999996},null,null,null,{"$f":"S43","v":130199.59999999998},"экол с",0.5,14.7,null,null,null,null,null,null,null,null,null,null,null,null,null,null,null,null,null,null,15.2,{"$f":"SUM(BP49:BP50)","v":774.60000000000014},null,null,null,null,null,null,null,null,null,null,null,null,null,null,null,null,null,null,null,null,null,null,null,null,null,null,null,null,null,null,null,null,null,null,null,null,null,null,null,null,null,null,null,null,null,null,null,null,null,null,null,null,null,null,null,null,null,null,null,null,null,null,null,null,null,null,null,null,null,null,null,null,null,null,null,null,null,null,null,null,null,null,null,null,null,null,null,null,null,null,null,null,null,null,null,null,null,null,null,null,null,null,null,null,null,null,null,null,null,null,null,null,null,null,null,null,null,null,null,null,null,null,null,null,null,null,null,null,null,null,null,null,null,null,{"$f":"BQ49-BQ50","v":0}]
[null,null,null,null,null,null,null,null,null,null,null,null,null,null,null,null,null,null,null,null,null,null,null,null,null,null,null,null,null,null,null,null,null,null,null,null,null,null,null,null,{"$f":"AP50-AP51","v":-98458.460999999777},{"$f":"AT42-W38-AJ38-AK38-AR40-AS40","v":1053029.4699999997},null,"конс",null,{"$f":"SUM(AT49:AT50)","v":1052529.47},"ку",null,null,null,null,null,null,null,null,null,null,null,null,null,null,null,null,null,null,null,null,0,{"$f":"BP52+BQ47+BQ49","v":702291.09999999986}]
[null,null,null,null,null,null,null,null,null,null,null,null,null,null,null,null,null,null,null,null,null,null,null,null,null,null,null,null,null,null,null,null,null,null,null,null,null,null,null,null,null,{"$f":"SUM(AT43:AT44)","v":336548.6},null,null,null,"собственные+ дотации, субсидии",null,{"$f":"50392.1+5845.7-100","v":56137.799999999996},17039.599999999999,null,null,null,{"$f":"1044.2+100","v":1144.2},16690.599999999999,68536.7,500,394458.6,12206.6,92613.1,0,{"$f":"7872+9715","v":17587},1398.2,null,null,null,null,{"$f":"SUM(W41:AS41)","v":0},678312.39999999991,{"$f":"BP52+BQ48+BQ50-S42-AT43-AT44","v":1792.8999999999069}]
[null,null,null,null,null,null,null,null,null,null,null,null,null,null,null,null,null,null,null,null,null,null,null,null,null,null,null,null,null,null,null,null,null,null,null,null,null,null,null,null,null,null,null,null,null,"субвенции+иные",null,{"$f":"AL40","v":28.7},null,{"$f":"AJ40","v":1654},{"$f":"AD40+AE40+AF40+AI40+AN40+AO40+AQ40","v":2037.67},{"$f":"AK40","v":2352.8000000000002},null,{"$f":"AG40","v":2101.6},null,null,{"$f":"AB40+AM40+AC40","v":341357.19999999995},null,{"$f":"AH40","v":16.899999999999999},{"$f":"AP40","v":689.5},null,null,null,null,null,null,null,{"$f":"SUM(AU53:BO53)","v":350238.37},{"$f":"BP53-AT45-AT46","v":-1792.9000000000583},{"$f":"BR55-BP38","v":1001137.4699999997}]
[null,null,null,null,null,null,null,null,null,null,null,null,null,null,null,null,null,null,null,null,null,null,null,null,null,null,null,null,null,null,null,null,null,null,null,null,null,null,null,null,null,null,null,null,null,null,null,null,null,null,null,null,null,null,null,"без имц",{"$f":"BE45-AM42","v":748209.39999999991},null,null,null,null,null,null,null,null,null,null,{"$f":"BQ48+BQ49","v":23978.699999999997},null,{"$f":"BR55-BP42","v":-475.00000000023283}]
[null,null,null,null,null,null,null,null,null,null,null,null,null,null,null,null,null,null,null,null,null,null,null,null,null,null,null,null,null,null,null,null,null,null,null,null,null,null,null,null,null,null,null,null,null,null,null,null,null,null,null,null,null,null,null,null,null,null,null,null,null,null,null,null,null,"льготы жку","компродвз",{"$f":"BP52+BP54","v":702291.09999999986},{"$f":"BP53+BP55","v":1052529.4699999997},{"$f":"BQ55+BO40+4388","v":1088786.9699999997}]
[null,null,null,null,null,null,null,null,null,null,null,null,null,null,null,null,null,null,null,null,null,null,null,null,null,null,null,null,null,null,null,null,null,null,null,null,null,null,null,null,null,null,null,null,null,null,null,null,null,null,null,null,null,null,null,null,null,null,null,null,null,null,null,null,null,4987.8,9715,{"$f":"BP43-AT45-AT46-BN56-BO56","v":685795.39999999979},"секвестр10%"]

{"sheet":"свод16","index":18,"n_rows":209,"n_cols":14,"rows_kept":209,"cut":false,"hidden":true,"merged":[[8,4,10,4],[6,9,10,9],[8,5,10,5],[8,6,10,6],[6,0,10,0],[6,2,6,6],[6,7,10,7],[6,8,10,8],[7,2,7,6],[8,2,10,2],[8,3,10,3]]}
[]
[]
[]
[null,"Расшифровка бюджета на 2016 год по подразделам"]
[null,null,null,null,null,null,null,{"$f":"H6-H13","v":0},{"$f":"I6-I13","v":0},{"$f":"J6-J13","v":0}]
[null,null,null,null,null,null,null,{"$f":"SUM(I6:J6)","v":1089261.97},1001612.4699999999,87649.500000000015]
["№ учреждения",null,"К  О  Д  Ы",null,null,null,null,"всего расходов (консолидированный), тысяч рублей","всего расходов райбюджет, тысяч рублей","всего расходов село, тысяч рублей"]
[null,null,"функц-ной классификации"]
[null,"Наименование показателя","ведомство","раз-дел","под-раз-дел","целевая статья","вид рас- хода"]
[]
[]
[1,"2","3","4","5","6","7","9","10","10"]
[null,"ИТОГО",null,null,null,null,null,{"$f":"SUBTOTAL(9,H15:H286)","v":1089261.9700000004},{"$f":"SUBTOTAL(9,I15:I286)","v":1001612.4699999999},{"$f":"SUBTOTAL(9,J15:J286)","v":87649.500000000015}]
[]
[1,"Главы образований 100","602","01","02","9900002030","100",14055,1611,12444,{"$f":"C15&F15&ROUND(G15,-2)","v":"6029900002030100"},null,null,0]
[2,"Функционирование законодательных органов100","602","01","03","9900002040","100",4932,4702,230,{"$f":"C16&F16&ROUND(G16,-2)","v":"6029900002040100"},null,null,0]
[3,"Функционирование законодательных органов200","602","01","03","9900002040","200",777,777,0,"6029900002040200",null,null,0]
[4,"Функционирование законодательных органов400","602","01","03","9900002040","400",0,0,0,"6029900002040400",null,null,0]
[5,"Функционирование законодательных органов800","602","01","03","9900002950","800",176.9,176.9,0,"6029900002950800",null,null,0]
[6,"Функционирование местных администраций100","601","01","04","9900002040","100",18338.900000000001,9065.9,9273,"6019900002040100",null,null,-180.7]
[7,"Функционирование местных администраций200","601","01","04","9900002040","200",2173,1135,1038,"6019900002040200",null,null,0]
[8,"Функционирование местных администраций400","601","01","04","9900002040","400",0,0,0,"6019900002040400",null,null,0]
[9,"Другие вопросы в упарвлении200","601","01","13","0","200",0,0,0,{"$f":"C23&D23&E23&F23&ROUND(G23,-2)","v":"60101130200"},null,null,0]
[10,"Другие вопросы в упарвлении400","601","01","13","0","400",0,0,0,"60101130400",null,null,0]
[11,"Функционирование местных администраций800","601","01","04","9900002950","800",2530.7000000000003,299.39999999999998,2231.3000000000002,{"$f":"C25&F25&ROUND(G25,-2)","v":"6019900002950800"},null,null,2.8000000000001819]
[12,"Функционирование местных администраций (УО)100","611","01","04","9900002040","100",1281.4000000000001,1281.4000000000001,0,"6119900002040100",null,null,0]
[13,"Функционирование местных администраций (УО)200","611","01","04","9900002040","200",67,67,0,"6119900002040200",null,null,0]
[14,"Функционирование местных администраций (УО)400","611","01","04","9900002040","400",0,0,0,"6119900002040400",null,null,212.89999999999998]
[15,"Функционирование местных администраций (УО)800","611","01","04","9900002950","800",41.4,41.4,0,"6119900002950800",null,null,0]
[16,"Функционирование местных администраций (УДМС)100","612","01","04","9900002040","100",682.4,682.4,0,"6129900002040100",null,null,0]
[17,"Функционирование местных администраций (УДМС)200","612","01","04","9900002040","200",0,0,0,"6129900002040200",null,null,0]
[18,"Функционирование местных администраций (УДМС)400","612","01","04","9900002040","400",0,0,0,"6129900002040400",null,null,-35]
[19,"Функционирование местных администраций (УДМС)800","612","01","04","9900002950","800",7.1,7.1,0,"6129900002950800",null,null,0]
[20,"Функционирование местных администраций (УК)100","613","01","04","9900002040","100",783,783,0,"6139900002040100",null,null,0]
[21,"Функционирование местных администраций (УК)200","613","01","04","9900002040","200",0,0,0,"6139900002040200",null,null,0]
[22,"Функционирование местных администраций (УК)400","613","01","04","9900002040","400",0,0,0,"6139900002040400",null,null,0]
[23,"Функционирование местных администраций (УК)800","613","01","04","9900002950","800",0,0,0,"6139900002950800",null,null,0]
[24,"КСП100","603","01","06","9900002040","100",428,428,0,"6039900002040100",null,null,0]
[25,"КСП200","603","01","06","9900002040","200",25,25,0,"6039900002040200",null,null,0]
[26,"КСП400","603","01","06","9900002040","400",0,0,0,"6039900002040400",null,null,0]
[27,"ФБП100","605","01","06","1800102040","100",3346,3346,0,"6051800102040100",null,null,0]
[28,"ФБП200","605","01","06","1800102040","200",420.99999999999989,420.99999999999989,0,"6051800102040200",null,null,0]
[29,"ФБП400","605","01","06","1800102040","400",0,0,0,"6051800102040400",null,null,0]
[30,"ФБП500","605","01","06","1800102040","500",0,0,0,"6051800102040500",null,null,-1134.3510000000097]
[31,"ФБП800","605","01","06","1800102950","800",0.7,0.7,0,"6051800102950800",null,null,0]
[32,"Обслуживание долга800","605","13","01","0650300","800",0,0,0,"60513010650300800",null,null,0]
[33,"Резервные фонды 800","601","01","11","9900007410","800",5845.7,5845.7,0,{"$f":"C47&F47&ROUND(G47,-2)","v":"6019900007410800"},null,null,0]
[34,"Палата имущественных и земельных отношений100","606","01","13","1600102040","100",1216,1216,0,"6061600102040100",null,null,0]
[35,"Палата имущественных и земельных отношений200","606","01","13","1600102040","200",112,112,0,"6061600102040200",null,null,0]
[36,"Палата имущественных и земельных отношений400","606","01","13","1600102040","400",0,0,0,"6061600102040400",null,null,146.9429999999993]
[37,"Палата имущественных и земельных отношений800","606","01","13","1600102040","800",35,35,0,"6061600102040800",null,null,-138.66300000000001]
[38,"ЗАГС100","601","01","13","9900059300","100",831,831,0,"6019900059300100",null,null,0]
[39,"ЗАГС200","601","01","13","9900059300","200",823,723,100,"6019900059300200",null,null,1134.3510000000006]
[40,"ЗАГС400","601","01","13","9900059300","400",0,0,0,"6019900059300400",null,null,0]
[41,"Централизованная бухгалтерияПИЗО100","606","01","13","1800129900","100",220,220,0,"6061800129900100",null,null,0]
[42,"Централизованная бухгалтерия100","601","01","13","1800129900","100",9892.6,9296.6,596,"6011800129900100",null,null,0]
[43,"Централизованная бухгалтерия200","601","01","13","1800129900","200",6840.8000000000029,1065,5775.8000000000029,"6011800129900200",null,null,0]
[44,"Централизованная бухгалтерия400","601","01","13","1800129900","400",0,0,0,"6011800129900400",null,null,0]
[45,"Централизованная бухгалтерия800","601","01","13","1800102950","800",102.7,2.8,99.9,"6011800102950800",null,null,0]
[46,"Архивный отдел100","601","01","13","08Е0144020","100",579,579,0,"60108Е0144020100",null,null,0]
[47,"Архивный отдел200","601","01","13","08Е0144020","200",47,47,0,"60108Е0144020200",null,null,0]
[48,"Архивный отдел400","601","01","13","08Е0144020","400",0,0,0,"60108Е0144020400",null,null,0]
[49,"Военкомат100","601","02","03","9900051180","100",2147.6000000000008,0,2147.6000000000008,"6019900051180100",null,null,0]
[50,"Военкомат200","601","02","03","9900051180","200",205.19999999999996,0,205.19999999999996,"6019900051180200",null,null,0]
[51,"Военкомат400","601","02","03","9900051180","400",0,0,0,"6019900051180400",null,null,0]
[52,"Военкомат800","601","02","03","9900051180","800",0,0,0,"6019900051180800",null,null,0]
[53,"МЧС200","601","03","09","0720107420","200",100,100,0,"6010720107420200",null,null,0]
[54,"МЧС400","601","03","09","0720107420","400",0,0,0,"6010720107420400",null,null,0]
[55,"Экология200","605","06","03","0910119100","200",500,500,0,"6050910119100200",null,null,-8.2799999999999727]
[56,"Экология400","605","06","03","0910119100","400",0,0,0,"6050910119100400",null,null,0]
[57,"Капремонт жилфонда200","601","05","01","0490176030","200",2060,0,2060,"6010490176030200",null,null,0]
[58,"Инвентаризация жилого фонда200","601","05","01","0480476040","200",107,107,0,"6010480476040200",null,null,0]
[59,"Подпрограмма «Повышение безопасности дорожного движения Кукморского муниципального района Республики Татарстан на 2015 год»200","601","05","03","0620178020","200",1500,1500,0,"6010620178020200",null,null,0]
[60,"Уличное освещение200","601","05","03","0490278010","200",13593.4,0,13593.4,"6010490278010200",null,null,0]
[61,"Содержание автомобильных дорог200","601","04","09","0490278020","200",0,0,0,"6010490278020200",null,null,0]
[62,"Озеленение200","601","05","03","0490278030","200",2000,0,2000,"6010490278030200",null,null,0]
[63,"Муниципальная программа \"Организация и содержаение мест захоронения\"200","601","05","03","0490278040","200",1155,1155,0,"6010490278040200",null,null,0]
[64,"Прочие мероприятия по благоустройству200","601","05","03","0490278050","200",41973.3,16401.100000000002,25572.200000000004,"6010490278050200",null,null,0]
[65,"Водонапорные башни200","601","05","02","0490378050","200",1760,0,1760,"6010490378050200",null,null,0]
[66,"Субвенция по соглашениям (КРЖФ)500","605","05","01","0450196010","500",4388,0,4388,"6050450196010500",null,null,0]
[67,"Детсады100","611","07","01","0210342000","100",84288.642499999944,84288.642499999944,0,{"$f":"C81&D81&E81&F81","v":"61107010210342000"},null,null,0]
[68,"Детсады200","611","07","01","0210342000","200",3835.9469999999942,3835.9469999999942,0,{"$f":"C82&D82&E82&F82","v":"61107010210342000"},null,null,0]
[69,"Детсады300","611","07","01","0210342000","300",0,0,0,"61107010210342000",null,null,0]
[70,"Детсады400","611","07","01","0210342000","400",0,0,0,"61107010210342000",null,null,0]
[71,"Детсады800","611","07","01","0210342000","800",2924.7,2924.7,0,"61107010210342000",null,null,0]
[72,"Школы100","611","07","02","0220242100","100",164164.85936999999,164164.85936999999,0,"61107020220242100",null,null,0]
[73,"Школы200","611","07","02","0220242100","200",63043.086369999983,63043.086369999983,0,"61107020220242100",null,null,0]
[74,"Школы400","611","07","02","0220242100","400",0,0,0,"61107020220242100",null,null,0]
[75,"Школы800","611","07","02","0220242100","800",13480.599999999999,13480.599999999999,0,"61107020220242100",null,null,0]
[76,"Учреждения по внешкольной работе (МП)100","611","07","02","0230142310","100",16616.259639999997,16616.259639999997,0,"61107020230142310",null,null,0]
[77,"Учреждения по внешкольной работе (МП)200","611","07","02","0230142310","200",960.6853000000001,960.6853000000001,0,"61107020230142310",null,null,0]
[78,"Учреждения по внешкольной работе (МП)400","611","07","02","0230142310","400",0,0,0,"61107020230142310",null,null,0]
[79,"Учреждения по внешкольной работе (МП)800","611","07","02","0230142310","800",30.299999999999997,30.299999999999997,0,"61107020230142310",null,null,0]
[80,"Учреждения по внешкольной работе (ХЭН)100","613","07","02","0230142320","100",11296,11296,0,"61307020230142320",null,null,0]
[81,"Учреждения по внешкольной работе (ХЭН)200","613","07","02","0230142320","200",2249.6156200000005,2249.6156200000005,0,"61307020230142320",null,null,0]
[82,"Учреждения по внешкольной работе (ХЭН)400","613","07","02","0230142320","400",0,0,0,"61307020230142320",null,null,0]
[83,"Учреждения по внешкольной работе (ХЭН)800","613","07","02","0230142320","800",61.900000000000006,61.900000000000006,0,"61307020230142320",null,null,0]
[84,"Учреждения по внешкольной работе (ДЮСШ)100","612","07","02","0230142330","100",23340,23340,0,"61207020230142330",null,null,0]
[85,"Учреждения по внешкольной работе (ДЮСШ)200","612","07","02","0230142330","200",13125.355200000002,13125.355200000002,0,"61207020230142330",null,null,0]
[86,"Учреждения по внешкольной работе (ДЮСШ)400","612","07","02","0230142330","400",0,0,0,"61207020230142330",null,null,0]
[87,"Учреждения по внешкольной работе (ДЮСШ)800","612","07","02","0230142330","800",4427,4427,0,"61207020230142330",null,null,0]
[88,"Субвенции на обеспечение прав на получение общедоступного и бесплатного дошкольного образования в муниципальных ДОУ100","611","07","01","0210125370","100",68240.599999999991,68240.599999999991,0,"61107010210125370",null,null,0]
[89,"Субвенции на обеспечение прав на получение общедоступного и бесплатного дошкольного образования в муниципальных ДОУ200","611","07","01","0210125370","200",0,0,0,"61107010210125370"]
[90,"Субвенции на обеспечение прав на получение общедоступного и бесплатного дошкольного образования в муниципальных ДОУ400","611","07","01","0210125370","400",0,0,0,"61107010210125370"]
[91,"Субвенции на обеспечение госгарантий прав граждан на получение общего образования, а также доп.образования в общеобраз.учреждениях 100","611","07","02","0220825280","100",268287.8,268287.8,0,"61107020220825280"]
[92,"Субвенции на обеспечение госгарантий прав граждан на получение общего образования, а также доп.образования в общеобраз.учреждениях 200","611","07","02","0220825280","200",0,0,0,"61107020220825280"]
[93,"Субвенции на обеспечение госгарантий прав граждан на получение общего образования, а также доп.образования в общеобраз.учреждениях 400","611","07","02","0220825280","400",0,0,0,"61107020220825280"]
[94,"Программа государственной национальной политики, профилактики экстремизма и укрепления межнациональных и межконфессиональных отношений в Кукморском  муниципальном районе  на 2015-2020годы (УДМС)100","612","07","07","2000110990","100",20,20,0,{"$f":"C108&F108&ROUND(G108,-2)","v":"6122000110990100"}]
[95,"Программа государственной национальной политики, профилактики экстремизма и укрепления межнациональных и межконфессиональных отношений в Кукморском  муниципальном районе  на 2015-2020годы (УДМС)200","612","07","07","2000110990","200",184,184,0,"6122000110990200"]
[96,"Программа государственной национальной политики, профилактики экстремизма и укрепления межнациональных и межконфессиональных отношений в Кукморском  муниципальном районе  на 2015-2020годы (УДМС)400","612","07","07","2000110990","400",0,0,0,"6122000110990400"]
[97,"Программа государственной национальной политики, профилактики экстремизма и укрепления межнациональных и межконфессиональных отношений в Кукморском  муниципальном районе  на 2015-2020годы (УДМС)800","612","07","07","2000110990","800",0,0,0,"6122000110990800"]
[98,"Муниципальная программа \"Развитие физической культуры, спорта в Кукморском муниципальном районе на 2009-2013 годы\"100","612","07","07","1040143190","100",7161,7161,0,{"$f":"C112&D112&E112&F112","v":"61207071040143190"}]
[99,"Муниципальная программа \"Развитие физической культуры, спорта в Кукморском муниципальном районе на 2009-2013 годы\"200","612","07","07","1040143190","200",3442.0000000000005,3442.0000000000005,0,"61207071040143190"]
[100,"Муниципальная программа \"Развитие физической культуры, спорта в Кукморском муниципальном районе на 2009-2013 годы\"400","612","07","07","1040143190","400",20,20,0,"61207071040143190"]
[101,"Муниципальная программа \"Развитие физической культуры, спорта в Кукморском муниципальном районе на 2009-2013 годы\"800","612","07","07","1040143190","800",191.3,191.3,0,"61207071040143190"]
[102,"Программа государственной национальной политики, профилактики экстремизма и укрепления межнациональных и межконфессиональных отношений в Кукморском  муниципальном районе  на 2015-2020годы (Форпост)100","612","07","07","1040143190","100",589.1,589.1,0,"61207071040143190"]
[103,"Программа государственной национальной политики, профилактики экстремизма и укрепления межнациональных и межконфессиональных отношений в Кукморском  муниципальном районе  на 2015-2020годы (Форпост)200","612","07","07","1040143190","200",44.5,44.5,0,"61207071040143190"]
[104,"Программа государственной национальной политики, профилактики экстремизма и укрепления межнациональных и межконфессиональных отношений в Кукморском  муниципальном районе  на 2015-2020годы (Форпост)400","612","07","07","1040143190","400",5,5,0,"61207071040143190"]
[105,"Программа государственной национальной политики, профилактики экстремизма и укрепления межнациональных и межконфессиональных отношений в Кукморском  муниципальном районе  на 2015-2020годы (Форпост)800","612","07","07","1040143190","800",0,0,0,"61207071040143190"]
[106,"ИКМЦ100","611","07","09","0220825301","100",4727.3999999999996,4727.3999999999996,0,{"$f":"C120&F120&ROUND(G120,-2)","v":"6110220825301100"}]
[107,"ИКМЦ200","611","07","09","0220825301","200",650.69999999999982,650.69999999999982,0,"6110220825301200"]
[108,"ИКМЦ400","611","07","09","0220825301","400",0,0,0,"6110220825301400"]
[109,"ИКМЦ800","611","07","09","0220825301","800",7,7,0,"6110220825301800"]
[110,"Услуги в образовании100","611","07","09","0250242520","100",3788,3788,0,{"$f":"C124&F124&ROUND(G124,-2)","v":"6110250242520100"}]
[111,"Услуги в образовании200","611","07","09","0250242520","200",2947.049,2947.049,0,"6110250242520200"]
[112,"Услуги в образовании400","611","07","09","0250242520","400",100,100,0,"6110250242520400"]
[113,"Услуги в образовании800","611","07","09","0250242520","800",41.2,41.2,0,"6110250242520800"]
[114,"СДК,клубы100","613","08","01","0840144091","100",52245.5,52245.5,0,{"$f":"C128&D128&E128&F128","v":"61308010840144091"}]
[115,"СДК,клубы200","613","08","01","0840144091","200",18162.799999999996,18162.799999999996,0,"61308010840144091"]
[116,"СДК,клубы400","613","08","01","0840144091","400",0,0,0,"61308010840144091"]
[117,"СДК,клубы800","613","08","01","0840144091","800",4797.6000000000004,1137.5,3660.1,"61308010840144091"]
[118,"Музеи100","613","08","01","0810144090","100",2301,2301,0,"61308010810144090"]
[119,"Музеи200","613","08","01","0810144090","200",360,360,0,"61308010810144090"]
[120,"Музеи400","613","08","01","0810144090","400",0,0,0,"61308010810144090"]
[121,"Музеи800","613","08","01","0810144090","800",24,24,0,"61308010810144090"]
[122,"Библиотеки100","613","08","01","0830144090","100",16929.8,16929.8,0,"61308010830144090"]
[123,"Библиотеки200","613","08","01","0830144090","200",2060.8999999999992,2060.8999999999992,0,"61308010830144090"]
[124,"Библиотеки400","613","08","01","0830144090","400",0,0,0,"61308010830144090"]
[125,"Библиотеки800","613","08","01","0830144090","800",50,50,0,"61308010830144090"]
[126,"Книжные фонды200","613","08","01","0830151440","200",0,0,0,{"$f":"C140&F140&ROUND(G140,-2)","v":"6130830151440200"}]
[127,"Книжные фонды400","613","08","01","0830151440","400",16.899999999999999,16.899999999999999,0,"6130830151440400"]
[128,"Субвенции на скотомогильники200","601","04","05","9900025360","200",2101.6,2101.6,0,"6019900025360200"]
[129,"Субвенции на скотомогильники400","601","04","05","9900025360","400",0,0,0,"6019900025360400"]
[130,"ЦГСЭН200","601","09","07","0110202110","200",689.5,689.5,0,"6010110202110200"]
[131,"Муниципальная программа \"Развитие физической культуры, спорта в Кукморском муниципальном районе на 2009-2013 годы200","612","11","02","1010112870","200",597.70000000000005,597.70000000000005,0,"6121010112870200"]
[132,"Муниципальная программа \"Развитие физической культуры, спорта в Кукморском муниципальном районе на 2009-2013 годы400","612","11","02","1010112870","400",0,0,0,"6121010112870400"]
[133,"Целевая программа Кукморского муниципального района \n«Доступная среда» на 2011-2015 годы200","612","11","02","0360112870","200",385.5,385.5,0,"6120360112870200"]
[134,"Целевая программа Кукморского муниципального района \n«Доступная среда» на 2011-2015 годы400","612","11","02","0360112870","400",0,0,0,"6120360112870400"]
[135,"Муниципальная программа по формированию здорового образа жизни, снижению потребления алкогольной продукции, пива и табака среди населения Кукморского муниципального района на 2011 - 2015 годы200","612","11","02","1070112870","200",0,0,0,"6121070112870200"]
[136,"Муниципальная программа по формированию здорового образа жизни, снижению потребления алкогольной продукции, пива и табака среди населения Кукморского муниципального района на 2011 - 2015 годы400","612","11","02","1070112870","400",0,0,0,"6121070112870400"]
[137,"Реализация госфункций320","611","10","03","0310205510","320",7258,7258,0,"6110310205510300"]
[138,"Программа отдыха, оздоровления, занятости детей и молодежи Кукморского муниципального района на 2013 год 100","612","07","07","1040143190","100",569,569,0,{"$f":"C152&D152&E152&F152","v":"61207071040143190"}]
[139,"Программа отдыха, оздоровления, занятости детей и молодежи Кукморского муниципального района на 2013 год 200","612","07","07","1040143190","200",151,151,0,"61207071040143190"]
[140,"Программа отдыха, оздоровления, занятости детей и молодежи Кукморского муниципального района на 2013 год 400","612","07","07","1040143190","400",0,0,0,"61207071040143190"]
[141,"Программа отдыха, оздоровления, занятости детей и молодежи Кукморского муниципального района на 2013 год 800","612","07","07","1040143190","800",15.5,15.5,0,"61207071040143190"]
[142,"Мероприятия в соцполитике320","601","10","03","0310105410","320",614,614,0,{"$f":"C156&F156&ROUND(G156,-2)","v":"6010310105410300"}]
[143,"Дотации на выполнение полномочий500","605","14","01","1800380060","500",1792.8999999999999,1792.8999999999999,0,"6051800380060500"]
[144,"Дотации на выравнивание уровня бюджетной обеспеченности500","605","14","01","1800380040","500",22562.000000000004,22562.000000000004,0,"6051800380040500"]
[145,"Дотации по обсеспечению сбалансированности бюджетов500","605","14","02","1800380040","500",4561.8,4561.8,0,"6051800380040500"]
[146,"Субвенция на выполнение федеральных  полномочий по государственной регистрации актов гражданского состояния500","605","01","13","9900059300","500",100,100,0,"6059900059300500"]
[147,"Субвенция на первичный воинский учет500","605","02","03","9900051180","500",2352.7999999999997,2352.7999999999997,0,"6059900051180500"]
[148,"Субвенция протоколы об адмнарушениях100","601","01","13","9900025350","100",0,0,0,"6019900025350100"]
[149,"Субвенция протоколы об адмнарушениях200","601","01","13","9900025350","200",0.37,0.37,0,"6019900025350200"]
[150,"Субвенции бюд.муниципальным районам и городских округов по реализации полномочий в области молодежной политики (управление)     100","612","01","04","9900025240","100",242.6,242.6,0,"6129900025240100"]
[151,"Субвенции бюд.муниципальным районам и городских округов по реализации полномочий в области молодежной политики (управление)     200","612","01","04","9900025240","200",13.099999999999994,13.099999999999994,0,"6129900025240200"]
[152,"Субвенции бюд.муниципальным районам и городских округов по реализации полномочий в области образования (управление)100","611","01","04","9900025250","100",242.6,242.6,0,"6119900025250100"]
[153,"Субвенции бюд.муниципальным районам и городских округов по реализации полномочий в области образования (управление)200","611","01","04","9900025250","200",13.099999999999994,13.099999999999994,0,"6119900025250200"]
[154,"Субвенции бюд. муниципальным районам и городских округов по реализации полномочий по образованию и организации деятельности комиссии по делам несовершеннолетних 100","601","01","13","9900025260","100",488,488,0,"6019900025260100"]
[155,"Субвенции бюд. муниципальным районам и городских округов по реализации полномочий по образованию и организации деятельности комиссии по делам несовершеннолетних 200","601","01","13","9900025260","200",18.5,18.5,0,"6019900025260200"]
[156,"Субвенции бюд. муниципальным районам и городских округов по реализации полномочий по образованию и организации деятельности административных комиссий100","601","01","13","9900025270","100",232,232,0,"6019900025270100"]
[157,"Субвенции бюд. муниципальным районам и городских округов по реализации полномочий по образованию и организации деятельности административных комиссий200","601","01","13","9900025270","200",12.900000000000006,12.900000000000006,0,"6019900025270200"]
[158,"Субвенции на опеку и попечительство100","601","01","13","0350325330","100",678.6,678.6,0,"6010350325330100"]
[159,"Субвенции на опеку и попечительство200","601","01","13","0350325330","200",37,37,0,"6010350325330200"]
[160,"Субвенции на опеку и попечительство400","601","01","13","0350325330","400",0,0,0,"6010350325330400"]
[161,"Субвенции на гос.полномочия в области архивного дела200","601","01","13","9900025340","200",55.9,55.9,0,"6019900025340200"]
[162,"Субвенции на ведение регистра200","601","01","13","2410125390","200",3,3,0,"6012410125390200"]
[163,"ЕДДС100","601","03","09","0720122670","100",1032,1032,0,"6010720122670100"]
[164,"ЕДДС200","601","03","09","0720122670","200",12.200000000000045,12.200000000000045,0,"6010720122670200"]
[165,"Субвенции присяжным200","601","01","05","9900051200","200",28.7,28.7,0,"6019900051200200"]
[166,"Субвенции перепись200","601","01","13","0012020","200",0,0,0,"6010012020200"]
[167,"КРЖФ по программе (МБ)800","601","05","01","0450196010","800",4388,4388,0,"6010450196010800"]
[168,"КРЖФ по программе (Фонд)800","601","05","01","0440195020","800",0,0,0,"6010440195020800"]
[169,"КРЖФ по программе (РТ)800","601","05","01","0440196020","800",0,0,0,"6010440196020800"]
[170,"Субсидии на образование ДОУ100","611","07","01","4208005","100",0,0,0,{"$f":"C184&D184&E184&F184","v":"61107014208005"}]
[171,"Субсидии на образование ДОУ200","611","07","02","4218005","200",0,0,0,"61107024218005"]
[172,"Субсидии на образование Школы100","611","07","02","4218005","100",0,0,0,"61107024218005"]
[173,"Субсидии на образование Школы200","611","07","02","4218005","200",0,0,0,"61107024218005"]
[174,"Субвенция по соглашениям (ПИЗО)500","605","01","13","9900025700","500",99.999999999999972,0,99.999999999999972,{"$f":"C188&F188&ROUND(G188,-2)","v":"6059900025700500"}]
[175,"Дорожный фонд200","601","04","09","1360103650","200",16690.599999999999,16690.599999999999,0,"6011360103650200"]
[176,"Дорожный фонд400","601","04","09","1360103650","400",0,0,0,"6011360103650400"]
[177,"Субвенция по соглашениям (КСП)500","605","01","06","9900025600","500",375,0,375,"6059900025600500"]
[178,"Дотации на дорожный фонд500","605","05","03","9900025151","500",500.00000000000006,500.00000000000006,0,"6059900025151500"]
[179,"Библиотекидотация100","613","08","01","0800380030","100",0,0,0,{"$f":"C193&D193&E193&F193","v":"61308010800380030"}]
[180,"Централизованная бухгалтерия800","601","01","13","1800129900","800",3,3,0,{"$f":"C194&F194&ROUND(G194,-2)","v":"6011800129900800"}]
[181,"ФБП800","605","01","06","1800102040","800",1.6,1.6,0,"6051800102040800"]
[182,"Функционирование местных администраций (УДМС)800","612","01","04","9900002040","800",3,3,0,"6129900002040800"]
[183,"Компенсация родвзноса300","611","10","04","0350113200","300",9715,9715,0,"6110350113200300"]
[184,"Муниципальная  программа «Реализация антикоррупционной политики в Кукморском  муниципальном районе Республики Татарстан на 2015-2020 годы» (ИК)200","601","01","13","2700110990","200",5,5,0,"6012700110990200"]
[185,"Муниципальная  программа «Реализация антикоррупционной политики в Кукморском  муниципальном районе Республики Татарстан на 2015-2020 годы» (УО)200","611","07","09","2700110990","200",10,10,0,"6112700110990200"]
[186,"Муниципальная  программа «Реализация антикоррупционной политики в Кукморском  муниципальном районе Республики Татарстан на 2015-2020 годы» (УК)200","613","08","01","2700110990","200",10,10,0,{"$f":"C200&D200&E200&F200","v":"61308012700110990"}]
[187,"Муниципальная  программа «Реализация антикоррупционной политики в Кукморском  муниципальном районе Республики Татарстан на 2015-2020 годы» (УДМС)200","612","07","07","2700110990","200",15,15,0,{"$f":"C201&F201&ROUND(G201,-2)","v":"6122700110990200"}]
[188,"Подпрограмма «Профилактика терроризма и экстремизма в Кукморском муниципальном районе на 2015-2016гг.»200","601","01","13","0630110990","200",15,15,0,"6010630110990200"]
[189,"Подпрограмма «Профилактика терроризма и экстремизма в Кукморском муниципальном районе на 2015-2016гг.»200","611","07","09","0630110990","200",3.5,3.5,0,"6110630110990200"]
[190,"Подпрограмма «Профилактика терроризма и экстремизма в Кукморском муниципальном районе на 2015-2016гг.»200","613","08","01","0630110990","200",3.5,3.5,0,{"$f":"C204&D204&E204&F204","v":"61308010630110990"}]
[191,"Подпрограмма «Профилактика терроризма и экстремизма в Кукморском муниципальном районе на 2015-2016гг.»200","612","07","07","0630110990","200",1,1,0,{"$f":"C205&F205&ROUND(G205,-2)","v":"6120630110990200"}]
[192,"Программа государственной национальной политики, профилактики экстремизма и укрепления межнациональных и межконфессиональных отношений в Кукморском  муниципальном районе  на 2015-2020годы (ИК)200","601","01","13","2000110990","200",80,80,0,"6012000110990200"]
[193,"Программа государственной национальной политики, профилактики экстремизма и укрепления межнациональных и межконфессиональных отношений в Кукморском  муниципальном районе  на 2015-2020годы (УО)200","611","07","09","2000110990","200",390,390,0,"6112000110990200"]
[194,"Программа государственной национальной политики, профилактики экстремизма и укрепления межнациональных и межконфессиональных отношений в Кукморском  муниципальном районе  на 2015-2020годы (УК)200","613","08","01","2000110990","200",335,335,0,{"$f":"C208&D208&E208&F208","v":"61308012000110990"}]
[195,"Программа государственной национальной политики, профилактики экстремизма и укрепления межнациональных и межконфессиональных отношений в Кукморском  муниципальном районе  на 2015-2020годы (УДМС-Спорт)200","612","11","02","2000112870","200",415,415,0,{"$f":"C209&F209&ROUND(G209,-2)","v":"6122000112870200"}]

{"sheet":"Лист1","index":19,"n_rows":0,"n_cols":0,"rows_kept":0,"cut":false,"hidden":false,"merged":[]}